Workbook

Sheet INICIO
A1: oferta | B1: tabla | C1: numerodehoja | E1: ordenoferta | F1: 1 | G1: =INDEX(G2:G11,F1) -> 1. Datos Generales | J1: 1 | K1: 2 | L1: 3 | M1: 4 | N1: 5 | O1: 6 | P1: 7 | Q1: 8 | R1: 9 | S1: 10 | U1: nivel/oferta | V1: 1 | W1: 2 | X1: 3 | Y1: 4 | Z1: 5 | AA1: 6 | AB1: 7 | AC1: 8 | AD1: 9 | AE1: 10 | AR1: 1 | AS1: 2
A2: 1 | B2: =J2 -> Unidades educativas, alumnos, docentes, sector, modalidad y nivel | C2: 2 | E2: ordentabla | F2: 1 | G2: 1. Datos Generales | I2: 1 | J2: =IF($G$22=1,AR2,AS2) -> Unidades educativas, alumnos, docentes, sector, modalidad y nivel | K2: =IF($G$22=1,AR3,AS3) -> Unidades educativas, alumnos, docentes, sector, dependencia y ámbito. | L2: =IF($G$22=1,AR18,AS18) -> Unidades educativas, alumnos, docentes, sector, dependencia y ámbito. | M2: =IF($G$22=1,AR34,AS34) -> Unidades educativas, alumnos, docentes, sector, dependencia y ámbito | N2: =IF($G$22=1,AR64,AS64) -> Unidades educativas, alumnos, docentes, sector y dependencia | O2: =IF($G$22=1,AR74,AS74) -> Establecimientos, alumnos, docentes, y sector | P2: =IF($G$22=1,AR88,AS88) -> Establecimientos, alumnos, docentes, sector y dependencia | Q2: =IF($G$22=1,AR91,AS91) -> Primario y secundario. Unidades educativas, alumnos, docentes, sector y ámbito | R2: =IF($G$22=1,AR111,AS111) -> Unidades educativas, alumnos, docentes y sector | S2: =IF($G$22=1,AR115,AS115) -> Unidades de servicio, alumnos, docentes y organismo de dependencia | U2: cantidad de tablas | V2: =COUNTA(J:J)-1 -> 1 | W2: 15 | X2: 16 | Y2: 30 | Z2: 10 | AA2: 14 | AB2: 3 | AC2: 20 | AD2: 4 | AE2: 5 | AQ2: 1 | AR2: Unidades educativas o establecimientos, alumnos y personal docente en actividad, por sector, según modalidad y nivel | AS2: Unidades educativas, alumnos, docentes, sector, modalidad y nivel
A3: 2 | B3: =K2 -> Unidades educativas, alumnos, docentes, sector, dependencia y ámbito. | C3: 3 | E3: tabla | F3: =INDEX(Combotablas,ordentabla) -> Unidades educativas, alumnos, docentes, sector, modalidad y nivel | G3: 2. Inicial común | I3: 2 | K3: =IF($G$22=1,AR4,AS4) -> Unidades educativas, alumnos, docentes, sector y dpto. | L3: =IF($G$22=1,AR19,AS19) -> Unidades educativas, alumnos, docentes, sector y dpto. | M3: Unidades educativas, alumnos, docentes, sector y dpto. | N3: =IF($G$22=1,AR65,AS65) -> Bases, anexos, alumnos, docentes, sector y dpto. | O3: Bases, anexos, alumnos, docentes, sector y dpto. | P3: =IF($G$22=1,AR89,AS89) -> Alumnos, sexo, modalidad y nivel | Q3: =IF($G$22=1,AR92,AS92) -> Primario y secundario. Contexto de privación de la libertad. Alumnos, sexo y nivel | R3: =IF($G$22=1,AR112,AS112) -> Unidades educativas, alumnos, docentes, sector y dpto. | S3: =IF($G$22=1,AR116,AS116) -> Bases, anexos, alumnos, docentes y dpto. | U3: ntablas | V3: =HLOOKUP(ordenoferta,$V$1:$AE$2,2,FALSE) -> 1 | AQ3: 2 | AR3: Unidades educativas, alumnos y personal docente en actividad, por sector y dependencia, según ámbito | AS3: Unidades educativas, alumnos, docentes, sector, dependencia y ámbito.
A4: 2 | B4: =K3 -> Unidades educativas, alumnos, docentes, sector y dpto. | C4: 4 | E4: ordenhoja | F4: =VLOOKUP(tabla,rangotablahoja,2,FALSE) -> 2 | G4: 3. Primario común | I4: 3 | K4: =IF($G$22=1,AR5,AS5) -> Bases, anexos, sector, ámbito y dpto. | L4: Bases, anexos, sector, ámbito y dpto. | M4: Bases y anexos, sector, ámbito y dpto. | N4: Alumnos, sector, sexo y tipo de formación. | O4: Alumnos, sector, sexo y dpto. | P4: =IF($G$22=1,AR90,AS90) -> Alumnos, tipo de atención, modalidad y nivel | Q4: Primario. Unidades educativas, alumnos, docentes, sector, dependencia y ámbito | R4: =IF($G$22=1,AR113,AS113) -> Alumnos y tipo de oferta | S4: =IF($G$22=1,AR117,AS117) -> Alumnos, sexo y nivel | AQ4: 2 | AR4: Unidades educativas, alumnos, docente en actividad, sector y departamento | AS4: Unidades educativas, alumnos, docentes, sector y dpto. | BG4: ="Estadísticas Educativas - Anuario "&añoAnuario -> Estadísticas Educativas - Anuario 2021
A5: 2 | B5: Bases, anexos, sector, ámbito y dpto. | C5: 5 | E5: ordenhojaantesdecambiar | F5: 76 | G5: 4. Secundario común | I5: 4 | K5: Alumnos, sexo y dpto. | L5: Alumnos, sexo y dpto. | M5: Alumnos, sexo y dpto. | N5: Alumnos, sector, sexo y dpto. | O5: Alumnos, nivel de la educación formal y dpto. | Q5: Primario. Bases, anexos, alumnos, docentes, ámbito y dpto. | R5: =IF($G$22=1,AR114,AS114) -> Alumnos, sector, sexo y especialidad | S5: =IF($G$22=1,AR118,AS118) -> Docentes, origen y forma de designación | AQ5: 2 | AR5: Bases y anexos, por sector y ámbito, según departamento | AS5: Bases, anexos, sector, ámbito y dpto.
A6: 2 | B6: Alumnos, sexo y dpto. | C6: 6 | E6: ordenexport | F6: 1 | G6: 5. Superior | I6: 5 | K6: Sector estatal. Alumnos, ámbito, sexo y dpto. | L6: Sector estatal. Alumnos, ámbito, sexo y dpto. | M6: Sector estatal. Alumnos, ámbito, sexo y dpto. | N6: Ingresantes a 1° año, sector, sexo y dpto | O6: Promovidos de 6° grado de primario, egresados de secundario y dpto. | Q6: =IF($G$22=1,AR95,AS95) -> Primario. Alumnos, ámbito, sexo y dpto. | S6: =IF($G$22=1,AR119,AS119) -> Docentes, por sexo y dpto. | AQ6: 2 | AR6: Alumnos por sexo, según departamento | AS6: Alumnos, sexo y dpto.
A7: 2 | B7: Sector estatal. Alumnos, ámbito, sexo y dpto. | C7: 7 | G7: 6. Especial | I7: 6 | K7: Sector privado. Alumnos, ámbito, sexo y dpto. | L7: Sector privado. Alumnos, ámbito, sexo y dpto. | M7: Sector privado. Alumnos, ámbito, sexo y dpto. | N7: Alumnos, sector, tipo de carrera y tipo de rama | O7: Alumnos de educación no formal, sector y dpto. | Q7: Primario. Secciones, tipo de sección, ámbito y dpto. | AQ7: 2 | AR7: Alumnos por ámbito y sexo, según departamento. Sector estatal | AS7: Sector estatal. Alumnos, ámbito, sexo y dpto. | BG7: ="En este documento se presentan las estadísticas del año "&añoAnuario&" del sistema educativo de la provincia de Córdoba, para todos sus niveles y " -> En este documento se presentan las estadísticas del año 2021 del sistema educativo de la provincia de Córdoba, para todos sus niveles y
A8: 2 | B8: Sector privado. Alumnos, ámbito, sexo y dpto. | C8: 8 | G8: 7.Hospitalaria y Domiciliaria | I8: 7 | K8: Alumnos, tipo de jardín, salas, año lectivo y sector. | L8: Alumnos, grado y dpto. | M8: Alumnos, año de estudio y dpto. | N8: =IF($G$22=1,AR70,AS70) -> Egresados del ciclo lectivo anterior, sector, sexo y dpto. | O8: =IF($G$22=1,AR80,AS80) -> Alumnos integrados, sector de la escuela de origen y ciclo lectivo | Q8: Primario. Docentes, ámbito y dpto. | AQ8: 2 | AR8: Alumnos por ámbito y sexo, según departamento. Sector privado | AS8: Sector privado. Alumnos, ámbito, sexo y dpto.
A9: 2 | B9: Alumnos, tipo de jardín, salas, año lectivo y sector. | C9: 9 | G9: 8. Jóvenes y Adultos | I9: 8 | K9: Sector estatal. Alumnos, tipo de sección, tipo de jardín, sala y dpto. | L9: Alumnos, sector, tipo de sección y dpto. | M9: Ciclo básico. Alumnos, año de estudio, sexo y dpto. | N9: Docentes, lugar de origen, forma de designación y sector | O9: Cargos cubiertos de maestro integrador, sector y ciclo lectivo | Q9: Secundario. Unidades educativas, alumnos, docentes, sector y ámbito | AQ9: 2 | AR9: Alumnos de jardín maternal y de jardín de infantes, por salas de 3, 4 y 5, según año de relevamiento y sector | AS9: Alumnos, tipo de jardín, salas, año lectivo y sector.
A10: 2 | B10: Sector estatal. Alumnos, tipo de sección, tipo de jardín, sala y dpto. | C10: 10 | G10: 9. Artística | I10: 9 | K10: Sector privado. Alumnos, tipo de sección, tipo de jardín, sala y dpto. | L10: Alumnos, repitentes, sobreedad y dpto. | M10: Ciclo orientado. Alumnos, año de estudio, sexo y dpto. | N10: Docentes, sexo y dpto. | O10: Alumnos, tipo de integración y ciclo lectivo | Q10: Secundario. Unidades educativas, alumnos, docentes, sector y dpto. | AQ10: 2 | AR10: Sector estatal. Alumnos en secciones independientes de jardín maternal y de jardín de infantes, por salas de 3, 4 y 5 y alumnos en secciones múltiples, según departamento | AS10: Sector estatal. Alumnos, tipo de sección, tipo de jardín, sala y dpto. | BG10: ="Fuente: Subsecretaría de Planeamiento, Evaluación y Modernización, Área de Estadística e Información Educativa. Relevamiento Anual (RA) "&añoAnuario& "." -> Fuente: Subsecretaría de Planeamiento, Evaluación y Modernización, Área de Estadística e Información Educativa. Relevamiento Anual (RA) 2021.
A11: 2 | B11: Sector privado. Alumnos, tipo de sección, tipo de jardín, sala y dpto. | C11: 11 | G11: 10. Formación Profesional | I11: 10 | K11: Secciones, tipo de sección, tipo de jardín, sala y sector. | L11: Alumnos, repitentes, sexo y grado | M11: Alumnos, repetidores, sobreedad y dpto. | N11: Docentes, sector, ámbito, origen de la designación y dpto. | O11: Alumnos integrados, tipo de discapacidad y ciclo | Q11: Secundario. Bases, anexos, sector, ámbito y dpto. | AQ11: 2 | AR11: Sector privado. Alumnos en secciones independientes de jardín maternal y de jardín de infantes, por salas de 3, 4 y 5 y alumnos en secciones múltiples, según departamento | AS11: Sector privado. Alumnos, tipo de sección, tipo de jardín, sala y dpto. | BG11: ="Fuente: Subsecretaría de Planeamiento, Evaluación y Modernización, Área de Estadística e Información Educativa.Relevamientos Anuales (RA) " &añoAnuario - 4 & " - " &añoAnuario& "." -> Fuente: Subsecretaría de Planeamiento, Evaluación y Modernización, Área de Estadística e Información Educativa.Relevamientos Anuales (RA) 2017 - 2021.
A12: 2 | B12: Secciones, tipo de sección, tipo de jardín, sala y sector. | C12: 12 | G12: Anuario completo | I12: 11 | K12: Secciones, tipo de sección, tipo de jardín, sala, sector y dpto. | L12: Alumnos, sobreedad y grado | M12: Alumnos, repetidores, sexo y año de estudio | O12: Alumnos integrados, sector de la escuela de origen, tipo de discapacidad y ciclo | Q12: Secundario. Alumno, sector, ámbito, sexo y dpto. | AQ12: 2 | AR12: Secciones independientes de jardín maternal y de jardín de infantes, por salas de 3, 4 y 5 y secciones múltiples, según sector | AS12: Secciones, tipo de sección, tipo de jardín, sala y sector. | BG12: ="Fuente: Subsecretaría de Planeamiento, Evaluación y Modernización, Área de Estadística e Información Educativa.Relevamientos Anuales (RA) " &añoAnuario - 5 & " - " &añoAnuario& "." -> Fuente: Subsecretaría de Planeamiento, Evaluación y Modernización, Área de Estadística e Información Educativa.Relevamientos Anuales (RA) 2016 - 2021.
A13: 2 | B13: Secciones, tipo de sección, tipo de jardín, sala, sector y dpto. | C13: 13 | I13: 12 | K13: Secciones, tipo de sección, sector, ámbito y dpto. | L13: Tasas de promoción, no promoción y abandono anual, grado y año lectivo | M13: Alumnos, sobreedad y año de estudio | O13: Alumnos con discapacidad, tipo de seguimiento que reciben, modalidad y nivel | Q13: Secundario. Alumnos, ciclo, sector y ámbito | AQ13: 2 | AR13: Secciones independientes de jardín maternal y jardín de infantes, por salas de 3, 4 y 5 y secciones múltiples por sector, según departamento | AS13: Secciones, tipo de sección, tipo de jardín, sala, sector y dpto.
A14: 2 | B14: Secciones, tipo de sección, sector, ámbito y dpto. | C14: 14 | I14: 13 | K14: Docentes, sexo y dpto. | L14: Secciones, tipo de sección, sector, ámbito y dpto. | M14: Tasa de promoción, de no promoción y de abandono anual, año de estudio y ciclo lectivo | O14: Docentes, sector y dpto. | Q14: Secundario. Alumnos, modalidad de dictado y ámbito | AQ14: 2 | AR14: Secciones por sector, ámbito y tipo , según departamento | AS14: Secciones, tipo de sección, sector, ámbito y dpto.
A15: 2 | B15: Docentes, sexo y dpto. | C15: 15 | I15: 14 | K15: Docentes, sector, ámbito y dpto. | L15: Docentes, sexo y dpto. | M15: Egresados del ciclo lectivo anterior, sector, sexo y dpto. | O15: Cargos docentes cubiertos frente a alumnos, sector y dpto. | Q15: Secundario. Alumnos, sexo, modalidad de dictado y ámbito | AQ15: 2 | AR15: Personal docente en actividad, por sexo, según departamento | AS15: Docentes, sexo y dpto.
A16: 2 | B16: Docentes, sector, ámbito y dpto. | C16: 16 | I16: 15 | K16: Cargos docentes, tipo de cargo, sector, ámbito y dpto. | L16: Docentes, sector, ámbito y dpto. | M16: Secundaria orientada. Alumnos, sector, ámbito, ciclo y orientación | Q16: Secundario. Egresados del ciclo lectivo anterior, sexo y modalidad de dictado | AQ16: 2 | AR16: Personal docente en actividad, por sector y ámbito, según departamento | AS16: Docentes, sector, ámbito y dpto.
A17: 2 | B17: Cargos docentes, tipo de cargo, sector, ámbito y dpto. | C17: 17 | I17: 16 | L17: Cargos docentes, tipo de cargo, sector, ámbito y dpto. | M17: Secundaria técnica. Alumnos, sector, ámbito, ciclo y título | Q17: Secundario. Modalidad presencial. Egresados del ciclo lectivo anterior, sexo, plan y orientación | AQ17: 2 | AR17: Cargos docentes, tipo de cargo, sector, ámbito y dpto. | AS17: Cargos docentes, tipo de cargo, sector, ámbito y dpto.
A18: 3 | B18: =L2 -> Unidades educativas, alumnos, docentes, sector, dependencia y ámbito. | C18: 18 | I18: 17 | M18: Secundaria orientada. Alumnos, sector, sexo, ciclo y orientación | Q18: Secundario. Modalidad a distancia. Egresados del ciclo lectivo anterior, sexo y orientación | AQ18: 3 | AR18: Unidades educativas, alumnos y personal docente en actividad, por sector y dependencia, según ámbito | AS18: Unidades educativas, alumnos, docentes, sector, dependencia y ámbito.
A19: 3 | B19: =L3 -> Unidades educativas, alumnos, docentes, sector y dpto. | C19: 19 | I19: 18 | M19: Secundaria técnica. Alumnos, sector, sexo, ciclo y título | Q19: Secundario. Docentes, sector, lugar de origen y forma de designación | AQ19: 3 | AR19: Unidades educativas, alumnos y personal docente en actividad, por sector, según departamento | AS19: Unidades educativas, alumnos, docentes, sector y dpto.
A20: 3 | B20: Bases, anexos, sector, ámbito y dpto. | C20: 20 | I20: 19 | M20: Secundaria orientada. alumnos, repetidores, sobreedad y año de estudio | Q20: Secundario. Docentes, sexo y dpto. | AQ20: 3 | AR20: Bases y anexos, por sector y ámbito, según departamento | AS20: Bases, anexos, sector, ámbito y dpto.
A21: 3 | B21: Alumnos, sexo y dpto. | C21: 21 | I21: 20 | M21: Secundaria técnica. Alumnos, repetidores, sobreedad y año de estudio | Q21: =IF($G$22=1,AR110,AS110) -> Secundario. Docentes, sector, ámbito y dpto. | AQ21: 3 | AR21: Alumnos por sexo, según departamento | AS21: Alumnos, sexo y dpto.
A22: 3 | B22: Sector estatal. Alumnos, ámbito, sexo y dpto. | C22: 22 | G22: 2 | I22: 21 | M22: Secundaria orientada. Egresados del ciclo lectivo anterior, sector, sexo y orientación | AQ22: 3 | AR22: Alumnos por ámbito y sexo, según departamento - Sector estatal | AS22: Sector estatal. Alumnos, ámbito, sexo y dpto.
A23: 3 | B23: Sector privado. Alumnos, ámbito, sexo y dpto. | C23: 23 | G23: Título de tabla | I23: 22 | M23: Secundaria técnica. Egresados del ciclo lectivo anterior, sector, sexo y título | AQ23: 3 | AR23: Alumnos por ámbito y sexo, según departamento - Sector privado | AS23: Sector privado. Alumnos, ámbito, sexo y dpto.
A24: 3 | B24: Alumnos, grado y dpto. | C24: 24 | G24: Variables en la tabla | I24: 23 | M24: PIT. Alumnos, sector, sexo y ámbito | AQ24: 3 | AR24: Alumnos por grado, según departamento | AS24: Alumnos, grado y dpto.
A25: 3 | B25: Alumnos, sector, tipo de sección y dpto. | C25: 25 | I25: 24 | M25: PIT. Alumnos, sexo y ciclo lectivo | AQ25: 3 | AR25: Alumnos por sector y tipo de sección, según departamento | AS25: Alumnos, sector, tipo de sección y dpto.
A26: 3 | B26: Alumnos, repitentes, sobreedad y dpto. | C26: 26 | I26: 25 | M26: PIT. Egresados del ciclo lectivo anterior, sector, sexo y dpto. | AQ26: 3 | AR26: Total de alumnos, total y porcentaje de alumnos repitentes y con sobreedad, según departamento | AS26: Alumnos, repitentes, sobreedad y dpto.
A27: 3 | B27: Alumnos, repitentes, sexo y grado | C27: 27 | I27: 26 | M27: Secciones, tipo de sección, sector, ámbito y dpto. | AQ27: 3 | AR27: Total de alumnos, total y porcentaje de alumnos repitentes por sexo, según grado | AS27: Alumnos, repitentes, sexo y grado
A28: 3 | B28: Alumnos, sobreedad y grado | C28: 27 | I28: 27 | M28: Docentes, lugar de origen, forma de designación y sector | AQ28: 3 | AR28: Total de alumnos, total y porcentaje de alumnos con sobreedad, según grado | AS28: Alumnos, sobreedad y grado
A29: 3 | B29: Tasas de promoción, no promoción y abandono anual, grado y año lectivo | C29: 28 | I29: 28 | M29: Docente, sexo y dpto. | AQ29: 3 | AR29: Tasa de promoción, de no promoción y de abandono anual, por año de estudio, según ciclo lectivo | AS29: Tasas de promoción, no promoción y abandono anual, grado y año lectivo
A30: 3 | B30: Secciones, tipo de sección, sector, ámbito y dpto. | C30: 29 | I30: 29 | M30: Docentes, lugar de origen de la designación y dpto. | AQ30: 3 | AR30: Secciones por sector, ámbito y tipo, según departamento | AS30: Secciones, tipo de sección, sector, ámbito y dpto.
A31: 3 | B31: Docentes, sexo y dpto. | C31: 30 | I31: 30 | M31: Docente, sector, ámbito, lugar de origen de la designación y dpto. | AQ31: 3 | AR31: Personal docente en actividad, por sexo, según departamento | AS31: Docentes, sexo y dpto.
A32: 3 | B32: Docentes, sector, ámbito y dpto. | C32: 31 | I32: 31 | AQ32: 3 | AR32: Personal docente en actividad, por sector y ámbito, según departamento | AS32: Docentes, sector, ámbito y dpto.
A33: 3 | B33: Cargos docentes, tipo de cargo, sector, ámbito y dpto. | C33: 32 | AQ33: 3 | AR33: Cargos docentes cubiertos frente a alumnos, por tipo de cargo, sector y ámbito, según departamento | AS33: Cargos docentes, tipo de cargo, sector, ámbito y dpto.
A34: 4 | B34: =M2 -> Unidades educativas, alumnos, docentes, sector, dependencia y ámbito | C34: 33 | AQ34: 4 | AR34: Unidades educativas, alumnos y personal docente en actividad, por sector y dependencia, según ámbito | AS34: Unidades educativas, alumnos, docentes, sector, dependencia y ámbito
A35: 4 | B35: =M3 -> Unidades educativas, alumnos, docentes, sector y dpto. | C35: 34 | AQ35: 4 | AR35: Unidades educativas, alumnos y personal docente en actividad, por sector, según departamento | AS35: Unidades educativas, alumnos, docentes, sector y dpto.
A36: 4 | B36: Bases y anexos, sector, ámbito y dpto. | C36: 35 | AQ36: 4 | AR36: Bases y anexos, por sector y ámbito, según departamento | AS36: Bases y anexos, sector, ámbito y dpto.
A37: 4 | B37: Alumnos, sexo y dpto. | C37: 36 | AQ37: 4 | AR37: Alumnos por sexo, según departamento | AS37: Alumnos, sexo y dpto.
A38: 4 | B38: Sector estatal. Alumnos, ámbito, sexo y dpto. | C38: 37 | AQ38: 4 | AR38: Sector estatal. Alumnos por ámbito y sexo, según departamento | AS38: Sector estatal. Alumnos, ámbito, sexo y dpto.
A39: 4 | B39: Sector privado. Alumnos, ámbito, sexo y dpto. | C39: 38 | AQ39: 4 | AR39: Sector privado. Alumnos por ámbito y sexo, según departamento | AS39: Sector privado. Alumnos, ámbito, sexo y dpto.
A40: 4 | B40: Alumnos, año de estudio y dpto. | C40: 39 | AQ40: 4 | AR40: Alumnos por año de estudio, según departamento | AS40: Alumnos, año de estudio y dpto.
A41: 4 | B41: Ciclo básico. Alumnos, año de estudio, sexo y dpto. | C41: 40 | AQ41: 4 | AR41: Ciclo básico. Alumnos por año de estudio y sexo, según departamento | AS41: Ciclo básico. Alumnos, año de estudio, sexo y dpto.
A42: 4 | B42: Ciclo orientado. Alumnos, año de estudio, sexo y dpto. | C42: 41 | AQ42: 4 | AR42: Ciclo orientado. Alumnos por año de estudio y sexo, según departamento | AS42: Ciclo orientado. Alumnos, año de estudio, sexo y dpto.
A43: 4 | B43: Alumnos, repetidores, sobreedad y dpto. | C43: 42 | AQ43: 4 | AR43: Total de alumnos, total y porcentaje de alumnos repetidores y con sobreedad, según departamento | AS43: Alumnos, repetidores, sobreedad y dpto.
A44: 4 | B44: Alumnos, repetidores, sexo y año de estudio | C44: 43 | AQ44: 4 | AR44: Total de alumnos, total y porcentaje de alumnos repetidores, por sexo, según año de estudio | AS44: Alumnos, repetidores, sexo y año de estudio
A45: 4 | B45: Alumnos, sobreedad y año de estudio | C45: 44 | AQ45: 4 | AR45: Total de alumnos, total y porcentaje de alumnos con sobreedad, según año de estudio | AS45: Alumnos, sobreedad y año de estudio
A46: 4 | B46: Tasa de promoción, de no promoción y de abandono anual, año de estudio y ciclo lectivo | C46: 45 | AQ46: 4 | AR46: Tasa de promoción, de no promoción y de abandono anual, por año de estudio, según ciclo lectivo | AS46: Tasa de promoción, de no promoción y de abandono anual, año de estudio y ciclo lectivo
A47: 4 | B47: Egresados del ciclo lectivo anterior, sector, sexo y dpto. | C47: 46 | AQ47: 4 | AR47: Alumnos egresados del ciclo lectivo anterior, por sector y sexo, según departamento | AS47: Egresados del ciclo lectivo anterior, sector, sexo y dpto.
A48: 4 | B48: Secundaria orientada. Alumnos, sector, ámbito, ciclo y orientación | C48: 47 | AQ48: 4 | AR48: Secundaria orientada. Alumnos por sector y ámbito, según ciclo y orientación | AS48: Secundaria orientada. Alumnos, sector, ámbito, ciclo y orientación
A49: 4 | B49: Secundaria técnica. Alumnos, sector, ámbito, ciclo y título | C49: 48 | AQ49: 4 | AR49: Secundaria técnica. Alumnos por sector y ámbito, según ciclo y título | AS49: Secundaria técnica. Alumnos, sector, ámbito, ciclo y título
A50: 4 | B50: Secundaria orientada. Alumnos, sector, sexo, ciclo y orientación | C50: 49 | AQ50: 4 | AR50: Secundaria orientada. Alumnos por sector y sexo, según ciclo y orientación | AS50: Secundaria orientada. Alumnos, sector, sexo, ciclo y orientación
A51: 4 | B51: Secundaria técnica. Alumnos, sector, sexo, ciclo y título | C51: 50 | AQ51: 4 | AR51: Secundaria técnica. Alumnos por sector y sexo, según ciclo y título | AS51: Secundaria técnica. Alumnos, sector, sexo, ciclo y título
A52: 4 | B52: Secundaria orientada. alumnos, repetidores, sobreedad y año de estudio | C52: 51 | AQ52: 4 | AR52: Secundaria orientada. Total de alumnos, total y porcentaje de alumnos repetidores y con sobreedad, según año de estudio | AS52: Secundaria orientada. alumnos, repetidores, sobreedad y año de estudio
A53: 4 | B53: Secundaria técnica. Alumnos, repetidores, sobreedad y año de estudio | C53: 52 | AQ53: 4 | AR53: Secundaria técnica. Total de alumnos, total y porcentaje de alumnos repetidores y con sobreedad, según año de estudio | AS53: Secundaria técnica. Alumnos, repetidores, sobreedad y año de estudio
A54: 4 | B54: Secundaria orientada. Egresados del ciclo lectivo anterior, sector, sexo y orientación | C54: 53 | AQ54: 4 | AR54: Secundaria orientada. Alumnos egresados del ciclo lectivo anterior por sector y sexo, según orientación | AS54: Secundaria orientada. Egresados del ciclo lectivo anterior, sector, sexo y orientación
A55: 4 | B55: Secundaria técnica. Egresados del ciclo lectivo anterior, sector, sexo y título | C55: 54 | AQ55: 4 | AR55: Secundaria técnica. Alumnos egresados del ciclo lectivo anterior por sector y sexo, según título | AS55: Secundaria técnica. Egresados del ciclo lectivo anterior, sector, sexo y título
A56: 4 | B56: PIT. Alumnos, sector, sexo y ámbito | C56: 55 | AQ56: 4 | AR56: Alumnos en el Programa de Inclusión y Terminalidad Educativa (PIT) por sector y sexo, según ámbito | AS56: PIT. Alumnos, sector, sexo y ámbito
A57: 4 | B57: PIT. Alumnos, sexo y ciclo lectivo | C57: 56 | AQ57: 4 | AR57: Alumnos en el Programa de Inclusión y Terminalidad Educativa (PIT) por sexo, según ciclo lectivo | AS57: PIT. Alumnos, sexo y ciclo lectivo
A58: 4 | B58: PIT. Egresados del ciclo lectivo anterior, sector, sexo y dpto. | C58: 57 | AQ58: 4 | AR58: Alumnos egresados del ciclo lectivo anterior del Programa de Inclusión y Terminalidad Educativa (PIT) por sector y sexo, según departamento | AS58: PIT. Egresados del ciclo lectivo anterior, sector, sexo y dpto.
A59: 4 | B59: Secciones, tipo de sección, sector, ámbito y dpto. | C59: 58 | AQ59: 4 | AR59: Secciones por sector, ámbito y tipo, según departamento | AS59: Secciones, tipo de sección, sector, ámbito y dpto.
A60: 4 | B60: Docentes, lugar de origen, forma de designación y sector | C60: 59 | AQ60: 4 | AR60: Personal docente en actividad, por lugar de origen y forma de designación, según sector | AS60: Docentes, lugar de origen, forma de designación y sector
A61: 4 | B61: Docente, sexo y dpto. | C61: 60 | AQ61: 4 | AR61: Personal docente en actividad, por sexo, según departamento | AS61: Docente, sexo y dpto.
A62: 4 | B62: Docentes, lugar de origen de la designación y dpto. | C62: 61 | AQ62: 4 | AR62: Personal docente en actividad, por lugar de origen de la designación, según departamento | AS62: Docentes, lugar de origen de la designación y dpto.
A63: 4 | B63: Docente, sector, ámbito, lugar de origen de la designación y dpto. | C63: 62 | AQ63: 4 | AR63: Personal docente en actividad, por sector, ámbito y lugar de origen de la designación, según departamento | AS63: Docente, sector, ámbito, lugar de origen de la designación y dpto.
A64: 5 | B64: =N2 -> Unidades educativas, alumnos, docentes, sector y dependencia | C64: 63 | AQ64: 5 | AR64: Unidades educativas, alumnos y personal docente en actividad, por sector y dependencia | AS64: Unidades educativas, alumnos, docentes, sector y dependencia
A65: 5 | B65: =N3 -> Bases, anexos, alumnos, docentes, sector y dpto. | C65: 64 | AQ65: 5 | AR65: Bases, anexos, alumnos y personal docente en actividad, por sector, según departamento | AS65: Bases, anexos, alumnos, docentes, sector y dpto.
A66: 5 | B66: Alumnos, sector, sexo y tipo de formación. | C66: 65 | AQ66: 5 | AR66: Alumnos por sector y sexo, según el tipo de formación | AS66: Alumnos, sector, sexo y tipo de formación.
A67: 5 | B67: Alumnos, sector, sexo y dpto. | C67: 66 | AQ67: 5 | AR67: Alumnos por sector y sexo, según departamento | AS67: Alumnos, sector, sexo y dpto.
A68: 5 | B68: Ingresantes a 1° año, sector, sexo y dpto | C68: 67 | AQ68: 5 | AR68: Alumnos ingresantes a 1° año, por sector y sexo, según departamento | AS68: Ingresantes a 1° año, sector, sexo y dpto
A69: 5 | B69: Alumnos, sector, tipo de carrera y tipo de rama | C69: 68 | AQ69: 5 | AR69: Alumnos por sector, según tipo de carrera y rama | AS69: Alumnos, sector, tipo de carrera y tipo de rama
A70: 5 | B70: Egresados del ciclo lectivo anterior, sector, sexo y dpto. | C70: 69 | AQ70: 5 | AR70: Alumnos egresados del ciclo lectivo anterior, por sector y sexo, según departamento | AS70: Egresados del ciclo lectivo anterior, sector, sexo y dpto.
A71: 5 | B71: Docentes, lugar de origen, forma de designación y sector | C71: 70 | AQ71: 5 | AR71: Personal docente en actividad, por lugar de origen y forma de designación, según sector | AS71: Docentes, lugar de origen, forma de designación y sector
A72: 5 | B72: Docentes, sexo y dpto. | C72: 71 | AQ72: 5 | AR72: Personal docente en actividad, por sexo, según departamento | AS72: Docentes, sexo y dpto.
A73: 5 | B73: Docentes, sector, ámbito, origen de la designación y dpto. | C73: 72 | AQ73: 5 | AR73: Personal docente en actividad, por sector, ámbito y origen de la designación, según departamento | AS73: Docentes, sector, ámbito, origen de la designación y dpto.
A74: 6 | B74: =O2 -> Establecimientos, alumnos, docentes, y sector | C74: 73 | AQ74: 6 | AR74: Establecimientos, alumnos y personal docente en actividad, por sector | AS74: Establecimientos, alumnos, docentes, y sector
A75: 6 | B75: Bases, anexos, alumnos, docentes, sector y dpto. | C75: 74 | AQ75: 6 | AR75: Bases, anexos, alumnos y personal docente en actividad, por sector, según departamento | AS75: Bases, anexos, alumnos, docentes, sector y dpto.
A76: 6 | B76: Alumnos, sector, sexo y dpto. | C76: 75 | AQ76: 6 | AR76: Alumnos por sector y sexo, según departamento | AS76: Alumnos, sector, sexo y dpto.
A77: 6 | B77: Alumnos, nivel de la educación formal y dpto. | C77: 76 | AQ77: 6 | AR77: Alumnos por nivel de la educación formal, según departamento | AS77: Alumnos, nivel de la educación formal y dpto.
A78: 6 | B78: Promovidos de 6° grado de primario, egresados de secundario y dpto. | C78: 76 | AQ78: 6 | AR78: Alumnos promovidos del nivel primario y egresados del nivel secundario, según departamento | AS78: Promovidos de 6° grado de primario, egresados de secundario y dpto.
A79: 6 | B79: Alumnos de educación no formal, sector y dpto. | C79: 77 | AQ79: 6 | AR79: Alumnos de educación no formal por sector, según departamento | AS79: Alumnos de educación no formal, sector y dpto.
A80: 6 | B80: =O8 -> Alumnos integrados, sector de la escuela de origen y ciclo lectivo | C80: 78 | AQ80: 6 | AR80: Evolución del total de alumnos integrados, por sector de la escuela de origen | AS80: Alumnos integrados, sector de la escuela de origen y ciclo lectivo
A81: 6 | B81: Cargos cubiertos de maestro integrador, sector y ciclo lectivo | C81: 78 | AQ81: 6 | AR81: Evolución del total de cargos cubiertos de maestro integrador, por sector | AS81: Cargos cubiertos de maestro integrador, sector y ciclo lectivo
A82: 6 | B82: Alumnos, tipo de integración y ciclo lectivo | C82: 78 | AQ82: 6 | AR82: Evolución del total de alumnos por tipo de integración. | AS82: Alumnos, tipo de integración y ciclo lectivo
A83: 6 | B83: Alumnos integrados, tipo de discapacidad y ciclo | C83: 79 | AQ83: 6 | AR83: Evolución del total de alumnos integrados, por tipo de discapacidad | AS83: Alumnos integrados, tipo de discapacidad y ciclo
A84: 6 | B84: Alumnos integrados, sector de la escuela de origen, tipo de discapacidad y ciclo | C84: 80 | AQ84: 6 | AR84: Evolución del total de alumnos integrados por sector de la escuela de origen y tipo de discapacidad | AS84: Alumnos integrados, sector de la escuela de origen, tipo de discapacidad y ciclo
A85: 6 | B85: Alumnos con discapacidad, tipo de seguimiento que reciben, modalidad y nivel | C85: 81 | AQ85: 6 | AR85: Alumnos con discapacidad, por tipo de seguimiento que reciben, según modalidad y nivel en el que cursan | AS85: Alumnos con discapacidad, tipo de seguimiento que reciben, modalidad y nivel
A86: 6 | B86: Docentes, sector y dpto. | C86: 82 | AQ86: 6 | AR86: Personal docente en actividad, por sector, según departamento | AS86: Docentes, sector y dpto.
A87: 6 | B87: Cargos docentes cubiertos frente a alumnos, sector y dpto. | C87: 83 | AQ87: 6 | AR87: Cargos docentes cubiertos frente a alumnos, por sector, según departamento | AS87: Cargos docentes cubiertos frente a alumnos, sector y dpto.
A88: 7 | B88: =P2 -> Establecimientos, alumnos, docentes, sector y dependencia | C88: 84 | AQ88: 7 | AR88: Establecimientos, alumnos y personal docente en actividad, por sector y dependencia | AS88: Establecimientos, alumnos, docentes, sector y dependencia
A89: 7 | B89: =P3 -> Alumnos, sexo, modalidad y nivel | C89: 85 | AQ89: 7 | AR89: Alumnos por sexo, según modalidad y nivel | AS89: Alumnos, sexo, modalidad y nivel
A90: 7 | B90: =P4 -> Alumnos, tipo de atención, modalidad y nivel | C90: 86 | AQ90: 7 | AR90: Alumnos por tipo de atención, según modalidad y nivel | AS90: Alumnos, tipo de atención, modalidad y nivel
A91: 8 | B91: =Q2 -> Primario y secundario. Unidades educativas, alumnos, docentes, sector y ámbito | C91: 87 | AQ91: 8 | AR91: Primario y secundario. Unidades educativas, alumnos y personal docente en actividad, por sector, según ámbito | AS91: Primario y secundario. Unidades educativas, alumnos, docentes, sector y ámbito
A92: 8 | B92: =Q3 -> Primario y secundario. Contexto de privación de la libertad. Alumnos, sexo y nivel | C92: 88 | AQ92: 8 | AR92: Primario y secundario. Alumnos matriculados en contexto de privación de la libertad, por sexo, según nivel al que asisten | AS92: Primario y secundario. Contexto de privación de la libertad. Alumnos, sexo y nivel
A93: 8 | B93: Primario. Unidades educativas, alumnos, docentes, sector, dependencia y ámbito | C93: 89 | AQ93: 8 | AR93: Primario. Unidades educativas, alumnos y personal docente en actividad, por sector y dependencia, según ámbito | AS93: Primario. Unidades educativas, alumnos, docentes, sector, dependencia y ámbito
A94: 8 | B94: Primario. Bases, anexos, alumnos, docentes, ámbito y dpto. | C94: 90 | AQ94: 8 | AR94: Primario. Bases, anexos, alumnos y personal docente en actividad, por ámbito, según departamento | AS94: Primario. Bases, anexos, alumnos, docentes, ámbito y dpto.
A95: 8 | B95: Primario. Alumnos, ámbito, sexo y dpto. | C95: 91 | AQ95: 8 | AR95: Primario. Alumnos por ámbito y sexo, según departamento | AS95: Primario. Alumnos, ámbito, sexo y dpto.
A96: 8 | B96: Primario. Secciones, tipo de sección, ámbito y dpto. | C96: 92 | AQ96: 8 | AR96: Primario. Secciones por ámbito y tipo, según departamento | AS96: Primario. Secciones, tipo de sección, ámbito y dpto.
A97: 8 | B97: Primario. Docentes, ámbito y dpto. | C97: 93 | AQ97: 8 | AR97: Primario. Personal docente en actividad, por ámbito, según departamento | AS97: Primario. Docentes, ámbito y dpto.
A98: 8 | B98: Secundario. Unidades educativas, alumnos, docentes, sector y ámbito | C98: 94 | AQ98: 8 | AR98: Secundario. Unidades educativas, alumnos y personal docente en actividad, por sector, según ámbito | AS98: Secundario. Unidades educativas, alumnos, docentes, sector y ámbito
A99: 8 | B99: Secundario. Unidades educativas, alumnos, docentes, sector y dpto. | C99: 95 | AQ99: 8 | AR99: Secundario. Unidades educativas, alumnos y personal docente en actividad, por sector, según departamento | AS99: Secundario. Unidades educativas, alumnos, docentes, sector y dpto.
A100: 8 | B100: Secundario. Bases, anexos, sector, ámbito y dpto. | C100: 96 | AQ100: 8 | AR100: Secundario. Bases y anexos, por sector y ámbito, según departamento | AS100: Secundario. Bases, anexos, sector, ámbito y dpto.
A101: 8 | B101: Secundario. Alumno, sector, ámbito, sexo y dpto. | C101: 97 | AQ101: 8 | AR101: Secundario. Alumnos por sector, ámbito y sexo, según departamento | AS101: Secundario. Alumno, sector, ámbito, sexo y dpto.
A102: 8 | B102: Secundario. Alumnos, ciclo, sector y ámbito | C102: 98 | AQ102: 8 | AR102: Secundario. Alumnos por ciclo y sector, según ámbito | AS102: Secundario. Alumnos, ciclo, sector y ámbito
A103: 8 | B103: Secundario. Alumnos, modalidad de dictado y ámbito | C103: 99 | AQ103: 8 | AR103: Secundario. Alumnos por sector, según modalidad de dictado y ámbito | AS103: Secundario. Alumnos, modalidad de dictado y ámbito
A104: 8 | B104: Secundario. Alumnos, sexo, modalidad de dictado y ámbito | C104: 99 | AQ104: 8 | AR104: Secundario. Alumnos por sexo, según modalidad de dictado y ámbito | AS104: Secundario. Alumnos, sexo, modalidad de dictado y ámbito
A105: 8 | B105: Secundario. Egresados del ciclo lectivo anterior, sexo y modalidad de dictado | C105: 100 | AQ105: 8 | AR105: Secundario. Alumnos egresados del ciclo lectivo anterior, por sexo, según modalidad de dictado | AS105: Secundario. Egresados del ciclo lectivo anterior, sexo y modalidad de dictado
A106: 8 | B106: Secundario. Modalidad presencial. Egresados del ciclo lectivo anterior, sexo, plan y orientación | C106: 101 | AQ106: 8 | AR106: Secundario. Modalidad presencial Alumnos egresados del ciclo lectivo anterior, por sexo, según plan y orientación | AS106: Secundario. Modalidad presencial. Egresados del ciclo lectivo anterior, sexo, plan y orientación
A107: 8 | B107: Secundario. Modalidad a distancia. Egresados del ciclo lectivo anterior, sexo y orientación | C107: 101 | AQ107: 8 | AR107: Secundario. Modalidad a distancia Alumnos egresados del ciclo lectivo anterior, por sexo, según orientación | AS107: Secundario. Modalidad a distancia. Egresados del ciclo lectivo anterior, sexo y orientación
A108: 8 | B108: Secundario. Docentes, sector, lugar de origen y forma de designación | C108: 102 | AQ108: 8 | AR108: Secundario. Personal docente en actividad, por sector, según lugar de origen y forma de designación | AS108: Secundario. Docentes, sector, lugar de origen y forma de designación
A109: 8 | B109: Secundario. Docentes, sexo y dpto. | C109: 103 | AQ109: 8 | AR109: Secundario. Personal docente en actividad, por sexo, según departamento | AS109: Secundario. Docentes, sexo y dpto.
A110: 8 | B110: Secundario. Docentes, sector, ámbito y dpto. | C110: 104 | AQ110: 8 | AR110: Secundario. Personal docente en actividad, por sector y ámbito, según departamento | AS110: Secundario. Docentes, sector, ámbito y dpto.
A111: 9 | B111: =R2 -> Unidades educativas, alumnos, docentes y sector | C111: 105 | AQ111: 9 | AR111: Unidades educativas, alumnos y personal docente en actividad, por sector | AS111: Unidades educativas, alumnos, docentes y sector
A112: 9 | B112: =R3 -> Unidades educativas, alumnos, docentes, sector y dpto. | C112: 106 | AQ112: 9 | AR112: Unidades educativas, alumnos y personal docente en actividad, por sector, según departamento | AS112: Unidades educativas, alumnos, docentes, sector y dpto.
A113: 9 | B113: =R4 -> Alumnos y tipo de oferta | C113: 107 | AQ113: 9 | AR113: Alumnos por tipo de oferta a la que asisten | AS113: Alumnos y tipo de oferta
A114: 9 | B114: =R5 -> Alumnos, sector, sexo y especialidad | C114: 108 | AQ114: 9 | AR114: Alumnos por sector y sexo, según especialidad | AS114: Alumnos, sector, sexo y especialidad
A115: 10 | B115: =S2 -> Unidades de servicio, alumnos, docentes y organismo de dependencia | C115: 109 | AQ115: 10 | AR115: Unidades de servicio, alumnos y personal docente en actividad, según organismo de dependencia | AS115: Unidades de servicio, alumnos, docentes y organismo de dependencia
A116: 10 | B116: =S3 -> Bases, anexos, alumnos, docentes y dpto. | C116: 110 | AQ116: 10 | AR116: Bases, anexos, alumnos y personal docente, en actividad, según departamento | AS116: Bases, anexos, alumnos, docentes y dpto.
A117: 10 | B117: =S4 -> Alumnos, sexo y nivel | C117: 111 | AQ117: 10 | AR117: Alumnos por sexo, según niveles de estudio obligatorios | AS117: Alumnos, sexo y nivel
A118: 10 | B118: =S5 -> Docentes, origen y forma de designación | C118: 112 | AQ118: 10 | AR118: Personal docente en actividad, por origen y forma de designación | AS118: Docentes, origen y forma de designación
A119: 10 | B119: =S6 -> Docentes, por sexo y dpto. | C119: 113 | AQ119: 10 | AR119: Personal docente en actividad, por sexo, según departamento | AS119: Docentes, por sexo y dpto.

Sheet Datos generales (hidden)
R1: Anuario | S1: 2021
B2: CUADRO 1.1. Unidades educativas o establecimientos, alumnos y personal docente en actividad, por sector, según modalidad y nivel | F2: 1
B3: Modalidad | C3: Nivel | D3: Unidades educativas/ establecimientos | G3: Alumnos | J3: Personal docente (*)
D4: Total | E4: Estatal | F4: Privado | G4: Total | H4: Estatal | I4: Privado | J4: Total | K4: Estatal | L4: Privado
B5: Común | C5: Inicial | D5: ='C 2.1'!D5 -> 1746 | E5: ='C 2.1'!E5+'C 2.1'!F5+'C 2.1'!G5 -> 1438 | F5: ='C 2.1'!H5 -> 308 | G5: ='C 2.1'!D8 -> 136359 | H5: ='C 2.1'!E8+'C 2.1'!F8+'C 2.1'!G8 -> 100655 | I5: ='C 2.1'!H8 -> 35704 | J5: ='C 2.1'!D11 -> 9654 | K5: ='C 2.1'!E11+'C 2.1'!F11+'C 2.1'!G11 -> 6013 | L5: ='C 2.1'!H11 -> 3641
C6: Primario | D6: ='CP C3.1'!D5 -> 2067 | E6: =SUM('CP C3.1'!E5:G5) -> 1757 | F6: ='CP C3.1'!H5 -> 310 | G6: ='CP C3.1'!D8 -> 359573 | H6: =SUM('CP C3.1'!E8:G8) -> 262202 | I6: ='CP C3.1'!H8 -> 97371 | J6: ='CP C3.1'!D11 -> 31206 | K6: =SUM('CP C3.1'!E11:G11) -> 23387 | L6: ='CP C3.1'!H11 -> 7819
C7: Secundario | D7: ='CSC4.1'!D5 -> 904 | E7: =SUM('CSC4.1'!E5:F5) -> 495 | F7: ='CSC4.1'!G5 -> 409 | G7: ='CSC4.1'!D8 -> 344714 | H7: =SUM('CSC4.1'!E8:F8) -> 208685 | I7: ='CSC4.1'!G8 -> 136029 | J7: ='CSC4.1'!D11 -> 59430 | K7: =SUM('CSC4.1'!E11:F11) -> 39720 | L7: ='CSC4.1'!G11 -> 19710
C8: Superior | D8: ='S C5.1'!C6 -> 208 | E8: =SUM('S C5.1'!D6:E6) -> 83 | F8: ='S C5.1'!F6 -> 125 | G8: ='S C5.1'!C7 -> 76907 | H8: =SUM('S C5.1'!D7:E7) -> 44059 | I8: ='S C5.1'!F7 -> 32848 | J8: ='S C5.1'!C8 -> 11076 | K8: =SUM('S C5.1'!D8:E8) -> 6207 | L8: ='S C5.1'!F8 -> 4869
B9: Especial | C9: Todos los niveles (**) | D9: ='EC6.1'!D4 -> 100 | E9: ='EC6.1'!E4 -> 58 | F9: ='EC6.1'!F4 -> 42 | G9: ='EC6.1'!D5 -> 5406 | H9: ='EC6.1'!E5 -> 3077 | I9: ='EC6.1'!F5 -> 2329 | J9: ='EC6.1'!D6 -> 2633 | K9: ='EC6.1'!E6 -> 1706 | L9: ='EC6.1'!F6 -> 927
B10: Hospitalaria y domiciliaria | C10: Todos los niveles (**) | D10: ='Cuadro 7.1. '!C5 -> 3 | E10: =SUM('Cuadro 7.1. '!D5:E5) -> 2 | F10: ='Cuadro 7.1. '!F5 -> 1 | G10: ='Cuadro 7.1. '!C6 -> 165 | H10: =SUM('Cuadro 7.1. '!D6:E6) -> 151 | I10: ='Cuadro 7.1. '!F6 -> 14 | J10: ='Cuadro 7.1. '!C7 -> 57 | K10: =SUM('Cuadro 7.1. '!D7:E7) -> 44 | L10: ='Cuadro 7.1. '!F7 -> 13
B11: Jóvenes y Adultos | C11: Primario | D11: ='C.8.3.'!D5 -> 188 | E11: =SUM('C.8.3.'!E5:F5) -> 187 | F11: ='C.8.3.'!G5 -> 1 | G11: ='C.8.3.'!D8 -> 5155 | H11: =SUM('C.8.3.'!E8:F8) -> 5131 | I11: ='C.8.3.'!G8 -> 24 | J11: ='C.8.3.'!D11 -> 478 | K11: =SUM('C.8.3.'!E11:F11) -> 476 | L11: ='C.8.3.'!G11 -> 2
C12: Secundario | D12: ='C. 8.8'!D4 -> 136 | E12: ='C. 8.8'!E4 -> 109 | F12: ='C. 8.8'!F4 -> 27 | G12: ='C. 8.8'!D6 -> 43799 | H12: ='C. 8.8'!E6 -> 38530 | I12: ='C. 8.8'!F6 -> 5269 | J12: ='C. 8.8'!D9 -> 7291 | K12: ='C. 8.8'!E9 -> 6793 | L12: ='C. 8.8'!F9 -> 498
B13: Artística | D13: ='C.9.1'!C4 -> 34 | E13: ='C.9.1'!D4 -> 29 | F13: ='C.9.1'!E4 -> 5 | G13: ='C.9.1'!C5 -> 6548 | H13: ='C.9.1'!D5 -> 5903 | I13: ='C.9.1'!E5 -> 645 | J13: ='C.9.1'!C6 -> 655 | K13: ='C.9.1'!D6 -> 577 | L13: ='C.9.1'!E6 -> 78
B14: Formación Profesional (***) | D14: ='FP C10.1'!C4 -> 49 | E14: ='FP C10.1'!C4 -> 49 | G14: ='FP C10.1'!D4 -> 15373 | H14: ='FP C10.1'!D4 -> 15373 | J14: ='FP C10.1'!E4 -> 426 | K14: ='FP C10.1'!E4 -> 426
B16: (*) El personal docente en actividad hace referencia a todas las personas con designación docente que se desempeñan en las unidades educativas del nivel y/o modalidad correspondiente. Por esta razón, se cuentan tantas veces como ofertas en las que trabajan.
B17: (**) Aquí se consignan establecimientos y no unidades educativas (puesto que ellas se vinculan a las formas de implementación del nivel). Esto es así porque en la Provincia, las modalidades especial y hospitalaria y domiciliaria se organizan en establecimientos con una máxima autoridad pedagógica y con una única partida presupuestaria, en los que se imparte distintos niveles de enseñanza. De allí que en un mismo establecimiento coexisten varias unidades educativas y en la medida que los docentes son parte de la misma planta funcional, no es posible discriminar quién trabaja para cada una de ellas (salvo raras excepciones)
B18: ="(***) Se incluye únicamente la oferta dependiente del Ministerio de Educación, por lo que no figuran los cursos dictados por otros ministerios (provinciales o nacionales)"&", por la municipalidad de Córdoba u otros municipios ni por las universidades. Para esta oferta están contabilizadas las unidades de servicio que estaban dictando cursos al momento del Relevamiento Anual "&añoAnuario&"." -> (***) Se incluye únicamente la oferta dependiente del Ministerio de Educación, por lo que no figuran los cursos dictados por otros ministerios (provinciales o nacionales), por la municipalidad de Córdoba u otros municipios ni por las universidades. Para esta oferta están contabilizadas las unidades de servicio que estaban dictando cursos al momento del Relevamiento Anual 2021.

Sheet C 2.1 (hidden)
B2: CUADRO 2.1 Unidades educativas, alumnos y personal docente en actividad, por sector y dependencia, según ámbito
C3: Ámbito | D3: Total | E3: Estatal | H3: Privado
E4: Provincial (**) | F4: Municipal (***) | G4: Nacional (***) | H4: Provincial
B5: Unidades educativas | C5: Total | D5: 1746 | E5: 1361 | F5: 75 | G5: 2 | H5: 308
C6: Urbano | D6: 1055 | E6: 673 | F6: 75 | G6: 2 | H6: 305
C7: Rural | D7: 691 | E7: 688 | H7: 3
B8: Alumnos | C8: Total | D8: 136359 | E8: 93624 | F8: 6740 | G8: 291 | H8: 35704
C9: Urbano | D9: 124492 | E9: 81794 | F9: 6740 | G9: 291 | H9: 35667
C10: Rural | D10: 11867 | E10: 11830 | H10: 37
B11: Personal docente (*) | C11: Total | D11: 9654 | E11: 5434 | F11: 525 | G11: 54 | H11: 3641
C12: Urbano | D12: 8877 | E12: 4666 | F12: 525 | G12: 54 | H12: 3632
C13: Rural | D13: 777 | E13: 768 | H13: 9
B15: (*) El personal docente en actividad hace referencia a todas las personas con designación docente que se desempeñan en las unidades educativas del nivel. Por esta razón, se cuentan tantas veces como ofertas en las que trabajan.
B16: (**) Se incluyen 397 escuelas en las que funcionan 397 secciones multinivel, donde se atienden simultáneamente a niños de nivel primario e inicial. Se trata de escuelas primarias provinciales (estatales y privadas) de zonas rurales y urbanas. Los docentes que atienden las secciones multinivel no se incluyen en las cifras de este cuadro.
B17: (***) Los jardines municipales dependen de la Municipalidad de Córdoba; los nacionales, de la Universidad Nacional de Río Cuarto y del Ministerio de Defensa.

Sheet C 2.2 (hidden)
B2: CUADRO 2.2 Unidades educativas, alumnos y personal docente en actividad, por sector, según departamento
B3: Departamento | C3: Total | F3: Estatal | I3: Privado
C4: Unidades educativas | D4: Alumnos | E4: Personal docente (*) | F4: Unidades educativas | G4: Alumnos | H4: Personal docente | I4: Unidades educativas | J4: Alumnos | K4: Personal docente
B5: Total Córdoba | C5: 1746 | D5: 136359 | E5: 9654 | F5: 1438 | G5: 100655 | H5: 6013 | I5: 308 | J5: 35704 | K5: 3641
B6: Calamuchita | C6: 46 | D6: 2526 | E6: 166 | F6: 39 | G6: 2084 | H6: 124 | I6: 7 | J6: 442 | K6: 42
B7: Capital | C7: 435 | D7: 51942 | E7: 4142 | F7: 300 | G7: 34816 | H7: 2243 | I7: 135 | J7: 17126 | K7: 1899
B8: Colón | C8: 86 | D8: 9835 | E8: 677 | F8: 66 | G8: 7117 | H8: 378 | I8: 20 | J8: 2718 | K8: 299
B9: Cruz del Eje | C9: 66 | D9: 2375 | E9: 142 | F9: 62 | G9: 1868 | H9: 108 | I9: 4 | J9: 507 | K9: 34
B10: General Roca | C10: 24 | D10: 1427 | E10: 94 | F10: 23 | G10: 1364 | H10: 88 | I10: 1 | J10: 63 | K10: 6
B11: General San Martín | C11: 73 | D11: 6329 | E11: 396 | F11: 64 | G11: 3985 | H11: 203 | I11: 9 | J11: 2344 | K11: 193
B12: Ischilín | C12: 32 | D12: 1519 | E12: 97 | F12: 31 | G12: 1462 | H12: 85 | I12: 1 | J12: 57 | K12: 12
B13: Juárez Celman | C13: 46 | D13: 2738 | E13: 157 | F13: 43 | G13: 2390 | H13: 130 | I13: 3 | J13: 348 | K13: 27
B14: Marcos Juárez | C14: 64 | D14: 4226 | E14: 291 | F14: 52 | G14: 3260 | H14: 211 | I14: 12 | J14: 966 | K14: 80
B15: Minas | C15: 13 | D15: 162 | E15: 11 | F15: 13 | G15: 162 | H15: 11
B16: Pocho | C16: 21 | D16: 140 | E16: 12 | F16: 21 | G16: 140 | H16: 12
B17: Pte. Roque Sáenz Peña | C17: 30 | D17: 1564 | E17: 103 | F17: 28 | G17: 1424 | H17: 88 | I17: 2 | J17: 140 | K17: 15
B18: Punilla | C18: 68 | D18: 6787 | E18: 466 | F18: 47 | G18: 4893 | H18: 265 | I18: 21 | J18: 1894 | K18: 201
B19: Río Cuarto | C19: 130 | D19: 9979 | E19: 685 | F19: 106 | G19: 7171 | H19: 432 | I19: 24 | J19: 2808 | K19: 253
B20: Río Primero | C20: 51 | D20: 2253 | E20: 144 | F20: 47 | G20: 1972 | H20: 108 | I20: 4 | J20: 281 | K20: 36
B21: Río Seco | C21: 25 | D21: 580 | E21: 39 | F21: 25 | G21: 580 | H21: 39
B22: Río Segundo | C22: 66 | D22: 4161 | E22: 241 | F22: 57 | G22: 3371 | H22: 172 | I22: 9 | J22: 790 | K22: 69
B23: San Alberto | C23: 36 | D23: 1447 | E23: 83 | F23: 34 | G23: 1305 | H23: 69 | I23: 2 | J23: 142 | K23: 14
B24: San Javier | C24: 37 | D24: 2355 | E24: 151 | F24: 33 | G24: 1988 | H24: 117 | I24: 4 | J24: 367 | K24: 34
B25: San Justo | C25: 137 | D25: 8755 | E25: 551 | F25: 118 | G25: 7021 | H25: 378 | I25: 19 | J25: 1734 | K25: 173
B26: Santa María | C26: 59 | D26: 4750 | E26: 304 | F26: 48 | G26: 3711 | H26: 211 | I26: 11 | J26: 1039 | K26: 93
B27: Sobremonte | C27: 8 | D27: 144 | E27: 8 | F27: 8 | G27: 144 | H27: 8
B28: Tercero Arriba | C28: 63 | D28: 4600 | E28: 311 | F28: 53 | G28: 3642 | H28: 227 | I28: 10 | J28: 958 | K28: 84
B29: Totoral | C29: 26 | D29: 880 | E29: 52 | F29: 26 | G29: 880 | H29: 52
B30: Tulumba | C30: 25 | D30: 517 | E30: 37 | F30: 25 | G30: 517 | H30: 37
B31: Unión | C31: 79 | D31: 4368 | E31: 294 | F31: 69 | G31: 3388 | H31: 217 | I31: 10 | J31: 980 | K31: 77
B33: (*) El personal docente en actividad hace referencia a todas las personas con designación docente que se ndesempeñan en las unidades educativas del nivel. Por esta razón, se cuentan tantas veces como ofertas en las que trabajan.
B34: En el departamento Capital están incluidas, además de las provinciales, las unidades educativas municipales y nacionales, al igual que sus alumnos y personal docente. En el departamento Río Cuarto están incluidas, además de las provinciales, la unidad educativa nacional con sus alumnos y personal.

Sheet C 2.3 (hidden)
B2: CUADRO 2.3 Bases y anexos, por sector y ámbito, según departamento
B3: Departamento | C3: Total | E3: Estatal | I3: Privado
E4: Urbano | G4: Rural | I4: Urbano | J4: Rural
C5: Bases | D5: Anexos | E5: Bases | F5: Anexos | G5: Bases | H5: Anexos | I5: Bases | J5: Bases
B6: Total Córdoba | C6: 1746 | D6: 142 | E6: 750 | F6: 12 | G6: 688 | H6: 130 | I6: 305 | J6: 3
B7: Calamuchita | C7: 46 | D7: 7 | E7: 12 | G7: 27 | H7: 7 | I7: 6 | J7: 1
B8: Capital | C8: 435 | D8: 2 | E8: 300 | F8: 2 | I8: 135
B9: Colón | C9: 86 | D9: 8 | E9: 45 | F9: 1 | G9: 21 | H9: 7 | I9: 20
B10: Cruz del Eje | C10: 66 | D10: 7 | E10: 15 | G10: 47 | H10: 7 | I10: 4
B11: General Roca | C11: 24 | E11: 10 | G11: 13 | I11: 1
B12: General San Martín | C12: 73 | D12: 4 | E12: 27 | F12: 1 | G12: 37 | H12: 3 | I12: 9
B13: Ischilín | C13: 32 | D13: 3 | E13: 13 | G13: 18 | H13: 3 | I13: 1
B14: Juárez Celman | C14: 46 | D14: 2 | E14: 19 | G14: 24 | H14: 2 | I14: 3
B15: Marcos Juárez | C15: 64 | D15: 2 | E15: 32 | G15: 20 | H15: 2 | I15: 12
B16: Minas | C16: 13 | D16: 5 | G16: 13 | H16: 5
B17: Pocho | C17: 21 | D17: 4 | G17: 21 | H17: 4
B18: Pte. Roque Sáenz Peña | C18: 30 | D18: 1 | E18: 10 | G18: 18 | H18: 1 | I18: 2
B19: Punilla | C19: 68 | D19: 9 | E19: 35 | F19: 4 | G19: 12 | H19: 5 | I19: 20 | J19: 1
B20: Río Cuarto | C20: 130 | D20: 9 | E20: 52 | G20: 54 | H20: 9 | I20: 24
B21: Río Primero | C21: 51 | D21: 10 | E21: 11 | G21: 36 | H21: 10 | I21: 4
B22: Río Seco | C22: 25 | D22: 4 | E22: 3 | G22: 22 | H22: 4
B23: Río Segundo | C23: 66 | E23: 22 | G23: 35 | I23: 9
B24: San Alberto | C24: 36 | D24: 12 | E24: 6 | G24: 28 | H24: 12 | I24: 2
B25: San Javier | C25: 37 | D25: 11 | E25: 12 | F25: 2 | G25: 21 | H25: 9 | I25: 4
B26: San Justo | C26: 137 | D26: 18 | E26: 42 | G26: 76 | H26: 18 | I26: 18 | J26: 1
B27: Santa María | C27: 59 | D27: 7 | E27: 21 | F27: 2 | G27: 27 | H27: 5 | I27: 11
B28: Sobremonte | C28: 8 | E28: 1 | G28: 7
B29: Tercero Arriba | C29: 63 | D29: 4 | E29: 32 | G29: 21 | H29: 4 | I29: 10
B30: Totoral | C30: 26 | D30: 3 | E30: 2 | G30: 24 | H30: 3
B31: Tulumba | C31: 25 | D31: 4 | E31: 2 | G31: 23 | H31: 4
B32: Unión | C32: 79 | D32: 6 | E32: 26 | G32: 43 | H32: 6 | I32: 10
B34: En el departamento Capital están incluidas, además de las provinciales, las bases municipales y nacionales (y sus anexos, en el caso que correspondan). En el departamento Río Cuarto están incluidas, además de las provinciales, la base nacional.

Sheet C 2.4 (hidden)
B2: CUADRO 2.4 Alumnos por sexo, según departamento
B3: Departamento | C3: Total | D3: Mujeres | E3: Varones
B4: Total Córdoba | C4: 136359 | D4: 67331 | E4: 69028
B5: Calamuchita | C5: 2526 | D5: 1251 | E5: 1275
B6: Capital | C6: 51942 | D6: 25527 | E6: 26415
B7: Colón | C7: 9835 | D7: 4898 | E7: 4937
B8: Cruz del Eje | C8: 2375 | D8: 1207 | E8: 1168
B9: General Roca | C9: 1427 | D9: 735 | E9: 692
B10: General San Martín | C10: 6329 | D10: 3113 | E10: 3216
B11: Ischilín | C11: 1519 | D11: 713 | E11: 806
B12: Juárez Celman | C12: 2738 | D12: 1357 | E12: 1381
B13: Marcos Juárez | C13: 4226 | D13: 2074 | E13: 2152
B14: Minas | C14: 162 | D14: 89 | E14: 73
B15: Pocho | C15: 140 | D15: 73 | E15: 67
B16: Pte. Roque Sáenz Peña | C16: 1564 | D16: 741 | E16: 823
B17: Punilla | C17: 6787 | D17: 3378 | E17: 3409
B18: Río Cuarto | C18: 9979 | D18: 4970 | E18: 5009
B19: Río Primero | C19: 2253 | D19: 1094 | E19: 1159
B20: Río Seco | C20: 580 | D20: 289 | E20: 291
B21: Río Segundo | C21: 4161 | D21: 2083 | E21: 2078
B22: San Alberto | C22: 1447 | D22: 680 | E22: 767
B23: San Javier | C23: 2355 | D23: 1161 | E23: 1194
B24: San Justo | C24: 8755 | D24: 4402 | E24: 4353
B25: Santa María | C25: 4750 | D25: 2339 | E25: 2411
B26: Sobremonte | C26: 144 | D26: 77 | E26: 67
B27: Tercero Arriba | C27: 4600 | D27: 2278 | E27: 2322
B28: Totoral | C28: 880 | D28: 438 | E28: 442
B29: Tulumba | C29: 517 | D29: 239 | E29: 278
B30: Unión | C30: 4368 | D30: 2125 | E30: 2243
B32: En el departamento Capital están incluidas, además de las provinciales, las unidades educativas municipales y nacionales, al igual que sus alumnos y personal docente. En el departamento Río Cuarto están incluidas, además de las unidades educativas provinciales, la unidad nacional con sus alumnos y personal.

Sheet C 2.4 A. (hidden)
B2: CUADRO 2.4.A Sector estatal. Alumnos por ámbito y sexo, según departamento
B3: Departamento | C3: Urbano | F3: Rural
C4: Total | D4: Mujeres | E4: Varones | F4: Total | G4: Mujeres | H4: Varones
B5: Total Córdoba | C5: 88825 | D5: 43613 | E5: 45212 | F5: 11830 | G5: 5823 | H5: 6007
B6: Calamuchita | C6: 1493 | D6: 739 | E6: 754 | F6: 591 | G6: 302 | H6: 289
B7: Capital | C7: 34816 | D7: 17020 | E7: 17796
B8: Colón | C8: 6168 | D8: 3061 | E8: 3107 | F8: 949 | G8: 475 | H8: 474
B9: Cruz del Eje | C9: 1362 | D9: 660 | E9: 702 | F9: 506 | G9: 259 | H9: 247
B10: General Roca | C10: 1089 | D10: 559 | E10: 530 | F10: 275 | G10: 137 | H10: 138
B11: General San Martín | C11: 3452 | D11: 1695 | E11: 1757 | F11: 533 | G11: 249 | H11: 284
B12: Ischilín | C12: 1258 | D12: 595 | E12: 663 | F12: 204 | G12: 95 | H12: 109
B13: Juárez Celman | C13: 1953 | D13: 955 | E13: 998 | F13: 437 | G13: 222 | H13: 215
B14: Marcos Juárez | C14: 3084 | D14: 1514 | E14: 1570 | F14: 176 | G14: 74 | H14: 102
B15: Minas | F15: 162 | G15: 89 | H15: 73
B16: Pocho | F16: 140 | G16: 73 | H16: 67
B17: Pte. Roque Sáenz Peña | C17: 1237 | D17: 573 | E17: 664 | F17: 187 | G17: 92 | H17: 95
B18: Punilla | C18: 4347 | D18: 2143 | E18: 2204 | F18: 546 | G18: 277 | H18: 269
B19: Río Cuarto | C19: 6585 | D19: 3254 | E19: 3331 | F19: 586 | G19: 279 | H19: 307
B20: Río Primero | C20: 1552 | D20: 762 | E20: 790 | F20: 420 | G20: 195 | H20: 225
B21: Río Seco | C21: 362 | D21: 164 | E21: 198 | F21: 218 | G21: 125 | H21: 93
B22: Río Segundo | C22: 2874 | D22: 1427 | E22: 1447 | F22: 497 | G22: 241 | H22: 256
B23: San Alberto | C23: 802 | D23: 389 | E23: 413 | F23: 503 | G23: 222 | H23: 281
B24: San Javier | C24: 1281 | D24: 618 | E24: 663 | F24: 707 | G24: 357 | H24: 350
B25: San Justo | C25: 5653 | D25: 2828 | E25: 2825 | F25: 1368 | G25: 686 | H25: 682
B26: Santa María | C26: 2854 | D26: 1397 | E26: 1457 | F26: 857 | G26: 405 | H26: 452
B27: Sobremonte | C27: 116 | D27: 64 | E27: 52 | F27: 28 | G27: 13 | H27: 15
B28: Tercero Arriba | C28: 3263 | D28: 1623 | E28: 1640 | F28: 379 | G28: 199 | H28: 180
B29: Totoral | C29: 402 | D29: 195 | E29: 207 | F29: 478 | G29: 243 | H29: 235
B30: Tulumba | C30: 230 | D30: 107 | E30: 123 | F30: 287 | G30: 132 | H30: 155
B31: Unión | C31: 2592 | D31: 1271 | E31: 1321 | F31: 796 | G31: 382 | H31: 414
B33: En el departamento Capital están incluidas, además de las provinciales, las unidades educativas municipales y nacionales, al igual que sus alumnos y personal docente. En el departamento Río Cuarto están incluidas, además de las provinciales, la unidad educativa nacional con sus alumnos y personal.

Sheet C 2.4 B. (hidden)
B2: CUADRO 2.4.B Sector privado. Alumnos por ámbito y sexo, según departamento
B3: Departamento | C3: Urbano | F3: Rural
C4: Total | D4: Mujeres | E4: Varones | F4: Total | G4: Mujeres | H4: Varones
B5: Total Córdoba | C5: 35667 | D5: 17876 | E5: 17791 | F5: 37 | G5: 19 | H5: 18
B6: Calamuchita | C6: 441 | D6: 209 | E6: 232 | F6: 1 | G6: 1
B7: Capital | C7: 17126 | D7: 8507 | E7: 8619
B8: Colón | C8: 2718 | D8: 1362 | E8: 1356
B9: Cruz del Eje | C9: 507 | D9: 288 | E9: 219
B10: General Roca | C10: 63 | D10: 39 | E10: 24
B11: General San Martín | C11: 2344 | D11: 1169 | E11: 1175
B12: Ischilín | C12: 57 | D12: 23 | E12: 34
B13: Juárez Celman | C13: 348 | D13: 180 | E13: 168
B14: Marcos Juárez | C14: 966 | D14: 486 | E14: 480
B15: Minas
B16: Pocho
B17: Pte. Roque Sáenz Peña | C17: 140 | D17: 76 | E17: 64
B18: Punilla | C18: 1892 | D18: 957 | E18: 935 | F18: 2 | G18: 1 | H18: 1
B19: Río Cuarto | C19: 2808 | D19: 1437 | E19: 1371
B20: Río Primero | C20: 281 | D20: 137 | E20: 144
B21: Río Seco
B22: Río Segundo | C22: 790 | D22: 415 | E22: 375
B23: San Alberto | C23: 142 | D23: 69 | E23: 73
B24: San Javier | C24: 367 | D24: 186 | E24: 181
B25: San Justo | C25: 1700 | D25: 871 | E25: 829 | F25: 34 | G25: 17 | H25: 17
B26: Santa María | C26: 1039 | D26: 537 | E26: 502
B27: Sobremonte
B28: Tercero Arriba | C28: 958 | D28: 456 | E28: 502
B29: Totoral
B30: Tulumba
B31: Unión | C31: 980 | D31: 472 | E31: 508

Sheet C 2.5 (hidden)
B2: CUADRO 2. 5 Alumnos de jardín maternal y de jardín de infantes, por salas de 3, 4 y 5, según año de relevamiento y sector
B3: Año de relevamiento | C3: Sector | D3: Total | E3: Jardín maternal (*) | F3: Jardín de infantes
F4: Sala de 3 | G4: Sala de 4 | H4: Sala de 5
B5: =añoAnuario-4 -> 2017 | C5: Total Córdoba | D5: 132799 | E5: 808 | F5: 19600 | G5: 55114 | H5: 57277
C6: Estatal | D6: 96276 | E6: 439 | F6: 14102 | G6: 40220 | H6: 41515
C7: Privado | D7: 36523 | E7: 369 | F7: 5498 | G7: 14894 | H7: 15762
B8: =B5+1 -> 2018 | C8: Total Córdoba | D8: 137396 | E8: 843 | F8: 21831 | G8: 56148 | H8: 58574
C9: Estatal | D9: 99882 | E9: 457 | F9: 15846 | G9: 41170 | H9: 42409
C10: Privado | D10: 37514 | E10: 386 | F10: 5985 | G10: 14978 | H10: 16165
B11: =B8+1 -> 2019 | C11: Total Córdoba | D11: 141894 | E11: 880 | F11: 23401 | G11: 58180 | H11: 59433
C12: Estatal | D12: 103775 | E12: 488 | F12: 17036 | G12: 42952 | H12: 43299
C13: Privado | D13: 38119 | E13: 392 | F13: 6365 | G13: 15228 | H13: 16134
B14: =B11+1 -> 2020 | C14: Total Córdoba | D14: 141969 | E14: 853 | F14: 24785 | G14: 55721 | H14: 60610
C15: Estatal | D15: 104236 | E15: 531 | F15: 18358 | G15: 40968 | H15: 44379
C16: Privado | D16: 37733 | E16: 322 | F16: 6427 | G16: 14753 | H16: 16231
B17: =B14+1 -> 2021 | C17: Total Córdoba | D17: 136359 | E17: 765 | F17: 23013 | G17: 54727 | H17: 57854
C18: Estatal | D18: 100655 | E18: 450 | F18: 17257 | G18: 40424 | H18: 42524
C19: Privado | D19: 35704 | E19: 315 | F19: 5756 | G19: 14303 | H19: 15330
B21: (*) A partir del año 2008 comienza a incluirse dentro del nivel inicial la oferta correspondiente a jardines maternales.

Sheet CI cuadro 2.6. estatal (hidden)
C2: CUADRO 2.6 A Sector estatal. Alumnos en secciones independientes de jardín maternal y de jardín de infantes, por salas de 3, 4 y 5 y alumnos en secciones múltiples, según departamento
C3: Departamento | D3: En secciones independientes | H3: En secciones múltiples (**)
D4: Jardín maternal (*) | E4: Jardín de infantes
E5: Sala de 3 | F5: Sala de 4 | G5: Sala de 5
C6: Total Córdoba | D6: 450 | E6: 15985 | F6: 36422 | G6: 39103 | H6: 8695
C7: Calamuchita | E7: 254 | F7: 725 | G7: 765 | H7: 340
C8: Capital | D8: 450 | E8: 5667 | F8: 13629 | G8: 14622 | H8: 448
C9: Colón | E9: 732 | F9: 3004 | G9: 3079 | H9: 302
C10: Cruz del Eje | E10: 154 | F10: 606 | G10: 692 | H10: 416
C11: General Roca | E11: 290 | F11: 437 | G11: 443 | H11: 194
C12: General San Martín | E12: 589 | F12: 1368 | G12: 1470 | H12: 558
C13: Ischilín | E13: 301 | F13: 447 | G13: 438 | H13: 276
C14: Juárez Celman | E14: 534 | F14: 784 | G14: 813 | H14: 259
C15: Marcos Juárez | E15: 877 | F15: 962 | G15: 1039 | H15: 382
C16: Minas | E16: 22 | F16: 19 | G16: 14 | H16: 107
C17: Pocho | F17: 14 | G17: 19 | H17: 107
C18: Pte. Roque Sáenz Peña | E18: 365 | F18: 436 | G18: 488 | H18: 135
C19: Punilla | E19: 468 | F19: 1850 | G19: 2064 | H19: 511
C20: Río Cuarto | E20: 968 | F20: 2667 | G20: 2896 | H20: 640
C21: Río Primero | E21: 391 | F21: 579 | G21: 639 | H21: 363
C22: Río Seco | E22: 79 | F22: 138 | G22: 164 | H22: 199
C23: Río Segundo | E23: 493 | F23: 1282 | G23: 1408 | H23: 188
C24: San Alberto | E24: 141 | F24: 393 | G24: 436 | H24: 335
C25: San Javier | E25: 254 | F25: 689 | G25: 682 | H25: 363
C26: San Justo | E26: 1164 | F26: 2381 | G26: 2568 | H26: 908
C27: Santa María | E27: 498 | F27: 1348 | G27: 1435 | H27: 430
C28: Sobremonte | E28: 20 | F28: 49 | G28: 47 | H28: 28
C29: Tercero Arriba | E29: 717 | F29: 1213 | G29: 1287 | H29: 425
C30: Totoral | E30: 162 | F30: 266 | G30: 297 | H30: 155
C31: Tulumba | E31: 121 | F31: 142 | G31: 156 | H31: 98
C32: Unión | E32: 724 | F32: 994 | G32: 1142 | H32: 528
C34: (*) A partir del año 2008 comienza a incluirse dentro del nivel inicial la oferta correspondiente a jardines maternales.
C35: (**) En la categoría “múltiple” está incluida la matrícula que asiste tanto a secciones multisala (donde niños de varias salas cursan con el mismo maestro) como a las multinivel.
C36: En el departamento Capital están incluidas además de las provinciales, las unidades educativas municipales y nacionales, al igual que sus alumnos y personal docente. En el departamento Río Cuarto están incluidas, además de las provinciales, las unidades educativas nacionales con sus alumnos y personal.

Sheet CI cuadro 2.6. privado (hidden)
B2: CUADRO 2.6 B Sector privado. Alumnos en secciones independientes de jardín maternal y de jardín de infantes, por salas de 3, 4 y 5 y alumnos en secciones múltiples, según departamento
B3: Departamento | C3: En secciones independientes | G3: En secciones múltiples (**)
C4: Jardín maternal (*) | D4: Jardín de infantes
D5: Sala de 3 | E5: Sala de 4 | F5: Sala de 5
B6: Total Córdoba | C6: 315 | D6: 5756 | E6: 14300 | F6: 15330 | G6: 3
B7: Calamuchita | D7: 97 | E7: 165 | F7: 179 | G7: 1
B8: Capital | C8: 128 | D8: 2330 | E8: 6904 | F8: 7764
B9: Colón | C9: 19 | D9: 314 | E9: 1182 | F9: 1203
B10: Cruz del Eje | D10: 99 | E10: 232 | F10: 176
B11: General Roca | D11: 16 | E11: 23 | F11: 24
B12: General San Martín | C12: 168 | D12: 593 | E12: 783 | F12: 800
B13: Ischilín | E13: 27 | F13: 30
B14: Juárez Celman | D14: 48 | E14: 165 | F14: 135
B15: Marcos Juárez | D15: 286 | E15: 332 | F15: 348
B16: Minas
B17: Pocho
B18: Pte. Roque Sáenz Peña | D18: 39 | E18: 57 | F18: 44
B19: Punilla | D19: 207 | E19: 791 | F19: 894 | G19: 2
B20: Río Cuarto | D20: 478 | E20: 1133 | F20: 1197
B21: Río Primero | D21: 61 | E21: 102 | F21: 118
B22: Río Seco
B23: Río Segundo | D23: 168 | E23: 317 | F23: 305
B24: San Alberto | E24: 64 | F24: 78
B25: San Javier | D25: 23 | E25: 175 | F25: 169
B26: San Justo | D26: 426 | E26: 676 | F26: 632
B27: Santa María | D27: 137 | E27: 450 | F27: 452
B28: Sobremonte
B29: Tercero Arriba | D29: 226 | E29: 366 | F29: 366
B30: Totoral
B31: Tulumba
B32: Unión | D32: 208 | E32: 356 | F32: 416
B34: (*) A partir del año 2008 comienza a incluirse dentro del nivel inicial la oferta correspondiente a jardines maternales.
B35: (**) En la categoría “múltiple” está incluida la matrícula que asiste tanto a secciones multisala (donde niños de varias salas cursan con el mismo maestro) como a las multinivel.

Sheet CI cuadro 2.7 (hidden)
B2: CUADRO 2.7 Secciones independientes de jardín maternal y de jardín de infantes, por salas de 3, 4 y 5 y secciones múltiples, según sector
B3: Sector | C3: Total | D3: Secciones independientes | H3: Secciones múltiples (**)
D4: Jardín maternal (*) | E4: Jardín de infantes
E5: Sala de 3 | F5: Sala de 4 | G5: Sala de 5
B6: Total Córdoba | C6: 6750 | D6: 50 | E6: 1218 | F6: 2301 | G6: 2281 | H6: 900
B7: Estatal | C7: 5158 | D7: 31 | E7: 888 | F7: 1679 | G7: 1662 | H7: 898
B8: Privado | C8: 1592 | D8: 19 | E8: 330 | F8: 622 | G8: 619 | H8: 2
B10: (*) A partir del año 2008 comienza a incluirse dentro del nivel inicial la oferta correspondiente a jardines maternales.
B11: (**) En la categoría “múltiple” está incluida la matrícula que asiste tanto a secciones multisala (donde niños de varias salas cursan con el mismo maestro) como a las multinivel.

Sheet C 2.8 (hidden)
B2: CUADRO 2.8 Secciones independientes de jardín maternal y jardín de infantes, por salas de 3, 4 y 5 y secciones múltiples por sector, según departamento
B3: Departamento | C3: Estatal | H3: Privado
C4: Secciones independientes | G4: Secciones múltiples (**) | H4: Secciones independientes | L4: Secciones múltiples (**)
C5: Jardín maternal (*) | D5: Jardín de infantes | H5: Jardín maternal (*) | I5: Jardín de infantes
D6: Sala de 3 | E6: Sala de 4 | F6: Sala de 5 | I6: Sala de 3 | J6: Sala de 4 | K6: Sala de 5
B7: Total Córdoba | C7: 31 | D7: 888 | E7: 1679 | F7: 1662 | G7: 898 | H7: 19 | I7: 330 | J7: 622 | K7: 619 | L7: 2
B8: Calamuchita | D8: 15 | E8: 34 | F8: 34 | G8: 34 | I8: 5 | J8: 7 | K8: 7 | L8: 1
B9: Capital | C9: 31 | D9: 320 | E9: 664 | F9: 617 | G9: 21 | H9: 10 | I9: 150 | J9: 317 | K9: 319
B10: Colón | D10: 42 | E10: 129 | F10: 130 | G10: 22 | H10: 1 | I10: 19 | J10: 50 | K10: 47
B11: Cruz del Eje | D11: 9 | E11: 29 | F11: 32 | G11: 55 | I11: 6 | J11: 7 | K11: 7
B12: General Roca | D12: 16 | E12: 21 | F12: 20 | G12: 15 | I12: 1 | J12: 1 | K12: 1
B13: General San Martín | D13: 31 | E13: 55 | F13: 56 | G13: 49 | H13: 8 | I13: 25 | J13: 29 | K13: 29
B14: Ischilín | D14: 16 | E14: 21 | F14: 18 | G14: 28 | J14: 1 | K14: 1
B15: Juárez Celman | D15: 28 | E15: 36 | F15: 34 | G15: 27 | I15: 3 | J15: 7 | K15: 7
B16: Marcos Juárez | D16: 46 | E16: 44 | F16: 49 | G16: 32 | I16: 13 | J16: 14 | K16: 14
B17: Minas | D17: 1 | E17: 1 | F17: 1 | G17: 18
B18: Pocho | E18: 1 | F18: 1 | G18: 24
B19: Pte. Roque Sáenz Peña | D19: 20 | E19: 20 | F19: 20 | G19: 20 | I19: 2 | J19: 2 | K19: 2
B20: Punilla | D20: 28 | E20: 81 | F20: 80 | G20: 28 | I20: 13 | J20: 34 | K20: 34 | L20: 1
B21: Río Cuarto | D21: 54 | E21: 119 | F21: 124 | G21: 72 | I21: 24 | J21: 46 | K21: 45
B22: Río Primero | D22: 21 | E22: 24 | F22: 28 | G22: 48 | I22: 4 | J22: 6 | K22: 6
B23: Río Seco | D23: 5 | E23: 7 | F23: 8 | G23: 27
B24: Río Segundo | D24: 25 | E24: 58 | F24: 57 | G24: 32 | I24: 8 | J24: 12 | K24: 11
B25: San Alberto | D25: 8 | E25: 17 | F25: 19 | G25: 39 | J25: 3 | K25: 3
B26: San Javier | D26: 14 | E26: 31 | F26: 32 | G26: 28 | I26: 2 | J26: 8 | K26: 8
B27: San Justo | D27: 62 | E27: 104 | F27: 111 | G27: 99 | I27: 24 | J27: 28 | K27: 27
B28: Santa María | D28: 28 | E28: 59 | F28: 60 | G28: 35 | I28: 6 | J28: 18 | K28: 18
B29: Sobremonte | D29: 1 | E29: 2 | F29: 2 | G29: 7
B30: Tercero Arriba | D30: 39 | E30: 55 | F30: 57 | G30: 36 | I30: 13 | J30: 16 | K30: 16
B31: Totoral | D31: 11 | E31: 13 | F31: 13 | G31: 25
B32: Tulumba | D32: 7 | E32: 8 | F32: 8 | G32: 24
B33: Unión | D33: 41 | E33: 46 | F33: 51 | G33: 53 | I33: 12 | J33: 16 | K33: 17
B36: (*) A partir del año 2008 comienza a incluirse dentro del nivel inicial la oferta correspondiente a jardines maternales.
B37: (**) En la categoría “múltiple” está incluida la matrícula que asiste tanto a secciones multisala (donde niños de varias salas cursan con el mismo maestro) como a las multinivel.
B38: En el departamento Capital están incluidas además de las provinciales, las unidades educativas municipales y nacionales, al igual que sus alumnos y personal docente. En el departamento Río Cuarto están incluidas, además de las provinciales, la unidad educativa nacional con sus alumnos y personal.

Sheet C2.9 (hidden)
B2: CUADRO 2.9 Secciones por sector, ámbito y tipo , según departamento
B3: Departamento | C3: Total general | D3: Estatal | K3: Privado
D4: Total | E4: Urbano | H4: Rural | K4: Total | L4: Urbano | M4: Rural
E5: Indep. | F5: Múltiple | G5: Multiniv. | H5: Indep. | I5: Múltiple | J5: Multiniv. | L5: Indep. | M5: Indep. | N5: Multiniv.
B6: Total Córdoba | C6: 6750 | D6: 5158 | E6: 3916 | F6: 144 | G6: 5 | H6: 344 | I6: 359 | J6: 390 | K6: 1592 | L6: 1587 | M6: 3 | N6: 2
B7: Calamuchita | C7: 137 | D7: 117 | E7: 66 | F7: 3 | G7: 1 | H7: 17 | I7: 19 | J7: 11 | K7: 20 | L7: 19 | N7: 1
B8: Capital | C8: 2449 | D8: 1653 | E8: 1632 | F8: 21 | K8: 796 | L8: 796
B9: Colón | C9: 440 | D9: 323 | E9: 266 | F9: 3 | H9: 35 | I9: 15 | J9: 4 | K9: 117 | L9: 117
B10: Cruz del Eje | C10: 145 | D10: 125 | E10: 57 | F10: 5 | H10: 13 | I10: 16 | J10: 34 | K10: 20 | L10: 20
B11: General Roca | C11: 75 | D11: 72 | E11: 48 | F11: 3 | H11: 9 | I11: 5 | J11: 7 | K11: 3 | L11: 3
B12: General San Martín | C12: 282 | D12: 191 | E12: 126 | F12: 13 | H12: 16 | I12: 17 | J12: 19 | K12: 91 | L12: 91
B13: Ischilín | C13: 85 | D13: 83 | E13: 55 | F13: 4 | G13: 1 | I13: 11 | J13: 12 | K13: 2 | L13: 2
B14: Juárez Celman | C14: 142 | D14: 125 | E14: 80 | F14: 5 | G14: 1 | H14: 18 | I14: 6 | J14: 15 | K14: 17 | L14: 17
B15: Marcos Juárez | C15: 212 | D15: 171 | E15: 134 | F15: 11 | H15: 5 | I15: 5 | J15: 16 | K15: 41 | L15: 41
B16: Minas | C16: 21 | D16: 21 | H16: 3 | I16: 11 | J16: 7
B17: Pocho | C17: 26 | D17: 26 | H17: 2 | I17: 6 | J17: 18
B18: Pte. Roque Sáenz Peña | C18: 86 | D18: 80 | E18: 54 | F18: 2 | H18: 6 | I18: 7 | J18: 11 | K18: 6 | L18: 6
B19: Punilla | C19: 299 | D19: 217 | E19: 174 | F19: 14 | H19: 15 | I19: 11 | J19: 3 | K19: 82 | L19: 81 | N19: 1
B20: Río Cuarto | C20: 484 | D20: 369 | E20: 283 | F20: 11 | G20: 1 | H20: 14 | I20: 25 | J20: 35 | K20: 115 | L20: 115
B21: Río Primero | C21: 137 | D21: 121 | E21: 66 | F21: 3 | H21: 7 | I21: 20 | J21: 25 | K21: 16 | L21: 16
B22: Río Seco | C22: 47 | D22: 47 | E22: 19 | H22: 1 | I22: 12 | J22: 15
B23: Río Segundo | C23: 203 | D23: 172 | E23: 120 | F23: 2 | G23: 1 | H23: 20 | I23: 14 | J23: 15 | K23: 31 | L23: 31
B24: San Alberto | C24: 89 | D24: 83 | E24: 33 | H24: 11 | I24: 19 | J24: 20 | K24: 6 | L24: 6
B25: San Javier | C25: 123 | D25: 105 | E25: 60 | F25: 2 | H25: 17 | I25: 18 | J25: 8 | K25: 18 | L25: 18
B26: San Justo | C26: 455 | D26: 376 | E26: 235 | F26: 14 | H26: 42 | I26: 52 | J26: 33 | K26: 79 | L26: 76 | M26: 3
B27: Santa María | C27: 224 | D27: 182 | E27: 119 | F27: 7 | H27: 28 | I27: 21 | J27: 7 | K27: 42 | L27: 42
B28: Sobremonte | C28: 12 | D28: 12 | E28: 5 | I28: 3 | J28: 4
B29: Tercero Arriba | C29: 232 | D29: 187 | E29: 140 | F29: 12 | H29: 11 | I29: 14 | J29: 10 | K29: 45 | L29: 45
B30: Totoral | C30: 62 | D30: 62 | E30: 18 | H30: 19 | I30: 8 | J30: 17
B31: Tulumba | C31: 47 | D31: 47 | E31: 12 | H31: 11 | I31: 7 | J31: 17
B32: Unión | C32: 236 | D32: 191 | E32: 114 | F32: 9 | H32: 24 | I32: 17 | J32: 27 | K32: 45 | L32: 45
B34: Indep.: independiente, Multiniv.: multinivel
B35: En el departamento Capital están incluidas, además de las provinciales, las unidades educativas municipales y nacionales, al igual que sus secciones, alumnos y personal docente. En el departamento Río Cuarto están incluidas, además de las provinciales, la unidad educativa nacional con sus alumnos y personal.

Sheet C.2.10 (hidden)
B2: CUADRO 2.10 Personal docente en actividad, por sexo, según departamento
B3: Departamento | C3: Total | D3: Mujeres | E3: Varones
B4: Total Córdoba | C4: 9654 | D4: 9118 | E4: 536
B5: Calamuchita | C5: 166 | D5: 158 | E5: 8
B6: Capital | C6: 4142 | D6: 3875 | E6: 267
B7: Colón | C7: 677 | D7: 650 | E7: 27
B8: Cruz del Eje | C8: 142 | D8: 132 | E8: 10
B9: General Roca | C9: 94 | D9: 81 | E9: 13
B10: General San Martín | C10: 396 | D10: 375 | E10: 21
B11: Ischilín | C11: 97 | D11: 92 | E11: 5
B12: Juárez Celman | C12: 157 | D12: 153 | E12: 4
B13: Marcos Juárez | C13: 291 | D13: 275 | E13: 16
B14: Minas | C14: 11 | D14: 11
B15: Pocho | C15: 12 | D15: 9 | E15: 3
B16: Pte. Roque Sáenz Peña | C16: 103 | D16: 101 | E16: 2
B17: Punilla | C17: 466 | D17: 442 | E17: 24
B18: Río Cuarto | C18: 685 | D18: 647 | E18: 38
B19: Río Primero | C19: 144 | D19: 138 | E19: 6
B20: Río Seco | C20: 39 | D20: 38 | E20: 1
B21: Río Segundo | C21: 241 | D21: 223 | E21: 18
B22: San Alberto | C22: 83 | D22: 79 | E22: 4
B23: San Javier | C23: 151 | D23: 146 | E23: 5
B24: San Justo | C24: 551 | D24: 526 | E24: 25
B25: Santa María | C25: 304 | D25: 291 | E25: 13
B26: Sobremonte | C26: 8 | D26: 8
B27: Tercero Arriba | C27: 311 | D27: 305 | E27: 6
B28: Totoral | C28: 52 | D28: 52
B29: Tulumba | C29: 37 | D29: 34 | E29: 3
B30: Unión | C30: 294 | D30: 277 | E30: 17
B32: (*) El personal docente en actividad hace referencia a todas las personas con designación docente que se desempeñan en las unidades educativas del nivel. Por esta razón, se cuentan tantas veces como ofertas en las que trabajan.
B33: En el departamento Capital están incluidas además de las provinciales, las unidades educativas municipales y nacionales, al igual que sus alumnos y personal docente. En el departamento Río Cuarto están incluidas, además de las provinciales, la unidad educativa nacional con sus alumnos y personal.

Sheet C.2.11 (hidden)
B2: CUADRO 2.11 Personal docente en actividad, por sector y ámbito, según departamento
B3: Departamento | C3: Total (*) | D3: Estatal | F3: Privado
D4: Urbano | E4: Rural | F4: Urbano | G4: Rural
B5: Total Córdoba | C5: 9654 | D5: 5245 | E5: 768 | F5: 3632 | G5: 9
B6: Calamuchita | C6: 166 | D6: 84 | E6: 40 | F6: 42
B7: Capital | C7: 4142 | D7: 2243 | F7: 1899
B8: Colón | C8: 677 | D8: 321 | E8: 57 | F8: 299
B9: Cruz del Eje | C9: 142 | D9: 76 | E9: 32 | F9: 34
B10: General Roca | C10: 94 | D10: 66 | E10: 22 | F10: 6
B11: General San Martín | C11: 396 | D11: 172 | E11: 31 | F11: 193
B12: Ischilín | C12: 97 | D12: 73 | E12: 12 | F12: 12
B13: Juárez Celman | C13: 157 | D13: 101 | E13: 29 | F13: 27
B14: Marcos Juárez | C14: 291 | D14: 198 | E14: 13 | F14: 80
B15: Minas | C15: 11 | E15: 11
B16: Pocho | C16: 12 | E16: 12
B17: Pte. Roque Sáenz Peña | C17: 103 | D17: 70 | E17: 18 | F17: 15
B18: Punilla | C18: 466 | D18: 236 | E18: 29 | F18: 197 | G18: 4
B19: Río Cuarto | C19: 685 | D19: 387 | E19: 45 | F19: 253
B20: Río Primero | C20: 144 | D20: 79 | E20: 29 | F20: 36
B21: Río Seco | C21: 39 | D21: 22 | E21: 17
B22: Río Segundo | C22: 241 | D22: 142 | E22: 30 | F22: 69
B23: San Alberto | C23: 83 | D23: 38 | E23: 31 | F23: 14
B24: San Javier | C24: 151 | D24: 78 | E24: 39 | F24: 34
B25: San Justo | C25: 551 | D25: 290 | E25: 88 | F25: 168 | G25: 5
B26: Santa María | C26: 304 | D26: 160 | E26: 51 | F26: 93
B27: Sobremonte | C27: 8 | D27: 6 | E27: 2
B28: Tercero Arriba | C28: 311 | D28: 195 | E28: 32 | F28: 84
B29: Totoral | C29: 52 | D29: 26 | E29: 26
B30: Tulumba | C30: 37 | D30: 15 | E30: 22
B31: Unión | C31: 294 | D31: 167 | E31: 50 | F31: 77
B33: (*) El personal docente en actividad hace referencia a todas las personas con designación docente que se desempeñan en las unidades educativas del nivel. Por esta razón, se cuentan tantas veces como ofertas en las que trabajan.
B34: En el departamento Capital están incluidas además de las provinciales, las unidades educativas municipales y nacionales, al igual que sus alumnos y personal docente.En el departamento Río Cuarto están incluidas, además de las provinciales, la unidad educativa nacional con sus alumnos y personal.

Sheet C2,12 (hidden)
B2: CUADRO 2.12 Cargos docentes cubiertos frente a alumnos, por tipo de cargo, sector y ámbito, según departamento
B3: Departamento | C3: Total | D3: Director personal único (*) | F3: Director con clase anexa (*) | I3: Maestro de sala (**)
D4: Estatal | F4: Estatal | H4: Privado | I4: Estatal | K4: Privado
D5: Urbano | E5: Rural | F5: Urbano | G5: Rural | H5: Urbano | I5: Urbano | J5: Rural | K5: Urbano | L5: Rural
B6: Total Córdoba | C6: 6465 | D6: 22 | E6: 108 | F6: 71 | G6: 78 | H6: 4 | I6: 4046 | J6: 435 | K6: 1698 | L6: 3
B7: Calamuchita | C7: 119 | D7: 2 | E7: 8 | F7: 1 | G7: 1 | I7: 66 | J7: 21 | K7: 20
B8: Capital | C8: 2566 | D8: 3 | F8: 18 | H8: 1 | I8: 1691 | K8: 853
B9: Colón | C9: 442 | D9: 3 | E9: 7 | F9: 7 | G9: 4 | I9: 264 | J9: 37 | K9: 120
B10: Cruz del Eje | C10: 110 | D10: 2 | E10: 7 | F10: 3 | G10: 5 | I10: 57 | J10: 15 | K10: 21
B11: General Roca | C11: 68 | D11: 1 | E11: 3 | F11: 1 | G11: 1 | I11: 49 | J11: 10 | K11: 3
B12: General San Martín | C12: 269 | D12: 2 | E12: 2 | F12: 2 | G12: 6 | I12: 135 | J12: 17 | K12: 105
B13: Ischilín | C13: 73 | E13: 5 | F13: 2 | I13: 59 | J13: 5 | K13: 2
B14: Juárez Celman | C14: 124 | E14: 1 | F14: 4 | G14: 4 | I14: 80 | J14: 18 | K14: 17
B15: Marcos Juárez | C15: 200 | E15: 2 | F15: 6 | G15: 2 | H15: 2 | I15: 139 | J15: 6 | K15: 43
B16: Minas | C16: 10 | E16: 1 | J16: 9
B17: Pocho | C17: 7 | E17: 1 | G17: 1 | J17: 5
B18: Pte. Roque Sáenz Peña | C18: 77 | E18: 5 | G18: 2 | I18: 56 | J18: 8 | K18: 6
B19: Punilla | C19: 315 | D19: 3 | E19: 2 | F19: 2 | G19: 1 | I19: 187 | J19: 20 | K19: 100
B20: Río Cuarto | C20: 452 | D20: 1 | E20: 10 | F20: 4 | G20: 5 | I20: 289 | J20: 21 | K20: 122
B21: Río Primero | C21: 111 | E21: 6 | F21: 1 | G21: 2 | I21: 69 | J21: 17 | K21: 16
B22: Río Seco | C22: 32 | E22: 4 | G22: 2 | I22: 19 | J22: 7
B23: Río Segundo | C23: 180 | E23: 5 | G23: 7 | I23: 124 | J23: 13 | K23: 31
B24: San Alberto | C24: 60 | E24: 3 | F24: 1 | G24: 3 | I24: 26 | J24: 21 | K24: 6
B25: San Javier | C25: 116 | E25: 6 | F25: 3 | G25: 3 | I25: 62 | J25: 24 | K25: 18
B26: San Justo | C26: 408 | D26: 1 | E26: 10 | F26: 2 | G26: 6 | I26: 254 | J26: 56 | K26: 76 | L26: 3
B27: Santa María | C27: 213 | D27: 1 | E27: 6 | F27: 3 | G27: 7 | H27: 1 | I27: 121 | J27: 28 | K27: 46
B28: Sobremonte | C28: 7 | E28: 2 | I28: 5
B29: Tercero Arriba | C29: 225 | D29: 3 | E29: 4 | F29: 4 | G29: 2 | I29: 147 | J29: 17 | K29: 48
B30: Totoral | C30: 42 | E30: 1 | G30: 4 | I30: 18 | J30: 19
B31: Tulumba | C31: 30 | E31: 1 | G31: 4 | I31: 12 | J31: 13
B32: Unión | C32: 209 | E32: 6 | F32: 7 | G32: 6 | I32: 117 | J32: 28 | K32: 45
B34: (*) En 2018, el sector privado no cuenta con designaciones de director personal único y con clase anexa, en el ámbito rural.
B35: (**) Se incluye dentro de este universo a los maestros auxiliares de sala.
B36: En el departamento Capital están incluidas además de las provinciales, las unidades educativas municipales y nacionales, al igual que sus alumnos y personal docente. En el departamento Río Cuarto están incluidas, además de las provinciales, la unidad educativa nacional con sus alumnos y personal.

Sheet CP C3.1 (hidden)
B2: Cuadro 3.1 Unidades educativas, alumnos y personal docente en actividad, por sector y dependencia, según ámbito
C3: Ámbito | D3: Total | E3: Estatal | H3: Privado
E4: Provincial (**) | F4: Municipal (***) | G4: Nacional (***) | H4: Provincial
B5: Unidades educativas | C5: Total | D5: 2067 | E5: 1717 | F5: 37 | G5: 3 | H5: 310 | O5: =E3 -> Estatal | P5: =H3 -> Privado
C6: Urbano | D6: 1040 | E6: 693 | F6: 37 | G6: 3 | H6: 307 | O6: =E5+F5+G5 -> 1757 | P6: =H5 -> 310
C7: Rural | D7: 1027 | E7: 1024 | H7: 3
B8: Alumnos | C8: Total | D8: 359573 | E8: 251747 | F8: 9514 | G8: 941 | H8: 97371
C9: Urbano | D9: 327571 | E9: 219880 | F9: 9514 | G9: 941 | H9: 97236 | O9: =E8+F8+G8 -> 262202 | P9: =H8 -> 97371
C10: Rural | D10: 32002 | E10: 31867 | H10: 135
B11: Personal docente (*) | C11: Total | D11: 31206 | E11: 22341 | F11: 891 | G11: 155 | H11: 7819
C12: Urbano | D12: 26294 | E12: 17445 | F12: 891 | G12: 155 | H12: 7803 | O12: =E11+F11+G11 -> 23387 | P12: =H11 -> 7819
C13: Rural | D13: 4912 | E13: 4896 | H13: 16
B15: (*) El personal docente en actividad hace referencia a todas las personas con designación docente que se desempeñan en las unidades educativas del nivel. Por esta razón, se cuentan tantas veces como ofertas en las que trabajan.
B16: (**) Se incluyen 397 escuelas en las que funcionan 397 secciones multinivel, donde se atienden simultáneamente a niños de nivel primario e inicial. Se trata de escuelas primarias provinciales (estatales y privadas) de zonas rurales y urbanas.
B17: (***) Las unidades educativas municipales dependen de la Municipalidad de Córdoba; las nacionales, de la Universidad Nacional de Córdoba y del Ministerio de Defensa. Dos unidades educativas de dependencia nacional poseen alumnos matriculados en el 1° año del nivel secundario que son equivalentes a los alumnos del 6° grado del nivel primario; motivo por el cual se los cuenta dentro de este nivel de enseñanza.

Sheet CP C3.2 (hidden)
B2: CUADRO 3.2 Unidades educativas, alumnos y personal docente en actividad, por sector, según departamento
B3: Departamento | C3: Total | F3: Estatal | I3: Privado
C4: Unidades educativas | D4: Alumnos | E4: Personal docente (*) | F4: Unidades educativas | G4: Alumnos | H4: Personal docente | I4: Unidades educativas | J4: Alumnos | K4: Personal docente
B5: Total Córdoba | C5: 2067 | D5: 359573 | E5: 31206 | F5: 1757 | G5: 262202 | H5: 23387 | I5: 310 | J5: 97371 | K5: 7819
B6: Calamuchita | C6: 70 | D6: 6972 | E6: 635 | F6: 62 | G6: 5751 | H6: 512 | I6: 8 | J6: 1221 | K6: 123
B7: Capital | C7: 407 | D7: 141061 | E7: 11632 | F7: 274 | G7: 91380 | H7: 7556 | I7: 133 | J7: 49681 | K7: 4076
B8: Colón | C8: 96 | D8: 28624 | E8: 2154 | F8: 75 | G8: 20716 | H8: 1510 | I8: 21 | J8: 7908 | K8: 644
B9: Cruz del Eje | C9: 83 | D9: 6684 | E9: 682 | F9: 79 | G9: 5405 | H9: 585 | I9: 4 | J9: 1279 | K9: 97
B10: General Roca | C10: 35 | D10: 3229 | E10: 321 | F10: 34 | G10: 3069 | H10: 308 | I10: 1 | J10: 160 | K10: 13
B11: General San Martín | C11: 80 | D11: 14796 | E11: 1217 | F11: 71 | G11: 10179 | H11: 879 | I11: 9 | J11: 4617 | K11: 338
B12: Ischilín | C12: 43 | D12: 3657 | E12: 415 | F12: 42 | G12: 3437 | H12: 395 | I12: 1 | J12: 220 | K12: 20
B13: Juárez Celman | C13: 56 | D13: 6455 | E13: 563 | F13: 53 | G13: 5574 | H13: 493 | I13: 3 | J13: 881 | K13: 70
B14: Marcos Juárez | C14: 82 | D14: 9182 | E14: 896 | F14: 70 | G14: 7178 | H14: 742 | I14: 12 | J14: 2004 | K14: 154
B15: Minas | C15: 25 | D15: 409 | E15: 97 | F15: 25 | G15: 409 | H15: 97
B16: Pocho | C16: 29 | D16: 374 | E16: 107 | F16: 29 | G16: 374 | H16: 107
B17: Pte. Roque Sáenz Peña | C17: 32 | D17: 3523 | E17: 343 | F17: 30 | G17: 3192 | H17: 310 | I17: 2 | J17: 331 | K17: 33
B18: Punilla | C18: 78 | D18: 20425 | E18: 1472 | F18: 57 | G18: 14696 | H18: 1063 | I18: 21 | J18: 5729 | K18: 409
B19: Río Cuarto | C19: 152 | D19: 26210 | E19: 2119 | F19: 127 | G19: 18885 | H19: 1520 | I19: 25 | J19: 7325 | K19: 599
B20: Río Primero | C20: 75 | D20: 5490 | E20: 584 | F20: 71 | G20: 4595 | H20: 503 | I20: 4 | J20: 895 | K20: 81
B21: Río Seco | C21: 37 | D21: 1602 | E21: 206 | F21: 37 | G21: 1602 | H21: 206
B22: Río Segundo | C22: 73 | D22: 10765 | E22: 949 | F22: 64 | G22: 8892 | H22: 813 | I22: 9 | J22: 1873 | K22: 136
B23: San Alberto | C23: 55 | D23: 4010 | E23: 434 | F23: 53 | G23: 3454 | H23: 395 | I23: 2 | J23: 556 | K23: 39
B24: San Javier | C24: 52 | D24: 6744 | E24: 645 | F24: 48 | G24: 5606 | H24: 556 | I24: 4 | J24: 1138 | K24: 89
B25: San Justo | C25: 171 | D25: 21582 | E25: 2058 | F25: 152 | G25: 17782 | H25: 1745 | I25: 19 | J25: 3800 | K25: 313
B26: Santa María | C26: 69 | D26: 12771 | E26: 1029 | F26: 58 | G26: 9711 | H26: 799 | I26: 11 | J26: 3060 | K26: 230
B27: Sobremonte | C27: 15 | D27: 406 | E27: 63 | F27: 15 | G27: 406 | H27: 63
B28: Tercero Arriba | C28: 71 | D28: 11009 | E28: 1098 | F28: 61 | G28: 8744 | H28: 913 | I28: 10 | J28: 2265 | K28: 185
B29: Totoral | C29: 38 | D29: 2012 | E29: 240 | F29: 38 | G29: 2012 | H29: 240
B30: Tulumba | C30: 45 | D30: 1223 | E30: 237 | F30: 45 | G30: 1223 | H30: 237
B31: Unión | C31: 98 | D31: 10358 | E31: 1010 | F31: 87 | G31: 7930 | H31: 840 | I31: 11 | J31: 2428 | K31: 170
B33: (*) El personal docente en actividad hace referencia a todas las personas con designación docente que se desempeñan en las unidades educativas del nivel. Por esta razón, se cuentan tantas veces como ofertas en las que trabajan.
B34: En el departamento Capital están incluidas además de las provinciales, las unidades educativas municipales y nacionales, al igual que sus alumnos y personal docente.

Sheet CP C3.3 (hidden)
B2: CUADRO 3.3 Bases y anexos, por sector y ámbito, según departamento
B3: Departamento | C3: Total | E3: Estatal | I3: Privado (*)
E4: Urbano | G4: Rural | I4: Urbano | J4: Rural
C5: Bases | D5: Anexos | E5: Bases | F5: Anexos | G5: Bases | H5: Anexos | I5: Bases | J5: Bases
B6: Total Córdoba | C6: 2067 | D6: 5 | E6: 733 | F6: 2 | G6: 1024 | H6: 3 | I6: 307 | J6: 3
B7: Calamuchita | C7: 70 | E7: 12 | G7: 50 | I7: 7 | J7: 1
B8: Capital | C8: 407 | D8: 1 | E8: 274 | F8: 1 | I8: 133
B9: Colón | C9: 96 | D9: 1 | E9: 45 | G9: 30 | H9: 1 | I9: 21
B10: Cruz del Eje | C10: 83 | E10: 15 | G10: 64 | I10: 4
B11: General Roca | C11: 35 | E11: 10 | G11: 24 | I11: 1
B12: General San Martín | C12: 80 | E12: 28 | G12: 43 | I12: 9
B13: Ischilín | C13: 43 | E13: 13 | G13: 29 | I13: 1
B14: Juárez Celman | C14: 56 | E14: 18 | G14: 35 | I14: 3
B15: Marcos Juárez | C15: 82 | E15: 33 | G15: 37 | I15: 12
B16: Minas | C16: 25 | G16: 25
B17: Pocho | C17: 29 | G17: 29
B18: Pte. Roque Sáenz Peña | C18: 32 | E18: 10 | G18: 20 | I18: 2
B19: Punilla | C19: 78 | D19: 2 | E19: 37 | F19: 1 | G19: 20 | H19: 1 | I19: 20 | J19: 1
B20: Río Cuarto | C20: 152 | E20: 52 | G20: 75 | I20: 25
B21: Río Primero | C21: 75 | E21: 11 | G21: 60 | I21: 4
B22: Río Seco | C22: 37 | E22: 3 | G22: 34
B23: Río Segundo | C23: 73 | E23: 22 | G23: 42 | I23: 9
B24: San Alberto | C24: 55 | E24: 6 | G24: 47 | I24: 2
B25: San Javier | C25: 52 | E25: 16 | G25: 32 | I25: 4
B26: San Justo | C26: 171 | D26: 1 | E26: 43 | G26: 109 | H26: 1 | I26: 18 | J26: 1
B27: Santa María | C27: 69 | E27: 22 | G27: 36 | I27: 11
B28: Sobremonte | C28: 15 | E28: 1 | G28: 14
B29: Tercero Arriba | C29: 71 | E29: 32 | G29: 29 | I29: 10
B30: Totoral | C30: 38 | E30: 2 | G30: 36
B31: Tulumba | C31: 45 | E31: 2 | G31: 43
B32: Unión | C32: 98 | E32: 26 | G32: 61 | I32: 11
B34: (*) El sector privado no cuenta con anexos en el nivel primario en el ámbito rural. Ni en el urbano.
B35: En el departamento Capital están incluidas además de las provinciales, las bases municipales y nacionales (y sus anexos, en el caso que correspondan).

Sheet CP C3.4 (hidden)
B2: CUADRO 3.4 Alumnos por sexo, según departamento
B3: Departamento | C3: Total | D3: Mujeres | E3: Varones
B4: Total Córdoba | C4: 359573 | D4: 176544 | E4: 183029
B5: Calamuchita | C5: 6972 | D5: 3372 | E5: 3600
B6: Capital | C6: 141061 | D6: 69791 | E6: 71270
B7: Colón | C7: 28624 | D7: 13881 | E7: 14743
B8: Cruz del Eje | C8: 6684 | D8: 3270 | E8: 3414
B9: General Roca | C9: 3229 | D9: 1604 | E9: 1625
B10: General San Martín | C10: 14796 | D10: 7235 | E10: 7561
B11: Ischilín | C11: 3657 | D11: 1725 | E11: 1932
B12: Juárez Celman | C12: 6455 | D12: 3180 | E12: 3275
B13: Marcos Juárez | C13: 9182 | D13: 4413 | E13: 4769
B14: Minas | C14: 409 | D14: 187 | E14: 222
B15: Pocho | C15: 374 | D15: 173 | E15: 201
B16: Pte. Roque Sáenz Peña | C16: 3523 | D16: 1704 | E16: 1819
B17: Punilla | C17: 20425 | D17: 9997 | E17: 10428
B18: Río Cuarto | C18: 26210 | D18: 12934 | E18: 13276
B19: Río Primero | C19: 5490 | D19: 2715 | E19: 2775
B20: Río Seco | C20: 1602 | D20: 772 | E20: 830
B21: Río Segundo | C21: 10765 | D21: 5329 | E21: 5436
B22: San Alberto | C22: 4010 | D22: 1928 | E22: 2082
B23: San Javier | C23: 6744 | D23: 3341 | E23: 3403
B24: San Justo | C24: 21582 | D24: 10539 | E24: 11043
B25: Santa María | C25: 12771 | D25: 6178 | E25: 6593
B26: Sobremonte | C26: 406 | D26: 188 | E26: 218
B27: Tercero Arriba | C27: 11009 | D27: 5421 | E27: 5588
B28: Totoral | C28: 2012 | D28: 999 | E28: 1013
B29: Tulumba | C29: 1223 | D29: 595 | E29: 628
B30: Unión | C30: 10358 | D30: 5073 | E30: 5285
B32: En el departamento Capital están incluidas además de las provinciales, las unidades educativas municipales y nacionales, al igual que sus alumnos y personal docente.

Sheet CP C3.4. A estatal (hidden)
B2: CUADRO 3.4 A Sector estatal. Alumnos por ámbito y sexo, según departamento
B3: Departamento | C3: Urbano | F3: Rural
C4: Total | D4: Mujeres | E4: Varones | F4: Total | G4: Mujeres | H4: Varones
B5: Total Córdoba | C5: 230335 | D5: 111927 | E5: 118408 | F5: 31867 | G5: 15438 | H5: 16429
B6: Calamuchita | C6: 3936 | D6: 1889 | E6: 2047 | F6: 1815 | G6: 869 | H6: 946
B7: Capital | C7: 91380 | D7: 44578 | E7: 46802
B8: Colón | C8: 17788 | D8: 8558 | E8: 9230 | F8: 2928 | G8: 1383 | H8: 1545
B9: Cruz del Eje | C9: 3901 | D9: 1932 | E9: 1969 | F9: 1504 | G9: 729 | H9: 775
B10: General Roca | C10: 2430 | D10: 1186 | E10: 1244 | F10: 639 | G10: 327 | H10: 312
B11: General San Martín | C11: 8719 | D11: 4223 | E11: 4496 | F11: 1460 | G11: 712 | H11: 748
B12: Ischilín | C12: 2948 | D12: 1390 | E12: 1558 | F12: 489 | G12: 222 | H12: 267
B13: Juárez Celman | C13: 4440 | D13: 2203 | E13: 2237 | F13: 1134 | G13: 554 | H13: 580
B14: Marcos Juárez | C14: 6688 | D14: 3164 | E14: 3524 | F14: 490 | G14: 240 | H14: 250
B15: Minas | F15: 409 | G15: 187 | H15: 222
B16: Pocho | F16: 374 | G16: 173 | H16: 201
B17: Pte. Roque Sáenz Peña | C17: 2694 | D17: 1311 | E17: 1383 | F17: 498 | G17: 223 | H17: 275
B18: Punilla | C18: 12997 | D18: 6274 | E18: 6723 | F18: 1699 | G18: 805 | H18: 894
B19: Río Cuarto | C19: 17332 | D19: 8428 | E19: 8904 | F19: 1553 | G19: 795 | H19: 758
B20: Río Primero | C20: 3439 | D20: 1681 | E20: 1758 | F20: 1156 | G20: 580 | H20: 576
B21: Río Seco | C21: 894 | D21: 435 | E21: 459 | F21: 708 | G21: 337 | H21: 371
B22: Río Segundo | C22: 7617 | D22: 3763 | E22: 3854 | F22: 1275 | G22: 608 | H22: 667
B23: San Alberto | C23: 2113 | D23: 1034 | E23: 1079 | F23: 1341 | G23: 632 | H23: 709
B24: San Javier | C24: 3673 | D24: 1752 | E24: 1921 | F24: 1933 | G24: 1000 | H24: 933
B25: San Justo | C25: 14250 | D25: 6923 | E25: 7327 | F25: 3532 | G25: 1687 | H25: 1845
B26: Santa María | C26: 7467 | D26: 3541 | E26: 3926 | F26: 2244 | G26: 1118 | H26: 1126
B27: Sobremonte | C27: 296 | D27: 142 | E27: 154 | F27: 110 | G27: 46 | H27: 64
B28: Tercero Arriba | C28: 7890 | D28: 3891 | E28: 3999 | F28: 854 | G28: 408 | H28: 446
B29: Totoral | C29: 998 | D29: 500 | E29: 498 | F29: 1014 | G29: 499 | H29: 515
B30: Tulumba | C30: 460 | D30: 222 | E30: 238 | F30: 763 | G30: 373 | H30: 390
B31: Unión | C31: 5985 | D31: 2907 | E31: 3078 | F31: 1945 | G31: 931 | H31: 1014
B33: En el departamento Capital están incluidas además de las provinciales, las unidades educativas municipales y nacionales, al igual que sus alumnos y personal docente.

Sheet CP C3.4 B privado (hidden)
B2: CUADRO 3.4 B Sector privado. Alumnos por ámbito y sexo, según departamento
B3: Departamento | C3: Urbano | F3: Rural
C4: Total | D4: Mujeres | E4: Varones | F4: Total | G4: Mujeres | H4: Varones
B5: Total Córdoba | C5: 97236 | D5: 49106 | E5: 48130 | F5: 135 | G5: 73 | H5: 62
B6: Calamuchita | C6: 1216 | D6: 611 | E6: 605 | F6: 5 | G6: 3 | H6: 2
B7: Capital | C7: 49681 | D7: 25213 | E7: 24468
B8: Colón | C8: 7908 | D8: 3940 | E8: 3968
B9: Cruz del Eje | C9: 1279 | D9: 609 | E9: 670
B10: General Roca | C10: 160 | D10: 91 | E10: 69
B11: General San Martín | C11: 4617 | D11: 2300 | E11: 2317
B12: Ischilín | C12: 220 | D12: 113 | E12: 107
B13: Juárez Celman | C13: 881 | D13: 423 | E13: 458
B14: Marcos Juárez | C14: 2004 | D14: 1009 | E14: 995
B15: Minas
B16: Pocho
B17: Pte. Roque Sáenz Peña | C17: 331 | D17: 170 | E17: 161
B18: Punilla | C18: 5719 | D18: 2914 | E18: 2805 | F18: 10 | G18: 4 | H18: 6
B19: Río Cuarto | C19: 7325 | D19: 3711 | E19: 3614
B20: Río Primero | C20: 895 | D20: 454 | E20: 441
B21: Río Seco
B22: Río Segundo | C22: 1873 | D22: 958 | E22: 915
B23: San Alberto | C23: 556 | D23: 262 | E23: 294
B24: San Javier | C24: 1138 | D24: 589 | E24: 549
B25: San Justo | C25: 3680 | D25: 1863 | E25: 1817 | F25: 120 | G25: 66 | H25: 54
B26: Santa María | C26: 3060 | D26: 1519 | E26: 1541
B27: Sobremonte
B28: Tercero Arriba | C28: 2265 | D28: 1122 | E28: 1143
B29: Totoral
B30: Tulumba
B31: Unión | C31: 2428 | D31: 1235 | E31: 1193

Sheet CP C 3.5 (hidden)
B2: CUADRO 3.5 Alumnos por grado, según departamento
B3: Departamento | C3: Total | D3: 1° | E3: 2° | F3: 3° | G3: 4° | H3: 5° | I3: 6°
B4: Total Córdoba | C4: 359573 | D4: 61282 | E4: 59867 | F4: 59404 | G4: 58428 | H4: 59909 | I4: 60683
B5: Calamuchita | C5: 6972 | D5: 1157 | E5: 1244 | F5: 1140 | G5: 1154 | H5: 1153 | I5: 1124
B6: Capital | C6: 141061 | D6: 23896 | E6: 23292 | F6: 23153 | G6: 22920 | H6: 23728 | I6: 24072
B7: Colón | C7: 28624 | D7: 4930 | E7: 4801 | F7: 4705 | G7: 4571 | H7: 4834 | I7: 4783
B8: Cruz del Eje | C8: 6684 | D8: 1138 | E8: 1115 | F8: 1063 | G8: 1055 | H8: 1157 | I8: 1156
B9: General Roca | C9: 3229 | D9: 509 | E9: 583 | F9: 520 | G9: 567 | H9: 489 | I9: 561
B10: General San Martín | C10: 14796 | D10: 2589 | E10: 2495 | F10: 2443 | G10: 2436 | H10: 2363 | I10: 2470
B11: Ischilín | C11: 3657 | D11: 633 | E11: 619 | F11: 561 | G11: 580 | H11: 641 | I11: 623
B12: Juárez Celman | C12: 6455 | D12: 1126 | E12: 1103 | F12: 1020 | G12: 1025 | H12: 1088 | I12: 1093
B13: Marcos Juárez | C13: 9182 | D13: 1560 | E13: 1503 | F13: 1564 | G13: 1446 | H13: 1528 | I13: 1581
B14: Minas | C14: 409 | D14: 65 | E14: 69 | F14: 72 | G14: 55 | H14: 77 | I14: 71
B15: Pocho | C15: 374 | D15: 61 | E15: 66 | F15: 52 | G15: 63 | H15: 60 | I15: 72
B16: Pte. Roque Sáenz Peña | C16: 3523 | D16: 611 | E16: 601 | F16: 582 | G16: 546 | H16: 584 | I16: 599
B17: Punilla | C17: 20425 | D17: 3395 | E17: 3444 | F17: 3377 | G17: 3374 | H17: 3422 | I17: 3413
B18: Río Cuarto | C18: 26210 | D18: 4551 | E18: 4301 | F18: 4356 | G18: 4309 | H18: 4276 | I18: 4417
B19: Río Primero | C19: 5490 | D19: 912 | E19: 903 | F19: 940 | G19: 887 | H19: 914 | I19: 934
B20: Río Seco | C20: 1602 | D20: 271 | E20: 249 | F20: 279 | G20: 269 | H20: 271 | I20: 263
B21: Río Segundo | C21: 10765 | D21: 1829 | E21: 1875 | F21: 1788 | G21: 1732 | H21: 1783 | I21: 1758
B22: San Alberto | C22: 4010 | D22: 664 | E22: 661 | F22: 683 | G22: 657 | H22: 662 | I22: 683
B23: San Javier | C23: 6744 | D23: 1160 | E23: 1115 | F23: 1158 | G23: 1125 | H23: 1092 | I23: 1094
B24: San Justo | C24: 21582 | D24: 3734 | E24: 3571 | F24: 3632 | G24: 3511 | H24: 3536 | I24: 3598
B25: Santa María | C25: 12771 | D25: 2169 | E25: 2127 | F25: 2189 | G25: 2060 | H25: 2086 | I25: 2140
B26: Sobremonte | C26: 406 | D26: 53 | E26: 76 | F26: 73 | G26: 56 | H26: 73 | I26: 75
B27: Tercero Arriba | C27: 11009 | D27: 1891 | E27: 1818 | F27: 1910 | G27: 1811 | H27: 1779 | I27: 1800
B28: Totoral | C28: 2012 | D28: 340 | E28: 299 | F28: 353 | G28: 329 | H28: 342 | I28: 349
B29: Tulumba | C29: 1223 | D29: 201 | E29: 195 | F29: 173 | G29: 210 | H29: 226 | I29: 218
B30: Unión | C30: 10358 | D30: 1837 | E30: 1742 | F30: 1618 | G30: 1680 | H30: 1745 | I30: 1736
B32: En el departamento Capital están incluidas además de las provinciales, las unidades educativas municipales y nacionales, al igual que sus alumnos y personal docente.

Sheet CP 3.6 (hidden)
B2: Cuadro 3.6 Alumnos por sector y tipo de sección, según departamento
B3: Departamento | C3: Estatal | F3: Privado
C4: Independiente | D4: Múltiple | E4: Multinivel | F4: Independiente | G4: Múltiple | H4: Multinivel
B5: Total Córdoba | C5: 248345 | D5: 11202 | E5: 2655 | F5: 97339 | G5: 17 | H5: 15
B6: Calamuchita | C6: 5040 | D6: 630 | E6: 81 | F6: 1216 | H6: 5
B7: Capital | C7: 91166 | D7: 214 | F7: 49681
B8: Colón | C8: 19902 | D8: 752 | E8: 62 | F8: 7908
B9: Cruz del Eje | C9: 4602 | D9: 564 | E9: 239 | F9: 1279
B10: General Roca | C10: 2856 | D10: 166 | E10: 47 | F10: 160
B11: General San Martín | C11: 9329 | D11: 649 | E11: 201 | F11: 4617
B12: Ischilín | C12: 3029 | D12: 330 | E12: 78 | F12: 220
B13: Juárez Celman | C13: 5295 | D13: 183 | E13: 96 | F13: 881
B14: Marcos Juárez | C14: 6821 | D14: 272 | E14: 85 | F14: 2004
B15: Minas | C15: 130 | D15: 225 | E15: 54
B16: Pocho | C16: 101 | D16: 185 | E16: 88
B17: Pte. Roque Sáenz Peña | C17: 2989 | D17: 133 | E17: 70 | F17: 331
B18: Punilla | C18: 13862 | D18: 812 | E18: 22 | F18: 5719 | H18: 10
B19: Río Cuarto | C19: 17984 | D19: 665 | E19: 236 | F19: 7322 | G19: 3
B20: Río Primero | C20: 3895 | D20: 530 | E20: 170 | F20: 895
B21: Río Seco | C21: 1141 | D21: 355 | E21: 106
B22: Río Segundo | C22: 8516 | D22: 280 | E22: 96 | F22: 1873
B23: San Alberto | C23: 2761 | D23: 544 | E23: 149 | F23: 556
B24: San Javier | C24: 4826 | D24: 725 | E24: 55 | F24: 1138
B25: San Justo | C25: 16302 | D25: 1221 | E25: 259 | F25: 3800
B26: Santa María | C26: 9003 | D26: 675 | E26: 33 | F26: 3060
B27: Sobremonte | C27: 307 | D27: 79 | E27: 20
B28: Tercero Arriba | C28: 8449 | D28: 235 | E28: 60 | F28: 2265
B29: Totoral | C29: 1737 | D29: 190 | E29: 85
B30: Tulumba | C30: 930 | D30: 209 | E30: 84
B31: Unión | C31: 7372 | D31: 379 | E31: 179 | F31: 2414 | G31: 14
B33: En el departamento Capital están incluidas además de las provinciales, las unidades educativas municipales y nacionales, al igual que sus alumnos y personal docente.

Sheet CP C 3.7 (hidden)
B2: CUADRO 3.7 Total de alumnos, total y porcentaje de alumnos repitentes y con sobreedad, según departamento
B3: Departamento | C3: Alumnos | D3: Alumnos repitentes | E3: Porcentaje de repitentes | F3: Alumnos con sobreedad | G3: Porcentaje de sobreedad
B4: Total Córdoba | C4: 359573 | D4: 1555 | E4: 0.432457387 | F4: 7955 | G4: 2.212346311
B5: Calamuchita | C5: 6972 | D5: 45 | E5: 0.6454388985 | F5: 134 | G5: 1.921973609
B6: Capital | C6: 141061 | D6: 406 | E6: 0.2878187451 | F6: 3498 | G6: 2.479778252
B7: Colón | C7: 28624 | D7: 259 | E7: 0.9048351034 | F7: 1087 | G7: 3.797512577
B8: Cruz del Eje | C8: 6684 | D8: 76 | E8: 1.137043686 | F8: 182 | G8: 2.722920407
B9: General Roca | C9: 3229 | D9: 1 | E9: 0.03096934035 | F9: 7 | G9: 0.2167853825
B10: General San Martín | C10: 14796 | D10: 110 | E10: 0.7434441741 | F10: 261 | G10: 1.763990268
B11: Ischilín | C11: 3657 | D11: 6 | E11: 0.1640689089 | F11: 50 | G11: 1.367240908
B12: Juárez Celman | C12: 6455 | D12: 16 | E12: 0.2478698683 | F12: 68 | G12: 1.05344694
B13: Marcos Juárez | C13: 9182 | D13: 3 | E13: 0.03267262034 | F13: 86 | G13: 0.9366151165
B14: Minas | C14: 409 | D14: 6 | E14: 1.466992665 | F14: 17 | G14: 4.156479218
B15: Pocho | C15: 374 | D15: 6 | E15: 1.604278075 | F15: 18 | G15: 4.812834225
B16: Pte. Roque Sáenz Peña | C16: 3523 | F16: 4 | G16: 0.1135395969
B17: Punilla | C17: 20425 | D17: 45 | E17: 0.2203182375 | F17: 272 | G17: 1.331701346
B18: Río Cuarto | C18: 26210 | D18: 27 | E18: 0.1030141167 | F18: 241 | G18: 0.9194963754
B19: Río Primero | C19: 5490 | D19: 25 | E19: 0.4553734062 | F19: 46 | G19: 0.8378870674
B20: Río Seco | C20: 1602 | D20: 12 | E20: 0.7490636704 | F20: 31 | G20: 1.935081149
B21: Río Segundo | C21: 10765 | D21: 151 | E21: 1.402693915 | F21: 332 | G21: 3.084068741
B22: San Alberto | C22: 4010 | D22: 34 | E22: 0.8478802993 | F22: 118 | G22: 2.942643392
B23: San Javier | C23: 6744 | D23: 59 | E23: 0.87485172 | F23: 243 | G23: 3.603202847
B24: San Justo | C24: 21582 | D24: 83 | E24: 0.3845797424 | F24: 287 | G24: 1.32981188
B25: Santa María | C25: 12771 | D25: 56 | E25: 0.4384934617 | F25: 219 | G25: 1.714822645
B26: Sobremonte | C26: 406 | F26: 1 | G26: 0.2463054187
B27: Tercero Arriba | C27: 11009 | D27: 52 | E27: 0.4723408121 | F27: 259 | G27: 2.352620583
B28: Totoral | C28: 2012 | D28: 19 | E28: 0.944333996 | F28: 48 | G28: 2.385685885
B29: Tulumba | C29: 1223 | D29: 2 | E29: 0.1635322976 | F29: 13 | G29: 1.062959935
B30: Unión | C30: 10358 | D30: 56 | E30: 0.5406449121 | F30: 433 | G30: 4.180343696
B32: En el departamento Capital están incluidas además de las provinciales, las unidades educativas municipales y nacionales, al igual que sus alumnos y personal docente.

Sheet CP C3,8 y 3.9 (hidden)
B2: CUADRO 3.8 Total de alumnos, total y porcentaje de alumnos repitentes por sexo, según grado
B3: Grado | C3: Alumnos | F3: Alumnos repetidores | I3: Porcentaje de repetidores
C4: Total | D4: Mujeres | E4: Varones | F4: Total | G4: Mujeres | H4: Varones | I4: Total | J4: Mujeres | K4: Varones
B5: Total Córdoba | C5: 359573 | D5: 176544 | E5: 183029 | F5: 1555 | G5: 731 | H5: 824 | I5: 0.432457387 | J5: 0.4140610839 | K5: 0.4502018806
B6: 1° | C6: 61282 | D6: 30302 | E6: 30980 | F6: 115 | G6: 51 | H6: 64 | I6: 0.1876570608 | J6: 0.1683057224 | K6: 0.2065848935
B7: 2° | C7: 59867 | D7: 29401 | E7: 30466 | F7: 297 | G7: 137 | H7: 160 | I7: 0.4960996876 | J7: 0.4659705452 | K7: 0.5251756056
B8: 3° | C8: 59404 | D8: 29016 | E8: 30388 | F8: 294 | G8: 121 | H8: 173 | I8: 0.4949161673 | J8: 0.4170113041 | K8: 0.5693036725
B9: 4° | C9: 58428 | D9: 28692 | E9: 29736 | F9: 289 | G9: 142 | H9: 147 | I9: 0.4946258643 | J9: 0.4949114736 | K9: 0.4943502825
B10: 5° | C10: 59909 | D10: 29396 | E10: 30513 | F10: 282 | G10: 135 | H10: 147 | I10: 0.4707139161 | J10: 0.4592461559 | K10: 0.481761872
B11: 6° | C11: 60683 | D11: 29737 | E11: 30946 | F11: 278 | G11: 145 | H11: 133 | I11: 0.4581184187 | J11: 0.4876080304 | K11: 0.4297809087
B14: CUADRO 3.9 Total de alumnos, total y porcentaje de alumnos con sobreedad, según grado
B15: Grado | C15: Alumnos | D15: Alumnos con sobreedad | F15: Porcentaje con sobreedad
B17: Total Córdoba | C17: 359573 | E17: 7955 | G17: 2.212346311
B18: 1° | C18: 61282 | E18: 624 | G18: 1.01824353
B19: 2° | C19: 59867 | E19: 702 | G19: 1.172599262
B20: 3° | C20: 59404 | E20: 1153 | G20: 1.940946738
B21: 4° | C21: 58428 | E21: 1364 | G21: 2.334497159
B22: 5° | C22: 59909 | E22: 1725 | G22: 2.87936704
B23: 6° | C23: 60683 | E23: 2387 | G23: 3.93355635
B25: El dato de sobreedad no puede desagregarse por sexo debido a que en el Relevamiento Anual no se capta la información de los alumnos de cada edad discriminados por esa variable.

Sheet CP C 3.10 (hidden)
B2: CUADRO 3.10 Tasa de promoción, de no promoción y de abandono anual, por grado, según ciclo lectivo
B3: Ciclo lectivo | C3: Indicadores | D3: Total | E3: 1° | F3: 2° | G3: 3° | H3: 4° | I3: 5° | J3: 6°
B5: =añoAnuario-5 -> 2016 | C5: Tasa de promoción | D5: 98.2 | E5: 98.9 | F5: 97.3 | G5: 97.7 | H5: 98.1 | I5: 98.2 | J5: 98.8
C6: Tasa de no promoción | D6: 1 | E6: 0.1 | F6: 1.9 | G6: 1.5 | H6: 1.1 | I6: 0.9 | J6: 0.3
C7: Tasa de abandono | D7: 0.9 | E7: 1 | F7: 0.7 | G7: 0.8 | H7: 0.8 | I7: 1 | J7: 1
B8: =B5+1 -> 2017 | C8: Tasa de promoción | D8: 99 | E8: 100.1 | F8: 98.1 | G8: 98.9 | H8: 98.8 | I8: 99 | J8: 99.3
C9: Tasa de no promoción | D9: 0.6 | E9: 0.1 | F9: 1.4 | G9: 0.9 | H9: 0.7 | I9: 0.6 | J9: 0.2
C10: Tasa de abandono | D10: 0.3 | E10: -0.1 | F10: 0.5 | G10: 0.2 | H10: 0.5 | I10: 0.4 | J10: 0.5
B11: =B8+1 -> 2018 | C11: Tasa de promoción | D11: 98.7 | E11: 97.5 | F11: 101.4 | G11: 99.8 | H11: 100.1 | I11: 96.2 | J11: 97.4
C12: Tasa de no promoción | D12: 0.5 | E12: 0.1 | F12: 1.1 | G12: 0.8 | H12: 0.5 | I12: 0.3 | J12: 0.2
C13: Tasa de abandono | D13: 0.8 | E13: 2.4 | F13: -2.4 | G13: -0.6 | H13: -0.6 | I13: 3.5 | J13: 2.5
B14: =B11+1 -> 2019 | C14: Tasa de promoción | D14: 99.2 | E14: 99.6 | F14: 98.8 | G14: 99.1 | H14: 99 | I14: 99.4 | J14: 99.3
C15: Tasa de no promoción | D15: 0.4 | E15: 0.1 | F15: 0.8 | G15: 0.6 | H15: 0.4 | I15: 0.3 | J15: 0.1
C16: Tasa de abandono | D16: 0.4 | E16: 0.3 | F16: 0.4 | G16: 0.3 | H16: 0.6 | I16: 0.3 | J16: 0.6
B17: =B14+1 -> 2020 | C17: Tasa de promoción | D17: 99.40009216 | E17: 99.62727288 | F17: 99.27538668 | G17: 99.17180708 | H17: 99.58328452 | I17: 99.38824703 | J17: 99.34982843
C18: Tasa de no promoción | D18: 0.3789920543 | E18: 0.204832021 | F18: 0.5110961668 | G18: 0.5110961668 | H18: 0.3949592489 | I18: 0.3441110465 | J18: 0.3441110465
C19: Tasa de abandono | D19: 0.2209157811 | E19: 0.2209157811 | F19: 0.2209157811 | G19: 0.3402120311 | H19: 0.02175622981 | I19: 0.267641925 | J19: 0.3152347021

Sheet CP C 3.11 (hidden)
B2: CUADRO 3.11 Secciones por sector, ámbito y tipo, según departamento
B3: Departamento | C3: Total general | D3: Estatal | K3: Privado (*)
D4: Total | E4: Urbano | H4: Rural | K4: Total | L4: Urbano | N4: Rural
E5: Indep. | F5: Múltiple | G5: Multiniv. | H5: Indep. | I5: Múltiple | J5: Multiniv. | L5: Indep. | M5: Múltiple | N5: Indep. | O5: Multiniv.
B6: Total Córdoba | C6: 15888 | D6: 12452 | E6: 10089 | F6: 104 | G6: 5 | H6: 1118 | I6: 746 | J6: 390 | K6: 3436 | L6: 3426 | M6: 2 | N6: 6 | O6: 2
B7: Calamuchita | C7: 328 | D7: 277 | E7: 161 | F7: 4 | G7: 1 | H7: 59 | I7: 41 | J7: 11 | K7: 51 | L7: 50 | O7: 1
B8: Capital | C8: 5801 | D8: 4103 | E8: 4091 | F8: 12 | H8: 0 | I8: 0 | J8: 0 | K8: 1698 | L8: 1698
B9: Colón | C9: 1120 | D9: 854 | E9: 698 | F9: 12 | H9: 114 | I9: 26 | J9: 4 | K9: 266 | L9: 266
B10: Cruz del Eje | C10: 369 | D10: 327 | E10: 198 | F10: 2 | H10: 50 | I10: 43 | J10: 34 | K10: 42 | L10: 42
B11: General Roca | C11: 184 | D11: 178 | E11: 124 | F11: 2 | H11: 30 | I11: 15 | J11: 7 | K11: 6 | L11: 6
B12: General San Martín | C12: 603 | D12: 449 | E12: 348 | F12: 10 | H12: 40 | I12: 32 | J12: 19 | K12: 154 | L12: 154
B13: Ischilín | C13: 199 | D13: 193 | E13: 142 | F13: 4 | G13: 1 | H13: 12 | I13: 22 | J13: 12 | K13: 6 | L13: 6
B14: Juárez Celman | C14: 314 | D14: 272 | E14: 189 | F14: 3 | G14: 1 | H14: 48 | I14: 16 | J14: 15 | K14: 42 | L14: 42
B15: Marcos Juárez | C15: 491 | D15: 405 | E15: 349 | F15: 3 | H15: 17 | I15: 20 | J15: 16 | K15: 86 | L15: 86
B16: Minas | C16: 41 | D16: 41 | H16: 11 | I16: 23 | J16: 7
B17: Pocho | C17: 41 | D17: 41 | H17: 7 | I17: 16 | J17: 18
B18: Pte. Roque Sáenz Peña | C18: 186 | D18: 174 | E18: 132 | H18: 19 | I18: 12 | J18: 11 | K18: 12 | L18: 12
B19: Punilla | C19: 773 | D19: 574 | E19: 493 | F19: 9 | H19: 41 | I19: 28 | J19: 3 | K19: 199 | L19: 198 | O19: 1
B20: Río Cuarto | C20: 1152 | D20: 889 | E20: 735 | F20: 17 | G20: 1 | H20: 58 | I20: 43 | J20: 35 | K20: 263 | L20: 262 | M20: 1
B21: Río Primero | C21: 285 | D21: 247 | E21: 150 | H21: 27 | I21: 45 | J21: 25 | K21: 38 | L21: 38
B22: Río Seco | C22: 107 | D22: 107 | E22: 44 | H22: 17 | I22: 31 | J22: 15
B23: Río Segundo | C23: 496 | D23: 430 | E23: 336 | G23: 1 | H23: 51 | I23: 27 | J23: 15 | K23: 66 | L23: 66
B24: San Alberto | C24: 212 | D24: 194 | E24: 93 | H24: 40 | I24: 41 | J24: 20 | K24: 18 | L24: 18
B25: San Javier | C25: 319 | D25: 279 | E25: 153 | F25: 10 | H25: 73 | I25: 35 | J25: 8 | K25: 40 | L25: 40
B26: San Justo | C26: 1014 | D26: 862 | E26: 624 | F26: 2 | H26: 113 | I26: 90 | J26: 33 | K26: 152 | L26: 146 | N26: 6
B27: Santa María | C27: 519 | D27: 410 | E27: 289 | F27: 6 | H27: 74 | I27: 34 | J27: 7 | K27: 109 | L27: 109
B28: Sobremonte | C28: 39 | D28: 39 | E28: 16 | H28: 8 | I28: 11 | J28: 4
B29: Tercero Arriba | C29: 526 | D29: 436 | E29: 349 | F29: 8 | H29: 56 | I29: 13 | J29: 10 | K29: 90 | L29: 90
B30: Totoral | C30: 122 | D30: 122 | E30: 43 | H30: 42 | I30: 20 | J30: 17
B31: Tulumba | C31: 98 | D31: 98 | E31: 27 | H31: 30 | I31: 24 | J31: 17
B32: Unión | C32: 549 | D32: 451 | E32: 305 | H32: 81 | I32: 38 | J32: 27 | K32: 98 | L32: 97 | M32: 1
B34: (*) El sector privado no cuenta con secciones multinivel en el nivel primario.
B35: Indep.: Independiente
B36: Multiniv.: Multinivel
B37: En el departamento Capital están incluidas además de las provinciales, las unidades educativas municipales y nacionales, al igual que sus secciones, alumnos y personal docente.

Sheet CP 3.12 (hidden)
B2: CUADRO 3.12 Personal docente en actividad, por sexo, según departamento
B3: Departamento | C3: Total | D3: Mujeres | E3: Varones
B4: Total Córdoba | C4: 31206 | D4: 27386 | E4: 3820
B5: Calamuchita | C5: 635 | D5: 565 | E5: 70
B6: Capital | C6: 11632 | D6: 10160 | E6: 1472
B7: Colón | C7: 2154 | D7: 1931 | E7: 223
B8: Cruz del Eje | C8: 682 | D8: 583 | E8: 99
B9: General Roca | C9: 321 | D9: 289 | E9: 32
B10: General San Martín | C10: 1217 | D10: 1096 | E10: 121
B11: Ischilín | C11: 415 | D11: 341 | E11: 74
B12: Juárez Celman | C12: 563 | D12: 482 | E12: 81
B13: Marcos Juárez | C13: 896 | D13: 822 | E13: 74
B14: Minas | C14: 97 | D14: 76 | E14: 21
B15: Pocho | C15: 107 | D15: 59 | E15: 48
B16: Pte. Roque Sáenz Peña | C16: 343 | D16: 304 | E16: 39
B17: Punilla | C17: 1472 | D17: 1288 | E17: 184
B18: Río Cuarto | C18: 2119 | D18: 1907 | E18: 212
B19: Río Primero | C19: 584 | D19: 513 | E19: 71
B20: Río Seco | C20: 206 | D20: 164 | E20: 42
B21: Río Segundo | C21: 949 | D21: 846 | E21: 103
B22: San Alberto | C22: 434 | D22: 349 | E22: 85
B23: San Javier | C23: 645 | D23: 550 | E23: 95
B24: San Justo | C24: 2058 | D24: 1835 | E24: 223
B25: Santa María | C25: 1029 | D25: 892 | E25: 137
B26: Sobremonte | C26: 63 | D26: 49 | E26: 14
B27: Tercero Arriba | C27: 1098 | D27: 993 | E27: 105
B28: Totoral | C28: 240 | D28: 213 | E28: 27
B29: Tulumba | C29: 237 | D29: 173 | E29: 64
B30: Unión | C30: 1010 | D30: 906 | E30: 104
B32: (*) El personal docente en actividad hace referencia a todas las personas con designación docente que se desempeñan en las unidades educativas del nivel. Por esta razón, se cuentan tantas veces como ofertas en las que trabajan.
B33: En el departamento Capital están incluidas además de las provinciales, las unidades educativas municipales y nacionales, al igual que sus alumnos y personal docente.

Sheet CP C3.13 (hidden)
B2: CUADRO 3.13 Personal docente en actividad, por sector y ámbito, según departamento
B3: Departamento | C3: Total (*) | D3: Estatal | F3: Privado
D4: Urbano | E4: Rural | F4: Urbano | G4: Rural
B5: Total Córdoba | C5: 31206 | D5: 18491 | E5: 4896 | F5: 7803 | G5: 16
B6: Calamuchita | C6: 635 | D6: 308 | E6: 204 | F6: 122 | G6: 1
B7: Capital | C7: 11632 | D7: 7556 | F7: 4076
B8: Colón | C8: 2154 | D8: 1237 | E8: 273 | F8: 644
B9: Cruz del Eje | C9: 682 | D9: 355 | E9: 230 | F9: 97
B10: General Roca | C10: 321 | D10: 209 | E10: 99 | F10: 13
B11: General San Martín | C11: 1217 | D11: 650 | E11: 229 | F11: 338
B12: Ischilín | C12: 415 | D12: 290 | E12: 105 | F12: 20
B13: Juárez Celman | C13: 563 | D13: 336 | E13: 157 | F13: 70
B14: Marcos Juárez | C14: 896 | D14: 630 | E14: 112 | F14: 154
B15: Minas | C15: 97 | E15: 97
B16: Pocho | C16: 107 | E16: 107
B17: Pte. Roque Sáenz Peña | C17: 343 | D17: 233 | E17: 77 | F17: 33
B18: Punilla | C18: 1472 | D18: 894 | E18: 169 | F18: 403 | G18: 6
B19: Río Cuarto | C19: 2119 | D19: 1215 | E19: 305 | F19: 599
B20: Río Primero | C20: 584 | D20: 275 | E20: 228 | F20: 81
B21: Río Seco | C21: 206 | D21: 78 | E21: 128
B22: Río Segundo | C22: 949 | D22: 591 | E22: 222 | F22: 136
B23: San Alberto | C23: 434 | D23: 174 | E23: 221 | F23: 39
B24: San Javier | C24: 645 | D24: 310 | E24: 246 | F24: 89
B25: San Justo | C25: 2058 | D25: 1165 | E25: 580 | F25: 304 | G25: 9
B26: Santa María | C26: 1029 | D26: 541 | E26: 258 | F26: 230
B27: Sobremonte | C27: 63 | D27: 27 | E27: 36
B28: Tercero Arriba | C28: 1098 | D28: 728 | E28: 185 | F28: 185
B29: Totoral | C29: 240 | D29: 75 | E29: 165
B30: Tulumba | C30: 237 | D30: 54 | E30: 183
B31: Unión | C31: 1010 | D31: 560 | E31: 280 | F31: 170
B33: (*) El personal docente en actividad hace referencia a todas las personas con designación docente que se desempeñan en las unidades educativas del nivel. Por esta razón, se cuentan tantas veces como ofertas en las que trabajan.
B34: En el departamento Capital están incluidas además de las provinciales, las unidades educativas municipales y nacionales, al igual que sus alumnos y personal docente.

Sheet CP C3.14 (hidden)
B2: CUADRO 3.14 Cargos docentes cubiertos frente a alumnos, por tipo de cargo, sector y ámbito, según departamento
B3: Departamento | C3: Total | D3: Director personal único | H3: Director con clase anexa | L3: Maestro de grado (*)
D4: Estatal | F4: Privado | H4: Estatal | J4: Privado | L4: Estatal | N4: Privado
D5: Urbano | E5: Rural | F5: Urbano | G5: Rural | H5: Urbano | I5: Rural | J5: Urbano | K5: Rural | L5: Urbano | M5: Rural | N5: Urbano | O5: Rural
B6: Total Córdoba | C6: 16123 | D6: 17 | E6: 657 | F6: 5 | G6: 1 | H6: 17 | I6: 210 | J6: 4 | K6: 1 | L6: 10262 | M6: 1379 | N6: 3563 | O6: 7
B7: Calamuchita | C7: 325 | D7: 1 | E7: 35 | G7: 1 | H7: 1 | I7: 7 | L7: 165 | M7: 63 | N7: 52
B8: Capital | C8: 5989 | D8: 4 | E8: 0 | F8: 1 | H8: 2 | I8: 0 | L8: 4179 | M8: 0 | N8: 1803
B9: Colón | C9: 1138 | E9: 7 | F9: 1 | H9: 2 | I9: 8 | J9: 1 | L9: 711 | M9: 127 | N9: 281
B10: Cruz del Eje | C10: 365 | E10: 38 | H10: 2 | I10: 19 | L10: 192 | M10: 72 | N10: 42
B11: General Roca | C11: 186 | D11: 2 | E11: 17 | H11: 1 | I11: 4 | L11: 125 | M11: 31 | N11: 6
B12: General San Martín | C12: 600 | E12: 26 | H12: 1 | I12: 9 | J12: 1 | L12: 358 | M12: 52 | N12: 153
B13: Ischilín | C13: 202 | D13: 1 | E13: 20 | I13: 7 | L13: 148 | M13: 20 | N13: 6
B14: Juárez Celman | C14: 315 | D14: 1 | E14: 27 | I14: 1 | L14: 192 | M14: 52 | N14: 42
B15: Marcos Juárez | C15: 495 | D15: 1 | E15: 30 | H15: 1 | I15: 5 | L15: 352 | M15: 20 | N15: 86
B16: Minas | C16: 41 | E16: 18 | I16: 6 | L16: 0 | M16: 17 | N16: 0
B17: Pocho | C17: 41 | E17: 22 | I17: 5 | L17: 0 | M17: 14 | N17: 0
B18: Pte. Roque Sáenz Peña | C18: 186 | E18: 14 | I18: 2 | L18: 132 | M18: 26 | N18: 12
B19: Punilla | C19: 798 | E19: 5 | H19: 1 | I19: 9 | K19: 1 | L19: 506 | M19: 68 | N19: 207 | O19: 1
B20: Río Cuarto | C20: 1146 | D20: 2 | E20: 52 | F20: 1 | I20: 13 | J20: 1 | L20: 742 | M20: 71 | N20: 264
B21: Río Primero | C21: 281 | E21: 42 | I21: 12 | L21: 144 | M21: 44 | N21: 39
B22: Río Seco | C22: 111 | E22: 21 | I22: 10 | L22: 44 | M22: 36 | N22: 0
B23: Río Segundo | C23: 496 | D23: 1 | E23: 30 | I23: 3 | L23: 337 | M23: 59 | N23: 66
B24: San Alberto | C24: 211 | E24: 30 | I24: 11 | L24: 93 | M24: 59 | N24: 18
B25: San Javier | C25: 321 | D25: 2 | E25: 10 | H25: 3 | I25: 15 | J25: 1 | L25: 158 | M25: 91 | N25: 41
B26: San Justo | C26: 1021 | E26: 69 | I26: 25 | L26: 633 | M26: 140 | N26: 148 | O26: 6
B27: Santa María | C27: 520 | E27: 16 | F27: 1 | H27: 2 | I27: 9 | L27: 293 | M27: 90 | N27: 109
B28: Sobremonte | C28: 33 | E28: 9 | I28: 5 | L28: 16 | M28: 3 | N28: 0
B29: Tercero Arriba | C29: 531 | D29: 2 | E29: 21 | H29: 1 | I29: 3 | L29: 368 | M29: 46 | N29: 90
B30: Totoral | C30: 127 | E30: 25 | I30: 6 | L30: 43 | M30: 53 | N30: 0
B31: Tulumba | C31: 99 | E31: 31 | I31: 8 | L31: 27 | M31: 33 | N31: 0
B32: Unión | C32: 545 | E32: 42 | F32: 1 | I32: 8 | L32: 304 | M32: 92 | N32: 98
B34: (*) Se incluye dentro de este universo a los maestros auxiliares de grado y maestros de área.
B35: En el departamento Capital están incluidas además de las provinciales, las unidades educativas municipales y nacionales, al igual que sus alumnos y personal docente.

Sheet CSC4.1 (hidden)
B2: CUADRO 4.1 Unidades educativas, alumnos y personal docente en actividad, por sector y dependencia, según ámbito
C3: Ámbito | D3: Total | E3: Estatal | G3: Privado
E4: Provincial | F4: Nacional (**) | G4: Provincial
B5: Unidades educativas | C5: Total | D5: 904 | E5: 492 | F5: 3 | G5: 409 | O5: =E3 -> Estatal | P5: =G3 -> Privado
C6: Urbano | D6: 781 | E6: 404 | F6: 3 | G6: 374 | O6: =E5+F5 -> 495 | P6: =G5 -> 409
C7: Rural | D7: 123 | E7: 88 | G7: 35
B8: Alumnos | C8: Total | D8: 344714 | E8: 205212 | F8: 3473 | G8: 136029
C9: Urbano | D9: 317834 | E9: 183310 | F9: 3473 | G9: 131051 | O9: =E8+F8 -> 208685 | P9: =G8 -> 136029
C10: Rural | D10: 26880 | E10: 21902 | G10: 4978
B11: Personal docente (*) | C11: Total | D11: 59430 | E11: 39016 | F11: 704 | G11: 19710
C12: Urbano | D12: 52555 | E12: 33225 | F12: 704 | G12: 18626 | O12: =E11+F11 -> 39720 | P12: =G11 -> 19710
C13: Rural | D13: 6875 | E13: 5791 | G13: 1084
B16: (*) El personal docente en actividad hace referencia a todas las personas con designación docente que se desempeñan en las unidades educativas del nivel. Por esta razón, se cuentan tantas veces como ofertas en las que trabajan.
B17: (**) Las unidades educativas nacionales de nivel secundario dependen de la Universidad Nacional de Córdoba y del Ministerio de Defensa.
B18: Se agregaron manualmente unos 305 alumnos correspondientes al CUE anexo 140523500, porque estaba mal cargado el ciclo básico. En todas las tablas de matrícula se incluyeron estos alumnos.

Sheet CSC4.2 (hidden)
B2: CUADRO 4.2 Unidades educativas, alumnos y personal docente en actividad, por sector, según departamento
B3: Departamento | C3: Total | F3: Estatal | I3: Privado
C4: Unidades educativas | D4: Alumnos | E4: Personal docente (*) | F4: Unidades educativas | G4: Alumnos | H4: Personal docente | I4: Unidades educativas | J4: Alumnos | K4: Personal docente
B5: Total Córdoba | C5: 904 | D5: 344714 | E5: 59430 | F5: 495 | G5: 208685 | H5: 39720 | I5: 409 | J5: 136029 | K5: 19710
B6: Calamuchita | C6: 22 | D6: 7150 | E6: 1128 | F6: 13 | G6: 4506 | H6: 751 | I6: 9 | J6: 2644 | K6: 377
B7: Capital | C7: 289 | D7: 132807 | E7: 21620 | F7: 140 | G7: 74557 | H7: 13726 | I7: 149 | J7: 58250 | K7: 7894
B8: Colón | C8: 57 | D8: 26844 | E8: 4070 | F8: 34 | G8: 17602 | H8: 2838 | I8: 23 | J8: 9242 | K8: 1232
B9: Cruz del Eje | C9: 19 | D9: 6443 | E9: 1274 | F9: 14 | G9: 4665 | H9: 979 | I9: 5 | J9: 1778 | K9: 295
B10: General Roca | C10: 14 | D10: 3209 | E10: 684 | F10: 9 | G10: 2583 | H10: 529 | I10: 5 | J10: 626 | K10: 155
B11: General San Martín | C11: 33 | D11: 13655 | E11: 2207 | F11: 16 | G11: 6565 | H11: 1172 | I11: 17 | J11: 7090 | K11: 1035
B12: Ischilín | C12: 5 | D12: 3807 | E12: 577 | F12: 3 | G12: 2951 | H12: 464 | I12: 2 | J12: 856 | K12: 113
B13: Juárez Celman | C13: 22 | D13: 6605 | E13: 1123 | F13: 12 | G13: 3621 | H13: 652 | I13: 10 | J13: 2984 | K13: 471
B14: Marcos Juárez | C14: 34 | D14: 8819 | E14: 1809 | F14: 16 | G14: 4819 | H14: 1026 | I14: 18 | J14: 4000 | K14: 783
B15: Minas | C15: 2 | D15: 451 | E15: 202 | F15: 2 | G15: 451 | H15: 202
B16: Pocho | C16: 2 | D16: 404 | E16: 131 | F16: 2 | G16: 404 | H16: 131
B17: Pte. Roque Sáenz Peña | C17: 11 | D17: 3551 | E17: 710 | F17: 8 | G17: 2704 | H17: 580 | I17: 3 | J17: 847 | K17: 130
B18: Punilla | C18: 52 | D18: 20098 | E18: 3076 | F18: 26 | G18: 11855 | H18: 1899 | I18: 26 | J18: 8243 | K18: 1177
B19: Río Cuarto | C19: 70 | D19: 24459 | E19: 4248 | F19: 35 | G19: 13935 | H19: 2679 | I19: 35 | J19: 10524 | K19: 1569
B20: Río Primero | C20: 16 | D20: 5709 | E20: 1076 | F20: 10 | G20: 3934 | H20: 816 | I20: 6 | J20: 1775 | K20: 260
B21: Río Seco | C21: 5 | D21: 1631 | E21: 289 | F21: 5 | G21: 1631 | H21: 289
B22: Río Segundo | C22: 37 | D22: 10791 | E22: 2212 | F22: 21 | G22: 6506 | H22: 1549 | I22: 16 | J22: 4285 | K22: 663
B23: San Alberto | C23: 15 | D23: 3871 | E23: 862 | F23: 11 | G23: 2881 | H23: 693 | I23: 4 | J23: 990 | K23: 169
B24: San Javier | C24: 16 | D24: 6340 | E24: 1241 | F24: 10 | G24: 4714 | H24: 964 | I24: 6 | J24: 1626 | K24: 277
B25: San Justo | C25: 65 | D25: 21134 | E25: 3841 | F25: 36 | G25: 13639 | H25: 2727 | I25: 29 | J25: 7495 | K25: 1114
B26: Santa María | C26: 31 | D26: 12288 | E26: 2112 | F26: 22 | G26: 8666 | H26: 1603 | I26: 9 | J26: 3622 | K26: 509
B27: Sobremonte | C27: 1 | D27: 492 | E27: 96 | F27: 1 | G27: 492 | H27: 96
B28: Tercero Arriba | C28: 35 | D28: 10494 | E28: 2005 | F28: 18 | G28: 5869 | H28: 1275 | I28: 17 | J28: 4625 | K28: 730
B29: Totoral | C29: 9 | D29: 2054 | E29: 468 | F29: 8 | G29: 1843 | H29: 437 | I29: 1 | J29: 211 | K29: 31
B30: Tulumba | C30: 5 | D30: 1173 | E30: 279 | F30: 5 | G30: 1173 | H30: 279
B31: Unión | C31: 37 | D31: 10435 | E31: 2090 | F31: 18 | G31: 6119 | H31: 1364 | I31: 19 | J31: 4316 | K31: 726
B33: (*) El personal docente en actividad hace referencia a todas las personas con designación docente que se desempeñan en las unidades educativas del nivel. Por esta razón, se cuentan tantas veces como ofertas en las que trabajan.
B34: En el departamento Capital están incluidas además de las provinciales, las unidades educativas nacionales, al igual que sus alumnos y personal docente.

Sheet CSC4.3 (hidden)
B2: CUADRO 4.3 Bases y anexos, por sector y ámbito, según departamento
B3: Departamento | C3: Total | E3: Estatal | I3: Privado
E4: Urbano | G4: Rural | I4: Urbano | K4: Rural
C5: Bases | D5: Anexos | E5: Bases | F5: Anexos | G5: Bases | H5: Anexos | I5: Bases | J5: Anexos | K5: Bases | L5: Anexos
B6: Total Córdoba | C6: 904 | D6: 130 | E6: 407 | F6: 8 | G6: 88 | H6: 119 | I6: 374 | J6: 2 | K6: 35 | L6: 1
B7: Calamuchita | C7: 22 | D7: 4 | E7: 10 | G7: 3 | H7: 4 | I7: 7 | K7: 2
B8: Capital | C8: 289 | D8: 2 | E8: 140 | F8: 2 | I8: 149
B9: Colón | C9: 57 | D9: 6 | E9: 29 | F9: 1 | G9: 5 | H9: 5 | I9: 23
B10: Cruz del Eje | C10: 19 | D10: 3 | E10: 8 | G10: 6 | H10: 3 | I10: 4 | K10: 1
B11: General Roca | C11: 14 | D11: 2 | E11: 8 | G11: 1 | H11: 2 | I11: 2 | K11: 3
B12: General San Martín | C12: 33 | D12: 1 | E12: 12 | G12: 4 | H12: 1 | I12: 13 | K12: 4
B13: Ischilín | C13: 5 | D13: 5 | E13: 3 | H13: 5 | I13: 2
B14: Juárez Celman | C14: 22 | D14: 2 | E14: 10 | G14: 2 | H14: 1 | I14: 6 | J14: 1 | K14: 4
B15: Marcos Juárez | C15: 34 | D15: 1 | E15: 16 | H15: 1 | I15: 16 | K15: 2
B16: Minas | C16: 2 | D16: 7 | E16: 0 | G16: 2 | H16: 7
B17: Pocho | C17: 2 | D17: 3 | E17: 0 | G17: 2 | H17: 3
B18: Pte. Roque Sáenz Peña | C18: 11 | D18: 4 | E18: 5 | G18: 3 | H18: 4 | I18: 3
B19: Punilla | C19: 52 | D19: 1 | E19: 22 | G19: 4 | H19: 1 | I19: 25 | K19: 1
B20: Río Cuarto | C20: 70 | D20: 12 | E20: 29 | F20: 2 | G20: 6 | H20: 9 | I20: 33 | J20: 1 | K20: 2
B21: Río Primero | C21: 16 | D21: 12 | E21: 7 | F21: 1 | G21: 3 | H21: 11 | I21: 6
B22: Río Seco | C22: 5 | D22: 3 | E22: 3 | G22: 2 | H22: 3
B23: Río Segundo | C23: 37 | D23: 9 | E23: 15 | F23: 1 | G23: 6 | H23: 8 | I23: 14 | K23: 2
B24: San Alberto | C24: 15 | D24: 7 | E24: 6 | G24: 5 | H24: 7 | I24: 4
B25: San Javier | C25: 16 | D25: 3 | E25: 6 | G25: 4 | H25: 3 | I25: 5 | K25: 1
B26: San Justo | C26: 65 | D26: 20 | E26: 26 | G26: 10 | H26: 19 | I26: 23 | K26: 6 | L26: 1
B27: Santa María | C27: 31 | D27: 8 | E27: 16 | F27: 1 | G27: 6 | H27: 7 | I27: 9
B28: Sobremonte | C28: 1 | D28: 2 | E28: 1 | H28: 2
B29: Tercero Arriba | C29: 35 | D29: 4 | E29: 15 | G29: 3 | H29: 4 | I29: 15 | K29: 2
B30: Totoral | C30: 9 | D30: 2 | E30: 4 | G30: 4 | H30: 2 | K30: 1
B31: Tulumba | C31: 5 | D31: 2 | E31: 1 | G31: 4 | H31: 2
B32: Unión | C32: 37 | D32: 5 | E32: 15 | G32: 3 | H32: 5 | I32: 15 | K32: 4
B33: En el departamento Capital están incluidas además de las provinciales, las bases nacionales (y sus anexos, en el caso que correspondan).

Sheet CSC4.4 (hidden)
B2: CUADRO 4.4 Alumnos por sexo, según departamento
B3: Departamento | C3: Total | D3: Mujeres | E3: Varones
B4: Total Córdoba | C4: 344714 | D4: 172107 | E4: 172607
B5: Calamuchita | C5: 7150 | D5: 3470 | E5: 3680
B6: Capital | C6: 132807 | D6: 66074 | E6: 66733
B7: Colón | C7: 26844 | D7: 13449 | E7: 13395
B8: Cruz del Eje | C8: 6443 | D8: 3228 | E8: 3215
B9: General Roca | C9: 3209 | D9: 1672 | E9: 1537
B10: General San Martín | C10: 13655 | D10: 6715 | E10: 6940
B11: Ischilín | C11: 3807 | D11: 1858 | E11: 1949
B12: Juárez Celman | C12: 6605 | D12: 3245 | E12: 3360
B13: Marcos Juárez | C13: 8819 | D13: 4330 | E13: 4489
B14: Minas | C14: 451 | D14: 216 | E14: 235
B15: Pocho | C15: 404 | D15: 195 | E15: 209
B16: Pte. Roque Sáenz Peña | C16: 3551 | D16: 1778 | E16: 1773
B17: Punilla | C17: 20098 | D17: 10017 | E17: 10081
B18: Río Cuarto | C18: 24459 | D18: 12228 | E18: 12231
B19: Río Primero | C19: 5709 | D19: 2877 | E19: 2832
B20: Río Seco | C20: 1631 | D20: 814 | E20: 817
B21: Río Segundo | C21: 10791 | D21: 5276 | E21: 5515
B22: San Alberto | C22: 3871 | D22: 1881 | E22: 1990
B23: San Javier | C23: 6340 | D23: 3264 | E23: 3076
B24: San Justo | C24: 21134 | D24: 10681 | E24: 10453
B25: Santa María | C25: 12288 | D25: 6188 | E25: 6100
B26: Sobremonte | C26: 492 | D26: 280 | E26: 212
B27: Tercero Arriba | C27: 10494 | D27: 5354 | E27: 5140
B28: Totoral | C28: 2054 | D28: 1048 | E28: 1006
B29: Tulumba | C29: 1173 | D29: 579 | E29: 594
B30: Unión | C30: 10435 | D30: 5390 | E30: 5045
B32: En el departamento Capital están incluidas además de las provinciales, las unidades educativas nacionales, al igual que sus alumnos y personal docente.

Sheet CSC4.4 A (hidden)
B2: CUADRO 4.4. A Sector estatal. Alumnos por ámbito y sexo, según departamento
B3: Departamento | C3: Urbano | F3: Rural
C4: Total | D4: Mujeres | E4: Varones | F4: Total | G4: Mujeres | H4: Varones
B5: Total Córdoba | C5: 186783 | D5: 88827 | E5: 97956 | F5: 21902 | G5: 10955 | H5: 10947
B6: Calamuchita | C6: 3740 | D6: 1652 | E6: 2088 | F6: 766 | G6: 383 | H6: 383
B7: Capital | C7: 74557 | D7: 35714 | E7: 38843
B8: Colón | C8: 15211 | D8: 7332 | E8: 7879 | F8: 2391 | G8: 1188 | H8: 1203
B9: Cruz del Eje | C9: 3614 | D9: 1691 | E9: 1923 | F9: 1051 | G9: 539 | H9: 512
B10: General Roca | C10: 2345 | D10: 1197 | E10: 1148 | F10: 238 | G10: 129 | H10: 109
B11: General San Martín | C11: 5893 | D11: 2567 | E11: 3326 | F11: 672 | G11: 304 | H11: 368
B12: Ischilín | C12: 2655 | D12: 1237 | E12: 1418 | F12: 296 | G12: 138 | H12: 158
B13: Juárez Celman | C13: 3263 | D13: 1527 | E13: 1736 | F13: 358 | G13: 183 | H13: 175
B14: Marcos Juárez | C14: 4800 | D14: 2068 | E14: 2732 | F14: 19 | G14: 11 | H14: 8
B15: Minas | F15: 451 | G15: 216 | H15: 235
B16: Pocho | F16: 404 | G16: 195 | H16: 209
B17: Pte. Roque Sáenz Peña | C17: 2247 | D17: 1088 | E17: 1159 | F17: 457 | G17: 233 | H17: 224
B18: Punilla | C18: 10501 | D18: 5063 | E18: 5438 | F18: 1354 | G18: 694 | H18: 660
B19: Río Cuarto | C19: 12613 | D19: 6073 | E19: 6540 | F19: 1322 | G19: 665 | H19: 657
B20: Río Primero | C20: 2781 | D20: 1300 | E20: 1481 | F20: 1153 | G20: 540 | H20: 613
B21: Río Seco | C21: 1151 | D21: 564 | E21: 587 | F21: 480 | G21: 250 | H21: 230
B22: Río Segundo | C22: 5449 | D22: 2384 | E22: 3065 | F22: 1057 | G22: 523 | H22: 534
B23: San Alberto | C23: 1695 | D23: 795 | E23: 900 | F23: 1186 | G23: 600 | H23: 586
B24: San Javier | C24: 3382 | D24: 1635 | E24: 1747 | F24: 1332 | G24: 699 | H24: 633
B25: San Justo | C25: 11465 | D25: 5362 | E25: 6103 | F25: 2174 | G25: 1133 | H25: 1041
B26: Santa María | C26: 6873 | D26: 3457 | E26: 3416 | F26: 1793 | G26: 847 | H26: 946
B27: Sobremonte | C27: 384 | D27: 214 | E27: 170 | F27: 108 | G27: 66 | H27: 42
B28: Tercero Arriba | C28: 5386 | D28: 2614 | E28: 2772 | F28: 483 | G28: 235 | H28: 248
B29: Totoral | C29: 1225 | D29: 605 | E29: 620 | F29: 618 | G29: 308 | H29: 310
B30: Tulumba | C30: 543 | D30: 267 | E30: 276 | F30: 630 | G30: 312 | H30: 318
B31: Unión | C31: 5010 | D31: 2421 | E31: 2589 | F31: 1109 | G31: 564 | H31: 545
B33: En el departamento Capital están incluidas además de las provinciales, las unidades educativas nacionales, al igual que sus alumnos y personal docente.

Sheet CSC4.4 B (hidden)
B2: CUADRO 4.4. B Sector privado. Alumnos por ámbito y sexo, según departamento
B3: Departamento | C3: Urbano | F3: Rural
C4: Total | D4: Mujeres | E4: Varones | F4: Total | G4: Mujeres | H4: Varones
B5: Total Córdoba | C5: 131051 | D5: 69799 | E5: 61252 | F5: 4978 | G5: 2526 | H5: 2452
B6: Calamuchita | C6: 2345 | D6: 1276 | E6: 1069 | F6: 299 | G6: 159 | H6: 140
B7: Capital | C7: 58250 | D7: 30360 | E7: 27890
B8: Colón | C8: 9242 | D8: 4929 | E8: 4313
B9: Cruz del Eje | C9: 1604 | D9: 908 | E9: 696 | F9: 174 | G9: 90 | H9: 84
B10: General Roca | C10: 299 | D10: 176 | E10: 123 | F10: 327 | G10: 170 | H10: 157
B11: General San Martín | C11: 6531 | D11: 3572 | E11: 2959 | F11: 559 | G11: 272 | H11: 287
B12: Ischilín | C12: 856 | D12: 483 | E12: 373
B13: Juárez Celman | C13: 2436 | D13: 1249 | E13: 1187 | F13: 548 | G13: 286 | H13: 262
B14: Marcos Juárez | C14: 3760 | D14: 2150 | E14: 1610 | F14: 240 | G14: 101 | H14: 139
B15: Minas
B16: Pocho
B17: Pte. Roque Sáenz Peña | C17: 847 | D17: 457 | E17: 390
B18: Punilla | C18: 8224 | D18: 4253 | E18: 3971 | F18: 19 | G18: 7 | H18: 12
B19: Río Cuarto | C19: 10217 | D19: 5405 | E19: 4812 | F19: 307 | G19: 85 | H19: 222
B20: Río Primero | C20: 1775 | D20: 1037 | E20: 738
B21: Río Seco
B22: Río Segundo | C22: 4048 | D22: 2239 | E22: 1809 | F22: 237 | G22: 130 | H22: 107
B23: San Alberto | C23: 990 | D23: 486 | E23: 504
B24: San Javier | C24: 1454 | D24: 825 | E24: 629 | F24: 172 | G24: 105 | H24: 67
B25: San Justo | C25: 6412 | D25: 3649 | E25: 2763 | F25: 1083 | G25: 537 | H25: 546
B26: Santa María | C26: 3622 | D26: 1884 | E26: 1738
B27: Sobremonte
B28: Tercero Arriba | C28: 4391 | D28: 2390 | E28: 2001 | F28: 234 | G28: 115 | H28: 119
B29: Totoral | F29: 211 | G29: 135 | H29: 76
B30: Tulumba
B31: Unión | C31: 3748 | D31: 2071 | E31: 1677 | F31: 568 | G31: 334 | H31: 234
B33: Los departamento de Minas, Pocho, Río Seco, Sobremonte y Tulumba no cuentan con oferta del sector privado.

Sheet CSC4.5 (hidden)
B2: CUADRO 4.5 Alumnos por año de estudio, según departamento
B3: Departamento | C3: Total | D3: 1º | E3: 2º | F3: 3º | G3: 4º | H3: 5º | I3: 6º | J3: 7º
B4: Total Córdoba | C4: 344714 | D4: 66053 | E4: 61763 | F4: 60720 | G4: 56867 | H4: 49410 | I4: 43303 | J4: 6598
B5: Calamuchita | C5: 7150 | D5: 1328 | E5: 1285 | F5: 1330 | G5: 1179 | H5: 960 | I5: 870 | J5: 198
B6: Capital | C6: 132807 | D6: 26344 | E6: 23716 | F6: 23357 | G6: 21911 | H6: 19055 | I6: 17115 | J6: 1309
B7: Colón | C7: 26844 | D7: 5104 | E7: 4849 | F7: 4696 | G7: 4379 | H7: 3879 | I7: 3350 | J7: 587
B8: Cruz del Eje | C8: 6443 | D8: 1236 | E8: 1135 | F8: 1142 | G8: 1095 | H8: 932 | I8: 790 | J8: 113
B9: General Roca | C9: 3209 | D9: 615 | E9: 595 | F9: 577 | G9: 531 | H9: 425 | I9: 392 | J9: 74
B10: General San Martín | C10: 13655 | D10: 2501 | E10: 2472 | F10: 2387 | G10: 2310 | H10: 1962 | I10: 1736 | J10: 287
B11: Ischilín | C11: 3807 | D11: 724 | E11: 703 | F11: 698 | G11: 606 | H11: 529 | I11: 420 | J11: 127
B12: Juárez Celman | C12: 6605 | D12: 1183 | E12: 1195 | F12: 1148 | G12: 1059 | H12: 965 | I12: 777 | J12: 278
B13: Marcos Juárez | C13: 8819 | D13: 1667 | E13: 1630 | F13: 1591 | G13: 1481 | H13: 1162 | I13: 1078 | J13: 210
B14: Minas | C14: 451 | D14: 74 | E14: 77 | F14: 74 | G14: 70 | H14: 81 | I14: 71 | J14: 4
B15: Pocho | C15: 404 | D15: 57 | E15: 70 | F15: 71 | G15: 67 | H15: 60 | I15: 52 | J15: 27
B16: Pte. Roque Sáenz Peña | C16: 3551 | D16: 628 | E16: 594 | F16: 650 | G16: 574 | H16: 524 | I16: 478 | J16: 103
B17: Punilla | C17: 20098 | D17: 3786 | E17: 3481 | F17: 3581 | G17: 3419 | H17: 2855 | I17: 2594 | J17: 382
B18: Río Cuarto | C18: 24459 | D18: 4689 | E18: 4480 | F18: 4265 | G18: 3985 | H18: 3502 | I18: 3000 | J18: 538
B19: Río Primero | C19: 5709 | D19: 1059 | E19: 1011 | F19: 986 | G19: 910 | H19: 783 | I19: 772 | J19: 188
B20: Río Seco | C20: 1631 | D20: 305 | E20: 280 | F20: 302 | G20: 273 | H20: 240 | I20: 196 | J20: 35
B21: Río Segundo | C21: 10791 | D21: 1955 | E21: 1853 | F21: 1873 | G21: 1820 | H21: 1656 | I21: 1356 | J21: 278
B22: San Alberto | C22: 3871 | D22: 756 | E22: 713 | F22: 688 | G22: 683 | H22: 545 | I22: 399 | J22: 87
B23: San Javier | C23: 6340 | D23: 1256 | E23: 1166 | F23: 1121 | G23: 1012 | H23: 908 | I23: 773 | J23: 104
B24: San Justo | C24: 21134 | D24: 3967 | E24: 3895 | F24: 3761 | G24: 3467 | H24: 2964 | I24: 2600 | J24: 480
B25: Santa María | C25: 12288 | D25: 2435 | E25: 2222 | F25: 2175 | G25: 2018 | H25: 1723 | I25: 1404 | J25: 311
B26: Sobremonte | C26: 492 | D26: 85 | E26: 98 | F26: 92 | G26: 79 | H26: 69 | I26: 51 | J26: 18
B27: Tercero Arriba | C27: 10494 | D27: 1871 | E27: 1863 | F27: 1808 | G27: 1742 | H27: 1573 | I27: 1330 | J27: 307
B28: Totoral | C28: 2054 | D28: 368 | E28: 379 | F28: 339 | G28: 331 | H28: 302 | I28: 254 | J28: 81
B29: Tulumba | C29: 1173 | D29: 216 | E29: 192 | F29: 199 | G29: 194 | H29: 149 | I29: 129 | J29: 94
B30: Unión | C30: 10435 | D30: 1844 | E30: 1809 | F30: 1809 | G30: 1672 | H30: 1607 | I30: 1316 | J30: 378
B32: En el departamento Capital están incluidas además de las provinciales, las unidades educativas nacionales, al igual que sus alumnos y personal docente.

Sheet CSC4.5. A (hidden)
B2: CUADRO 4.5. A Ciclo básico. Alumnos por año de estudio y sexo, según departamento
B3: Departamento | C3: Total (*) | E3: 1° | G3: 2° | I3: 3°
C4: Mujeres | D4: Varones | E4: Mujeres | F4: Varones | G4: Mujeres | H4: Varones | I4: Mujeres | J4: Varones
B5: Total Córdoba | C5: 92303 | D5: 96233 | E5: 32349 | F5: 33704 | G5: 30044 | H5: 31719 | I5: 29910 | J5: 30810
B6: Calamuchita | C6: 1881 | D6: 2062 | E6: 665 | F6: 663 | G6: 606 | H6: 679 | I6: 610 | J6: 720
B7: Capital | C7: 35917 | D7: 37500 | E7: 12879 | F7: 13465 | G7: 11511 | H7: 12205 | I7: 11527 | J7: 11830
B8: Colón | C8: 7236 | D8: 7413 | E8: 2572 | F8: 2532 | G8: 2344 | H8: 2505 | I8: 2320 | J8: 2376
B9: Cruz del Eje | C9: 1701 | D9: 1812 | E9: 589 | F9: 647 | G9: 544 | H9: 591 | I9: 568 | J9: 574
B10: General Roca | C10: 887 | D10: 900 | E10: 314 | F10: 301 | G10: 300 | H10: 295 | I10: 273 | J10: 304
B11: General San Martín | C11: 3580 | D11: 3780 | E11: 1235 | F11: 1266 | G11: 1194 | H11: 1278 | I11: 1151 | J11: 1236
B12: Ischilín | C12: 1015 | D12: 1110 | E12: 343 | F12: 381 | G12: 349 | H12: 354 | I12: 323 | J12: 375
B13: Juárez Celman | C13: 1696 | D13: 1830 | E13: 568 | F13: 615 | G13: 561 | H13: 634 | I13: 567 | J13: 581
B14: Marcos Juárez | C14: 2402 | D14: 2486 | E14: 843 | F14: 824 | G14: 780 | H14: 850 | I14: 779 | J14: 812
B15: Minas | C15: 105 | D15: 120 | E15: 26 | F15: 48 | G15: 37 | H15: 40 | I15: 42 | J15: 32
B16: Pocho | C16: 90 | D16: 108 | E16: 28 | F16: 29 | G16: 27 | H16: 43 | I16: 35 | J16: 36
B17: Pte. Roque Sáenz Peña | C17: 920 | D17: 952 | E17: 308 | F17: 320 | G17: 289 | H17: 305 | I17: 323 | J17: 327
B18: Punilla | C18: 5332 | D18: 5516 | E18: 1865 | F18: 1921 | G18: 1692 | H18: 1789 | I18: 1775 | J18: 1806
B19: Río Cuarto | C19: 6516 | D19: 6918 | E19: 2276 | F19: 2413 | G19: 2162 | H19: 2318 | I19: 2078 | J19: 2187
B20: Río Primero | C20: 1461 | D20: 1595 | E20: 499 | F20: 560 | G20: 474 | H20: 537 | I20: 488 | J20: 498
B21: Río Seco | C21: 418 | D21: 469 | E21: 140 | F21: 165 | G21: 126 | H21: 154 | I21: 152 | J21: 150
B22: Río Segundo | C22: 2710 | D22: 2971 | E22: 974 | F22: 981 | G22: 854 | H22: 999 | I22: 882 | J22: 991
B23: San Alberto | C23: 1001 | D23: 1156 | E23: 350 | F23: 406 | G23: 315 | H23: 398 | I23: 336 | J23: 352
B24: San Javier | C24: 1790 | D24: 1753 | E24: 624 | F24: 632 | G24: 603 | H24: 563 | I24: 563 | J24: 558
B25: San Justo | C25: 5748 | D25: 5875 | E25: 1919 | F25: 2048 | G25: 1914 | H25: 1981 | I25: 1915 | J25: 1846
B26: Santa María | C26: 3374 | D26: 3458 | E26: 1166 | F26: 1269 | G26: 1091 | H26: 1131 | I26: 1117 | J26: 1058
B27: Sobremonte | C27: 154 | D27: 121 | E27: 50 | F27: 35 | G27: 49 | H27: 49 | I27: 55 | J27: 37
B28: Tercero Arriba | C28: 2782 | D28: 2760 | E28: 928 | F28: 943 | G28: 967 | H28: 896 | I28: 887 | J28: 921
B29: Totoral | C29: 537 | D29: 549 | E29: 176 | F29: 192 | G29: 202 | H29: 177 | I29: 159 | J29: 180
B30: Tulumba | C30: 280 | D30: 327 | E30: 104 | F30: 112 | G30: 84 | H30: 108 | I30: 92 | J30: 107
B31: Unión | C31: 2770 | D31: 2692 | E31: 908 | F31: 936 | G31: 969 | H31: 840 | I31: 893 | J31: 916
B33: (*) Cabe aclarar que la suma de los alumnos matriculados en el ciclo básico y de los alumnos del ciclo orientado corresponde al total de la matrícula en el nivel secundario.
B34: En el departamento Capital están incluidas además de las provinciales, las unidades educativas nacionales, al igual que sus alumnos y personal docente.

Sheet CSC4.5.B (hidden)
B2: CUADRO 4.5. B Ciclo orientado. Alumnos por año de estudio y sexo, según departamento
B3: Departamento | C3: Total (*) | E3: 4° | G3: 5° | I3: 6° | K3: 7°
C4: Mujeres | D4: Varones | E4: Mujeres | F4: Varones | G4: Mujeres | H4: Varones | I4: Mujeres | J4: Varones | K4: Mujeres | L4: Varones
B5: Total Córdoba | C5: 79804 | D5: 76374 | E5: 28640 | F5: 28227 | G5: 25808 | H5: 23602 | I5: 22938 | J5: 20365 | K5: 2418 | L5: 4180
B6: Calamuchita | C6: 1589 | D6: 1618 | E6: 563 | F6: 616 | G6: 511 | H6: 449 | I6: 455 | J6: 415 | K6: 60 | L6: 138
B7: Capital | C7: 30157 | D7: 29233 | E7: 10987 | F7: 10924 | G7: 9911 | H7: 9144 | I7: 8905 | J7: 8210 | K7: 354 | L7: 955
B8: Colón | C8: 6213 | D8: 5982 | E8: 2170 | F8: 2209 | G8: 2012 | H8: 1867 | I8: 1799 | J8: 1551 | K8: 232 | L8: 355
B9: Cruz del Eje | C9: 1527 | D9: 1403 | E9: 579 | F9: 516 | G9: 485 | H9: 447 | I9: 406 | J9: 384 | K9: 57 | L9: 56
B10: General Roca | C10: 785 | D10: 637 | E10: 294 | F10: 237 | G10: 250 | H10: 175 | I10: 216 | J10: 176 | K10: 25 | L10: 49
B11: General San Martín | C11: 3135 | D11: 3160 | E11: 1098 | F11: 1212 | G11: 1026 | H11: 936 | I11: 910 | J11: 826 | K11: 101 | L11: 186
B12: Ischilín | C12: 843 | D12: 839 | E12: 305 | F12: 301 | G12: 291 | H12: 238 | I12: 205 | J12: 215 | K12: 42 | L12: 85
B13: Juárez Celman | C13: 1549 | D13: 1530 | E13: 517 | F13: 542 | G13: 517 | H13: 448 | I13: 402 | J13: 375 | K13: 113 | L13: 165
B14: Marcos Juárez | C14: 1928 | D14: 2003 | E14: 732 | F14: 749 | G14: 579 | H14: 583 | I14: 559 | J14: 519 | K14: 58 | L14: 152
B15: Minas | C15: 111 | D15: 115 | E15: 27 | F15: 43 | G15: 44 | H15: 37 | I15: 37 | J15: 34 | K15: 3 | L15: 1
B16: Pocho | C16: 105 | D16: 101 | E16: 30 | F16: 37 | G16: 34 | H16: 26 | I16: 31 | J16: 21 | K16: 10 | L16: 17
B17: Pte. Roque Sáenz Peña | C17: 858 | D17: 821 | E17: 325 | F17: 249 | G17: 255 | H17: 269 | I17: 244 | J17: 234 | K17: 34 | L17: 69
B18: Punilla | C18: 4685 | D18: 4565 | E18: 1703 | F18: 1716 | G18: 1487 | H18: 1368 | I18: 1379 | J18: 1215 | K18: 116 | L18: 266
B19: Río Cuarto | C19: 5712 | D19: 5313 | E19: 2025 | F19: 1960 | G19: 1826 | H19: 1676 | I19: 1643 | J19: 1357 | K19: 218 | L19: 320
B20: Río Primero | C20: 1416 | D20: 1237 | E20: 479 | F20: 431 | G20: 426 | H20: 357 | I20: 422 | J20: 350 | K20: 89 | L20: 99
B21: Río Seco | C21: 396 | D21: 348 | E21: 153 | F21: 120 | G21: 117 | H21: 123 | I21: 112 | J21: 84 | K21: 14 | L21: 21
B22: Río Segundo | C22: 2566 | D22: 2544 | E22: 924 | F22: 896 | G22: 848 | H22: 808 | I22: 717 | J22: 639 | K22: 77 | L22: 201
B23: San Alberto | C23: 880 | D23: 834 | E23: 337 | F23: 346 | G23: 287 | H23: 258 | I23: 221 | J23: 178 | K23: 35 | L23: 52
B24: San Javier | C24: 1474 | D24: 1323 | E24: 507 | F24: 505 | G24: 485 | H24: 423 | I24: 448 | J24: 325 | K24: 34 | L24: 70
B25: San Justo | C25: 4933 | D25: 4578 | E25: 1791 | F25: 1676 | G25: 1568 | H25: 1396 | I25: 1408 | J25: 1192 | K25: 166 | L25: 314
B26: Santa María | C26: 2814 | D26: 2642 | E26: 1000 | F26: 1018 | G26: 908 | H26: 815 | I26: 766 | J26: 638 | K26: 140 | L26: 171
B27: Sobremonte | C27: 126 | D27: 91 | E27: 42 | F27: 37 | G27: 43 | H27: 26 | I27: 31 | J27: 20 | K27: 10 | L27: 8
B28: Tercero Arriba | C28: 2572 | D28: 2380 | E28: 914 | F28: 828 | G28: 803 | H28: 770 | I28: 716 | J28: 614 | K28: 139 | L28: 168
B29: Totoral | C29: 511 | D29: 457 | E29: 171 | F29: 160 | G29: 154 | H29: 148 | I29: 144 | J29: 110 | K29: 42 | L29: 39
B30: Tulumba | C30: 299 | D30: 267 | E30: 100 | F30: 94 | G30: 77 | H30: 72 | I30: 66 | J30: 63 | K30: 56 | L30: 38
B31: Unión | C31: 2620 | D31: 2353 | E31: 867 | F31: 805 | G31: 864 | H31: 743 | I31: 696 | J31: 620 | K31: 193 | L31: 185
B33: (*) Cabe aclarar que la suma de los alumnos matriculados en el ciclo básico y de los alumnos del ciclo orientado corresponde al total de la matrícula en el nivel secundario.
B34: En el departamento Capital están incluidas además de las provinciales, las unidades educativas nacionales, al igual que sus alumnos y personal docente.

Sheet CSC4.6 (hidden)
B2: CUADRO 4.6 Total de alumnos, total y porcentaje de alumnos repetidores y con sobreedad, según departamento
B3: Departamento | C3: Alumnos | D3: Alumnos repetidores | E3: Porcentaje de repetidores | F3: Alumnos con sobreedad | G3: Porcentaje de sobreedad
B4: Total Córdoba | C4: 344714 | D4: 19817 | E4: 5.748823663 | F4: 73404 | G4: 21.2941743
B5: Calamuchita | C5: 7150 | D5: 394 | E5: 5.51048951 | F5: 1644 | G5: 22.99300699
B6: Capital | C6: 132807 | D6: 8109 | E6: 6.105852854 | F6: 30994 | G6: 23.33762528
B7: Colón | C7: 26844 | D7: 949 | E7: 3.53524065 | F7: 5457 | G7: 20.32856504
B8: Cruz del Eje | C8: 6443 | D8: 434 | E8: 6.73599255 | F8: 1577 | G8: 24.47617569
B9: General Roca | C9: 3209 | D9: 174 | E9: 5.422249922 | F9: 516 | G9: 16.07977563
B10: General San Martín | C10: 13655 | D10: 576 | E10: 4.218235079 | F10: 2574 | G10: 18.85023801
B11: Ischilín | C11: 3807 | D11: 314 | E11: 8.247964276 | F11: 872 | G11: 22.90517468
B12: Juárez Celman | C12: 6605 | D12: 407 | E12: 6.161998486 | F12: 1322 | G12: 20.01514005
B13: Marcos Juárez | C13: 8819 | D13: 598 | E13: 6.780814151 | F13: 1788 | G13: 20.27440753
B14: Minas | C14: 451 | D14: 29 | E14: 6.430155211 | F14: 141 | G14: 31.26385809
B15: Pocho | C15: 404 | D15: 20 | E15: 4.95049505 | F15: 86 | G15: 21.28712871
B16: Pte. Roque Sáenz Peña | C16: 3551 | D16: 188 | E16: 5.2942833 | F16: 724 | G16: 20.38862292
B17: Punilla | C17: 20098 | D17: 1255 | E17: 6.244402428 | F17: 3992 | G17: 19.8626729
B18: Río Cuarto | C18: 24459 | D18: 1176 | E18: 4.808046118 | F18: 4436 | G18: 18.13647328
B19: Río Primero | C19: 5709 | D19: 300 | E19: 5.254860746 | F19: 1008 | G19: 17.65633211
B20: Río Seco | C20: 1631 | D20: 104 | E20: 6.376456162 | F20: 343 | G20: 21.03004292
B21: Río Segundo | C21: 10791 | D21: 534 | E21: 4.948568251 | F21: 1825 | G21: 16.91224168
B22: San Alberto | C22: 3871 | D22: 451 | E22: 11.65073624 | F22: 1041 | G22: 26.8922759
B23: San Javier | C23: 6340 | D23: 593 | E23: 9.353312303 | F23: 1772 | G23: 27.94952681
B24: San Justo | C24: 21134 | D24: 1162 | E24: 5.498249267 | F24: 3850 | G24: 18.21709094
B25: Santa María | C25: 12288 | D25: 878 | E25: 7.145182292 | F25: 2622 | G25: 21.33789062
B26: Sobremonte | C26: 492 | D26: 30 | E26: 6.097560976 | F26: 148 | G26: 30.08130081
B27: Tercero Arriba | C27: 10494 | D27: 485 | E27: 4.621688584 | F27: 1990 | G27: 18.96321708
B28: Totoral | C28: 2054 | D28: 128 | E28: 6.231742941 | F28: 510 | G28: 24.82960078
B29: Tulumba | C29: 1173 | D29: 94 | E29: 8.013640239 | F29: 263 | G29: 22.42114237
B30: Unión | C30: 10435 | D30: 435 | E30: 4.168663153 | F30: 1909 | G30: 18.2942022
B32: En el departamento Capital están incluidas, además de las provinciales, las unidades educativas nacionales, al igual que sus alumnos y personal docente.

Sheet CSC4.7 (hidden)
B2: CUADRO 4.7 Total de alumnos, total y porcentaje de alumnos repetidores, por sexo, según año de estudio
B3: Año de estudio | C3: Alumnos | F3: Alumnos repetidores | I3: Porcentaje de repetidores
C4: Total | D4: Mujeres | E4: Varones | F4: Total | G4: Mujeres | H4: Varones | I4: Total | J4: Mujeres | K4: Varones
B5: Total Córdoba | C5: 344714 | D5: 172107 | E5: 172607 | F5: 19817 | G5: 8253 | H5: 11564 | I5: 5.748823663 | J5: 4.795272708 | K5: 6.699612414
B6: 1° | C6: 66053 | D6: 32349 | E6: 33704 | F6: 4403 | G6: 1804 | H6: 2599 | I6: 6.665859234 | J6: 5.576679341 | K6: 7.71125089
B7: 2° | C7: 61763 | D7: 30044 | E7: 31719 | F7: 4700 | G7: 2059 | H7: 2641 | I7: 7.609733983 | J7: 6.853281853 | K7: 8.326239793
B8: 3° | C8: 60720 | D8: 29910 | E8: 30810 | F8: 4617 | G8: 2016 | H8: 2601 | I8: 7.603754941 | J8: 6.740220662 | K8: 8.442064265
B9: 4° | C9: 56867 | D9: 28640 | E9: 28227 | F9: 3557 | G9: 1373 | H9: 2184 | I9: 6.254945751 | J9: 4.793994413 | K9: 7.737272824
B10: 5° | C10: 49410 | D10: 25808 | E10: 23602 | F10: 1948 | G10: 727 | H10: 1221 | I10: 3.942521757 | J10: 2.816955983 | K10: 5.173290399
B11: 6° | C11: 43303 | D11: 22938 | E11: 20365 | F11: 568 | G11: 263 | H11: 305 | I11: 1.311687412 | J11: 1.146569012 | K11: 1.497667567
B12: 7° | C12: 6598 | D12: 2418 | E12: 4180 | F12: 24 | G12: 11 | H12: 13 | I12: 0.3637465899 | J12: 0.4549214227 | K12: 0.3110047847

Sheet CSC4.8 (hidden)
B2: CUADRO 4.8 Total de alumnos, total y porcentaje de alumnos con sobreedad, según año de estudio
B3: Año de estudio | C3: Alumnos | D3: Alumnos con sobreedad | E3: Porcentaje de sobreedad
B4: Total Córdoba | C4: 332713 | D4: 76637 | E4: 23.03396621
B5: Total Córdoba | C5: 344714 | D5: 73404 | E5: 21.2941743
B6: 1° | C6: 66053 | D6: 10937 | E6: 16.55791561
B7: 2° | C7: 61763 | D7: 12096 | E7: 19.58454091
B8: 3° | C8: 60720 | D8: 15093 | E8: 24.85671937
B9: 4° | C9: 56867 | D9: 14719 | E9: 25.88320115
B10: 5° | C10: 49410 | D10: 10852 | E10: 21.96316535
B11: 6° | C11: 43303 | D11: 8536 | E11: 19.71226012
B12: 7° | C12: 6598 | D12: 1171 | E12: 17.74780236

Sheet CSC4.9 (hidden)
B2: CUADRO 3.4 Tasa de promoción, de no promoción y de abandono anual, por año de estudio, según ciclo lectivo
B3: Ciclo lectivo | C3: Indicadores | D3: Total | E3: 1° | F3: 2° | G3: 3° | H3: 4° | I3: 5° | J3: 6° | K3: 7°
B4: =añoAnuario-5 -> 2016 | C4: Tasa de promoción | D4: 81.2 | E4: 81.8 | F4: 79.7 | G4: 80.4 | H4: 81.5 | I4: 88.3 | J4: 75.7 | K4: 83.4
C5: Tasa de no promoción | D5: 13.8 | E5: 11.3 | F5: 14.5 | G5: 13.8 | H5: 13.8 | I5: 8.4 | J5: 22.6 | K5: 15.4
C6: Tasa de abandono | D6: 5 | E6: 6.9 | F6: 5.7 | G6: 5.7 | H6: 4.7 | I6: 3.3 | J6: 1.7 | K6: 1.2
B7: =B4+1 -> 2017 | C7: Tasa de promoción | D7: 82.2 | E7: 83.1 | F7: 80.8 | G7: 81.2 | H7: 82.8 | I7: 89.3 | J7: 75.6 | K7: 84.7
C8: Tasa de no promoción | D8: 13.2 | E8: 10.6 | F8: 13.9 | G8: 13.5 | H8: 12.5 | I8: 7.9 | J8: 23 | K8: 14.6
C9: Tasa de abandono | D9: 4.6 | E9: 6.3 | F9: 5.3 | G9: 5.3 | H9: 4.8 | I9: 2.8 | J9: 1.4 | K9: 0.7
B10: =B7+1 -> 2018 | C10: Tasa de promoción | D10: 84.1 | E10: 85.3 | F10: 83.5 | G10: 83.5 | H10: 84.5 | I10: 90 | J10: 77.1 | K10: 83.3
C11: Tasa de no promoción | D11: 12.2 | E11: 9.7 | F11: 12.1 | G11: 12.5 | H11: 11.5 | I11: 7.6 | J11: 21.9 | K11: 16.4
C12: Tasa de abandono | D12: 3.7 | E12: 5 | F12: 4.4 | G12: 4 | H12: 4 | I12: 2.5 | J12: 1 | K12: 0.3
B13: =B10+1 -> 2019 | C13: Tasa de promoción | D13: 84.6 | E13: 86.6 | F13: 84.7 | G13: 83.7 | H13: 84.6 | I13: 90 | J13: 76.7 | K13: 82.2
C14: Tasa de no promoción | D14: 12.5 | E14: 9.8 | F14: 12.4 | G14: 12.9 | H14: 12.1 | I14: 7.8 | J14: 21.9 | K14: 17.6
C15: Tasa de abandono | D15: 2.9 | E15: 3.6 | F15: 2.9 | G15: 3.4 | H15: 3.3 | I15: 2.2 | J15: 1.4 | K15: 0.1
B16: =B13+1 -> 2020 | C16: Tasa de promoción | D16: 86.76782364 | E16: 88.99832485 | F16: 88.35831975 | G16: 87.66408533 | H16: 88.13810289 | I16: 91.10663374 | J16: 74.34590066 | K16: 77.78148457
C17: Tasa de no promoción | D17: 12.38830956 | E17: 9.743764735 | F17: 10.83318541 | G17: 11.43272295 | H17: 10.72067029 | I17: 8.371246588 | J17: 25.38360263 | K17: 22.3352794
C18: Tasa de abandono | D18: 0.8438668011 | E18: 1.257910411 | F18: 0.808494844 | G18: 0.9031917177 | H18: 1.141226819 | I18: 0.5221196759 | J18: 0.2704967086 | K18: -0.11676397

Sheet CSC4.10 (hidden)
B2: ="CUADRO 4.10 Alumnos egresados del ciclo lectivo "&añoAnuario-1&", por sector y sexo, según departamento" -> CUADRO 4.10 Alumnos egresados del ciclo lectivo 2020, por sector y sexo, según departamento
B3: Departamento | C3: Total general | F3: Estatal | I3: Privado
C4: Total | D4: Mujeres | E4: Varones | F4: Total | G4: Mujeres | H4: Varones | I4: Total | J4: Mujeres | K4: Varones
B5: Total Córdoba | C5: 31594 | D5: 17767 | E5: 13827 | F5: 15619 | G5: 8603 | H5: 7016 | I5: 15973 | J5: 9164 | K5: 6809
B6: Calamuchita | C6: 476 | D6: 292 | E6: 184 | F6: 207 | G6: 114 | H6: 93 | I6: 269 | J6: 178 | K6: 91
B7: Capital | C7: 12365 | D7: 6846 | E7: 5519 | F7: 5543 | G7: 3062 | H7: 2481 | I7: 6822 | J7: 3784 | K7: 3038
B8: Colón | C8: 2416 | D8: 1411 | E8: 1005 | F8: 1246 | G8: 712 | H8: 534 | I8: 1170 | J8: 699 | K8: 471
B9: Cruz del Eje | C9: 625 | D9: 361 | E9: 264 | F9: 430 | G9: 252 | H9: 178 | I9: 195 | J9: 109 | K9: 86
B10: General Roca | C10: 300 | D10: 194 | E10: 106 | F10: 221 | G10: 145 | H10: 76 | I10: 79 | J10: 49 | K10: 30
B11: General San Martín | C11: 1383 | D11: 735 | E11: 648 | F11: 492 | G11: 221 | H11: 271 | I11: 891 | J11: 514 | K11: 377
B12: Ischilín | C12: 305 | D12: 165 | E12: 140 | F12: 234 | G12: 120 | H12: 114 | I12: 71 | J12: 45 | K12: 26
B13: Juárez Celman | C13: 591 | D13: 328 | E13: 263 | F13: 247 | G13: 127 | H13: 120 | I13: 344 | J13: 201 | K13: 143
B14: Marcos Juárez | C14: 808 | D14: 445 | E14: 363 | F14: 405 | G14: 216 | H14: 189 | I14: 403 | J14: 229 | K14: 174
B15: Minas | C15: 52 | D15: 32 | E15: 20 | F15: 52 | G15: 32 | H15: 20
B16: Pocho | C16: 34 | D16: 20 | E16: 14 | F16: 34 | G16: 20 | H16: 14
B17: Pte. Roque Sáenz Peña | C17: 329 | D17: 164 | E17: 165 | F17: 212 | G17: 100 | H17: 112 | I17: 117 | J17: 64 | K17: 53
B18: Punilla | C18: 1756 | D18: 999 | E18: 757 | F18: 770 | G18: 429 | H18: 341 | I18: 986 | J18: 570 | K18: 416
B19: Río Cuarto | C19: 2248 | D19: 1241 | E19: 1007 | F19: 1028 | G19: 545 | H19: 483 | I19: 1220 | J19: 696 | K19: 524
B20: Río Primero | C20: 559 | D20: 312 | E20: 247 | F20: 321 | G20: 169 | H20: 152 | I20: 238 | J20: 143 | K20: 95
B21: Río Seco | C21: 164 | D21: 104 | E21: 60 | F21: 164 | G21: 104 | H21: 60
B22: Río Segundo | C22: 1044 | D22: 576 | E22: 468 | F22: 490 | G22: 249 | H22: 241 | I22: 554 | J22: 327 | K22: 227
B23: San Alberto | C23: 276 | D23: 167 | E23: 109 | F23: 200 | G23: 116 | H23: 84 | I23: 76 | J23: 51 | K23: 25
B24: San Javier | C24: 573 | D24: 328 | E24: 245 | F24: 413 | G24: 227 | H24: 186 | I24: 160 | J24: 101 | K24: 59
B25: San Justo | C25: 2019 | D25: 1139 | E25: 880 | F25: 1096 | G25: 610 | H25: 486 | I25: 923 | J25: 529 | K25: 394
B26: Santa María | C26: 964 | D26: 580 | E26: 384 | F26: 560 | G26: 332 | H26: 228 | I26: 404 | J26: 248 | K26: 156
B27: Sobremonte | C27: 55 | D27: 34 | E27: 21 | F27: 55 | G27: 34 | H27: 21
B28: Tercero Arriba | C28: 1044 | D28: 592 | E28: 452 | F28: 484 | G28: 264 | H28: 220 | I28: 560 | J28: 328 | K28: 232
B29: Totoral | C29: 169 | D29: 91 | E29: 78 | F29: 145 | G29: 77 | H29: 68 | I29: 24 | J29: 14 | K29: 10
B30: Tulumba | C30: 62 | D30: 36 | E30: 26 | F30: 62 | G30: 36 | H30: 26
B31: Unión | C31: 977 | D31: 575 | E31: 402 | F31: 508 | G31: 290 | H31: 218 | I31: 467 | J31: 285 | K31: 182
B33: En el departamento Capital están incluidas además de las provinciales, las unidades educativas nacionales, al igual que sus alumnos y personal docente.

Sheet CSC4.11 A sec orient (hidden)
B2: CUADRO 4.11 A Secundaria orientada. Alumnos por sector y ámbito, según ciclo y orientación
B3: Ciclo | C3: Orientación | D3: Total general | G3: Estatal | J3: Privado
D4: Total | E4: Urbano | F4: Rural | G4: Total | H4: Urbano | I4: Rural | J4: Total | K4: Urbano | L4: Rural
B5: Total Córdoba | D5: 260523 | E5: 241812 | F5: 18711 | G5: 137998 | H5: 122680 | I5: 15318 | J5: 122525 | K5: 119132 | L5: 3393
B6: Ciclo Básico | D6: 142006 | E6: 131488 | F6: 10518 | G6: 78208 | H6: 69613 | I6: 8595 | J6: 63798 | K6: 61875 | L6: 1923
B7: Ciclo Orientado | C7: Artística | D7: 4293 | E7: 4091 | F7: 202 | G7: 3009 | H7: 2807 | I7: 202 | J7: 1284 | K7: 1284
C8: Humanidades y Ciencias Sociales | D8: 26159 | E8: 25987 | F8: 172 | G8: 12137 | H8: 11993 | I8: 144 | J8: 14022 | K8: 13994 | L8: 28
C9: Lenguas | D9: 1810 | E9: 1810 | G9: 558 | H9: 558 | J9: 1252 | K9: 1252
C10: Ciencias Naturales | D10: 20762 | E10: 20047 | F10: 715 | G10: 9923 | H10: 9741 | I10: 182 | J10: 10839 | K10: 10306 | L10: 533
C11: Economía y Administración | D11: 40201 | E11: 38282 | F11: 1919 | G11: 18139 | H11: 16579 | I11: 1560 | J11: 22062 | K11: 21703 | L11: 359
C12: Informática | D12: 4973 | E12: 4573 | F12: 400 | G12: 3030 | H12: 2630 | I12: 400 | J12: 1943 | K12: 1943
C13: Comunicación | D13: 7522 | E13: 7349 | F13: 173 | G13: 3881 | H13: 3802 | I13: 79 | J13: 3641 | K13: 3547 | L13: 94
C14: Agro y Ambiente | D14: 5288 | E14: 1712 | F14: 3576 | G14: 3525 | H14: 405 | I14: 3120 | J14: 1763 | K14: 1307 | L14: 456
C15: Turismo | D15: 4992 | E15: 3980 | F15: 1012 | G15: 3967 | H15: 2955 | I15: 1012 | J15: 1025 | K15: 1025
C16: Educación Física | D16: 2517 | E16: 2493 | F16: 24 | G16: 1621 | H16: 1597 | I16: 24 | J16: 896 | K16: 896

Sheet CSC4.11 B sec tecnica (hidden)
B2: CUADRO 4.11 B Secundaria técnica. Alumnos por sector y ámbito, según ciclo y título
B3: Ciclo | C3: Título | D3: Total general | G3: Estatal | J3: Privado
D4: Total | E4: Urbano | F4: Rural | G4: Total | H4: Urbano | I4: Rural | J4: Total | K4: Urbano | L4: Rural
B5: Total Córdoba | D5: 84191 | E5: 76022 | F5: 8169 | G5: 70687 | H5: 64103 | I5: 6584 | J5: 13504 | K5: 11919 | L5: 1585
B6: Ciclo Básico Técnico (*) | D6: 46500 | E6: 42458 | F6: 4042 | G6: 39379 | H6: 36138 | I6: 3241 | J6: 7121 | K6: 6320 | L6: 801
B7: Ciclo Orientado | C7: Maestro Mayor de Obras | D7: 4030 | E7: 3876 | F7: 154 | G7: 3275 | H7: 3121 | I7: 154 | J7: 755 | K7: 755
C8: Técnico Aviónico | D8: 188 | E8: 188 | G8: 188 | H8: 188
C9: Técnico Electricista | D9: 1294 | E9: 1218 | F9: 76 | G9: 1200 | H9: 1124 | I9: 76 | J9: 94 | K9: 94
C10: Técnico en Aeronáutica | D10: 309 | E10: 309 | G10: 309 | H10: 309
C11: Técnico en Automotores | D11: 1496 | E11: 1496 | G11: 1422 | H11: 1422 | J11: 74 | K11: 74
C12: Técnico en Electrónica | D12: 2768 | E12: 2768 | G12: 2298 | H12: 2298 | J12: 470 | K12: 470
C13: Técnico en Equipos e Instalaciones Electromecánicas | D13: 5260 | E13: 5260 | G13: 4550 | H13: 4550 | J13: 710 | K13: 710
C14: Técnico en Industria de los Alimentos | D14: 4566 | E14: 4117 | F14: 449 | G14: 3858 | H14: 3579 | I14: 279 | J14: 708 | K14: 538 | L14: 170
C15: Técnico en Industrialización de la Madera y el Mueble | D15: 814 | E15: 814 | G15: 725 | H15: 725 | J15: 89 | K15: 89
C16: Tecnico en Industrias de Procesos | D16: 1184 | E16: 1184 | G16: 1021 | H16: 1021 | J16: 163 | K16: 163
C17: Técnico en Informática Profesional y Personal | D17: 1921 | E17: 1771 | F17: 150 | G17: 1626 | H17: 1476 | I17: 150 | J17: 295 | K17: 295
C18: Técnico en Mantenimiento de Inmuebles en Zonas Turísticas | D18: 333 | E18: 333 | G18: 333 | H18: 333
C19: Técnico en Mecanización Agropecuaria | D19: 564 | E19: 450 | F19: 114 | G19: 564 | H19: 450 | I19: 114
C20: Técnico en Óptica Oftálmica e Instrumental | D20: 64 | E20: 64 | G20: 64 | H20: 64
C21: Técnico en Producción Agropecuaria | D21: 7892 | E21: 5044 | F21: 2848 | G21: 6276 | H21: 4042 | I21: 2234 | J21: 1616 | K21: 1002 | L21: 614
C22: Técnico en Programación | D22: 1396 | E22: 1396 | G22: 878 | H22: 878 | J22: 518 | K22: 518
C23: Técnico Mecánico | D23: 2113 | E23: 2002 | F23: 111 | G23: 1626 | H23: 1515 | I23: 111 | J23: 487 | K23: 487
C24: Técnico Minero | D24: 417 | E24: 192 | F24: 225 | G24: 417 | H24: 192 | I24: 225
C25: Técnico Químico | D25: 1082 | E25: 1082 | G25: 678 | H25: 678 | J25: 404 | K25: 404
B27: (*) Existen escuelas que ofrecen tanto secundaria orientada como técnica. En algunos casos, los estudiantes que luego proseguirán sus estudios en la secundaria orientada cursan el ciclo básico técnico. Por esta razón la matrícula de este ciclo está sobrerregistrada, sin que haya posibilidad de discriminarla.

Sheet CSC4.12 A sec orient (hidden)
B2: CUADRO 4.12 A Secundaria orientada. Alumnos por sector y sexo, según ciclo y orientación
B3: Ciclo | C3: Orientación | D3: Total general | G3: Estatal | J3: Privado
D4: Total | E4: Mujeres | F4: Varones | G4: Total | H4: Mujeres | I4: Varones | J4: Total | K4: Mujeres | L4: Varones
B5: Total Córdoba | D5: 260523 | E5: 140735 | F5: 119788 | G5: 137998 | H5: 73055 | I5: 64943 | J5: 122525 | K5: 67680 | L5: 54845
B6: Ciclo Básico | D6: 142006 | E6: 74855 | F6: 67151 | G6: 78208 | H6: 39962 | I6: 38246 | J6: 63798 | K6: 34893 | L6: 28905
B7: Ciclo Orientado | C7: Artística | D7: 4293 | E7: 2533 | F7: 1760 | G7: 3009 | H7: 1758 | I7: 1251 | J7: 1284 | K7: 775 | L7: 509
C8: Humanidades y Ciencias Sociales | D8: 26159 | E8: 15101 | F8: 11058 | G8: 12137 | H8: 6733 | I8: 5404 | J8: 14022 | K8: 8368 | L8: 5654
C9: Lenguas | D9: 1810 | E9: 985 | F9: 825 | G9: 558 | H9: 309 | I9: 249 | J9: 1252 | K9: 676 | L9: 576
C10: Ciencias Naturales | D10: 20762 | E10: 11934 | F10: 8828 | G10: 9923 | H10: 5587 | I10: 4336 | J10: 10839 | K10: 6347 | L10: 4492
C11: Economía y Administración | D11: 40201 | E11: 21808 | F11: 18393 | G11: 18139 | H11: 10182 | I11: 7957 | J11: 22062 | K11: 11626 | L11: 10436
C12: Informática | D12: 4973 | E12: 2356 | F12: 2617 | G12: 3030 | H12: 1509 | I12: 1521 | J12: 1943 | K12: 847 | L12: 1096
C13: Comunicación | D13: 7522 | E13: 4316 | F13: 3206 | G13: 3881 | H13: 2207 | I13: 1674 | J13: 3641 | K13: 2109 | L13: 1532
C14: Agro y Ambiente | D14: 5288 | E14: 2789 | F14: 2499 | G14: 3525 | H14: 1806 | I14: 1719 | J14: 1763 | K14: 983 | L14: 780
C15: Turismo | D15: 4992 | E15: 2767 | F15: 2225 | G15: 3967 | H15: 2149 | I15: 1818 | J15: 1025 | K15: 618 | L15: 407
C16: Educación Física | D16: 2517 | E16: 1291 | F16: 1226 | G16: 1621 | H16: 853 | I16: 768 | J16: 896 | K16: 438 | L16: 458

Sheet CSC4.12 B sec técnica (hidden)
B2: CUADRO 4.12 B Secundaria técnica. Alumnos por sector y sexo, según ciclo y título
B3: Ciclo | C3: Título | D3: Total general | G3: Estatal | J3: Privado
D4: Total | E4: Mujeres | F4: Varones | G4: Total | H4: Mujeres | I4: Varones | J4: Total | K4: Mujeres | L4: Varones
B5: Total Córdoba | D5: 84191 | E5: 31372 | F5: 52819 | G5: 70687 | H5: 26727 | I5: 43960 | J5: 13504 | K5: 4645 | L5: 8859
B6: Ciclo Básico Técnico | D6: 46500 | E6: 17432 | F6: 29068 | G6: 39379 | H6: 14899 | I6: 24480 | J6: 7121 | K6: 2533 | L6: 4588
B7: Título | C7: Maestro Mayor de Obras | D7: 4030 | E7: 1586 | F7: 2444 | G7: 3275 | H7: 1340 | I7: 1935 | J7: 755 | K7: 246 | L7: 509
C8: Técnico Aviónico | D8: 188 | E8: 66 | F8: 122 | G8: 188 | H8: 66 | I8: 122
C9: Técnico Electricista | D9: 1294 | E9: 418 | F9: 876 | G9: 1200 | H9: 403 | I9: 797 | J9: 94 | K9: 15 | L9: 79
C10: Técnico en Aeronáutica | D10: 309 | E10: 67 | F10: 242 | G10: 309 | H10: 67 | I10: 242
C11: Técnico en Automotores | D11: 1496 | E11: 107 | F11: 1389 | G11: 1422 | H11: 100 | I11: 1322 | J11: 74 | K11: 7 | L11: 67
C12: Técnico en Electrónica | D12: 2768 | E12: 405 | F12: 2363 | G12: 2298 | H12: 374 | I12: 1924 | J12: 470 | K12: 31 | L12: 439
C13: Técnico en Equipos e Instalaciones Electromecánicas | D13: 5260 | E13: 1239 | F13: 4021 | G13: 4550 | H13: 1098 | I13: 3452 | J13: 710 | K13: 141 | L13: 569
C14: Técnico en Industria de los Alimentos | D14: 4566 | E14: 2687 | F14: 1879 | G14: 3858 | H14: 2246 | I14: 1612 | J14: 708 | K14: 441 | L14: 267
C15: Técnico en Industrialización de la Madera y el Mueble | D15: 814 | E15: 271 | F15: 543 | G15: 725 | H15: 249 | I15: 476 | J15: 89 | K15: 22 | L15: 67
C16: Tecnico en Industrias de Procesos | D16: 1184 | E16: 563 | F16: 621 | G16: 1021 | H16: 502 | I16: 519 | J16: 163 | K16: 61 | L16: 102
C17: Técnico en Informática Profesional y Personal | D17: 1921 | E17: 833 | F17: 1088 | G17: 1626 | H17: 755 | I17: 871 | J17: 295 | K17: 78 | L17: 217
C18: Técnico en Mantenimiento de Inmuebles en Zonas Turísticas | D18: 333 | E18: 104 | F18: 229 | G18: 333 | H18: 104 | I18: 229
C19: Técnico en Mecanización Agropecuaria | D19: 564 | E19: 181 | F19: 383 | G19: 564 | H19: 181 | I19: 383
C20: Técnico en Óptica Oftálmica e Instrumental | D20: 64 | E20: 37 | F20: 27 | G20: 64 | H20: 37 | I20: 27
C21: Técnico en Producción Agropecuaria | D21: 7892 | E21: 3714 | F21: 4178 | G21: 6276 | H21: 3051 | I21: 3225 | J21: 1616 | K21: 663 | L21: 953
C22: Técnico en Programación | D22: 1396 | E22: 436 | F22: 960 | G22: 878 | H22: 345 | I22: 533 | J22: 518 | K22: 91 | L22: 427
C23: Técnico Mecánico | D23: 2113 | E23: 393 | F23: 1720 | G23: 1626 | H23: 329 | I23: 1297 | J23: 487 | K23: 64 | L23: 423
C24: Técnico Minero | D24: 417 | E24: 173 | F24: 244 | G24: 417 | H24: 173 | I24: 244
C25: Técnico Químico | D25: 1082 | E25: 660 | F25: 422 | G25: 678 | H25: 408 | I25: 270 | J25: 404 | K25: 252 | L25: 152

Sheet CSC4.13 A (hidden)
B2: CUADRO 4.13 A Secundaria orientada. Total de alumnos, total y porcentaje de alumnos repetidores y con sobreedad, según año de estudio
B3: Año de estudio | C3: Total de alumnos | D3: Total de alumnos repetidores | E3: Porcentaje de repetidores | F3: Total de alumnos con sobreedad | G3: Porcentaje de sobreedad
B4: Total Córdoba | C4: 260523 | D4: 14986 | E4: 5.752275231 | F4: 54510 | G4: 20.9
B5: 1° | C5: 49848 | D5: 3301 | E5: 6.622131279 | F5: 8239 | G5: 16.5
B6: 2° | C6: 46133 | D6: 3539 | E6: 7.671298203 | F6: 8701 | G6: 18.9
B7: 3° | C7: 46026 | D7: 3463 | E7: 7.524008169 | F7: 11172 | G7: 24.3
B8: 4° | C8: 43756 | D8: 2755 | E8: 6.296279367 | F8: 11152 | G8: 25.5
B9: 5° | C9: 39158 | D9: 1560 | E9: 3.983860258 | F9: 8355 | G9: 21.3
B10: 6° | C10: 35602 | D10: 368 | E10: 1.033649795 | F10: 6891 | G10: 19.4

Sheet CSC4.13 B (hidden)
B2: CUADRO 4.13. B Secundaria técnica. Total de alumnos, total y porcentaje de alumnos repetidores y con sobreedad, según año de estudio
B3: Año de estudio | C3: Total de alumnos | D3: Total de alumnos repetidores | E3: Porcentaje de repetidores | F3: Total de alumnos con sobreedad | G3: Porcentaje de sobreedad
B4: Total Córdoba | C4: 84191 | D4: 4831 | E4: 5.738143032 | F4: 18894 | G4: 22.4
B5: 1° | C5: 16205 | D5: 1102 | E5: 6.800370256 | F5: 2698 | G5: 16.6
B6: 2° | C6: 15630 | D6: 1161 | E6: 7.428023033 | F6: 3395 | G6: 21.7
B7: 3° | C7: 14694 | D7: 1154 | E7: 7.853545665 | F7: 3921 | G7: 26.7
B8: 4° | C8: 13111 | D8: 802 | E8: 6.117000992 | F8: 3567 | G8: 27.2
B9: 5° | C9: 10252 | D9: 388 | E9: 3.78462739 | F9: 2497 | G9: 24.4
B10: 6° | C10: 7701 | D10: 200 | E10: 2.597065316 | F10: 1645 | G10: 21.4
B11: 7° | C11: 6598 | D11: 24 | E11: 0.3637465899 | F11: 1171 | G11: 17.7

Sheet CSC 4.14 A egre orientada (hidden)
B2: ="CUADRO 4.14 A Secundaria orientada. Alumnos egresados del ciclo lectivo "&añoAnuario-1&" por sector y sexo, según orientación" -> CUADRO 4.14 A Secundaria orientada. Alumnos egresados del ciclo lectivo 2020 por sector y sexo, según orientación
B3: Orientación | C3: Total general | F3: Estatal | I3: Privado
C4: Total | D4: Mujeres | E4: Varones | F4: Total | G4: Mujeres | H4: Varones | I4: Total | J4: Mujeres | K4: Varones
B5: Total Córdoba | C5: 26395 | D5: 15794 | E5: 10601 | F5: 11433 | G5: 7001 | H5: 4432 | I5: 14962 | J5: 8793 | K5: 6169
B6: Artística | C6: 884 | D6: 527 | E6: 357 | F6: 534 | G6: 326 | H6: 208 | I6: 350 | J6: 201 | K6: 149
B7: Humanidades y Ciencias Sociales | C7: 6253 | D7: 3855 | E7: 2398 | F7: 2650 | G7: 1592 | H7: 1058 | I7: 3603 | J7: 2263 | K7: 1340
B8: Lenguas | C8: 502 | D8: 284 | E8: 218 | F8: 128 | G8: 88 | H8: 40 | I8: 374 | J8: 196 | K8: 178
B9: Ciencias Naturales | C9: 4754 | D9: 2859 | E9: 1895 | F9: 1993 | G9: 1222 | H9: 771 | I9: 2761 | J9: 1637 | K9: 1124
B10: Economía y Administración (*) | C10: 9026 | D10: 5288 | E10: 3738 | F10: 3326 | G10: 2076 | H10: 1250 | I10: 5700 | J10: 3212 | K10: 2488
B11: Informática | C11: 858 | D11: 434 | E11: 424 | F11: 492 | G11: 269 | H11: 223 | I11: 366 | J11: 165 | K11: 201
B12: Comunicación | C12: 1609 | D12: 1029 | E12: 580 | F12: 656 | G12: 404 | H12: 252 | I12: 953 | J12: 625 | K12: 328
B13: Agro y Ambiente | C13: 1162 | D13: 685 | E13: 477 | F13: 754 | G13: 451 | H13: 303 | I13: 408 | J13: 234 | K13: 174
B14: Turismo | C14: 909 | D14: 582 | E14: 327 | F14: 647 | G14: 410 | H14: 237 | I14: 262 | J14: 172 | K14: 90
B15: Educación Física | C15: 438 | D15: 251 | E15: 187 | F15: 253 | G15: 163 | H15: 90 | I15: 185 | J15: 88 | K15: 97
B17: (*) Se incluyen 129 alumnos egresados de la orientación Economía y Gestión de las Organizaciones.
B18: (**) Se incluyen titulaciones anteriores a la Ley Federal de Educación con orientaciones de bachiller, Comercial y Agropecuaria.

Sheet CSC 4.14 B egre técnica (hidden)
B2: ="CUADRO 4.14 B Secundaria técnica. Alumnos egresados del ciclo lectivo "&añoAnuario-1&" por sector y sexo, según título" -> CUADRO 4.14 B Secundaria técnica. Alumnos egresados del ciclo lectivo 2020 por sector y sexo, según título
B3: Orientación/Título | C3: Total general | F3: Estatal | I3: Privado
C4: Total | D4: Mujeres | E4: Varones | F4: Total | G4: Mujeres | H4: Varones | I4: Total | J4: Mujeres | K4: Varones
B5: Total Córdoba | C5: 5201 | D5: 1974 | E5: 3227 | F5: 4190 | G5: 1603 | H5: 2587 | I5: 1011 | J5: 371 | K5: 640
B6: Orientación Producción de Bienes y Servicios (*) | C6: 193 | D6: 76 | E6: 117 | F6: 181 | G6: 69 | H6: 112 | I6: 12 | J6: 7 | K6: 5
B7: Maestro Mayor de Obras | C7: 438 | D7: 186 | E7: 252 | F7: 325 | G7: 147 | H7: 178 | I7: 113 | J7: 39 | K7: 74
B8: Técnico Aviónico | C8: 26 | D8: 8 | E8: 18 | F8: 26 | G8: 8 | H8: 18
B9: Técnico Electricista | C9: 134 | D9: 39 | E9: 95 | F9: 122 | G9: 38 | H9: 84 | I9: 12 | J9: 1 | K9: 11
B10: Técnico en Aeronáutica | C10: 59 | D10: 7 | E10: 52 | F10: 59 | G10: 7 | H10: 52
B11: Técnico en Automotores | C11: 219 | D11: 12 | E11: 207 | F11: 210 | G11: 11 | H11: 199 | I11: 9 | J11: 1 | K11: 8
B12: Técnico en Electrónica | C12: 434 | D12: 70 | E12: 364 | F12: 342 | G12: 58 | H12: 284 | I12: 92 | J12: 12 | K12: 80
B13: Técnico en Equipos e Instalaciones Electromecánicas | C13: 720 | D13: 133 | E13: 587 | F13: 607 | G13: 113 | H13: 494 | I13: 113 | J13: 20 | K13: 93
B14: Técnico en Industria de los Alimentos | C14: 539 | D14: 340 | E14: 199 | F14: 445 | G14: 275 | H14: 170 | I14: 94 | J14: 65 | K14: 29
B15: Técnico en Industrialización de la Madera y el Mueble | C15: 85 | D15: 38 | E15: 47 | F15: 73 | G15: 29 | H15: 44 | I15: 12 | J15: 9 | K15: 3
B16: Tecnico en Industrias de Procesos | C16: 146 | D16: 65 | E16: 81 | F16: 129 | G16: 59 | H16: 70 | I16: 17 | J16: 6 | K16: 11
B17: Técnico en Informática Profesional y Personal | C17: 245 | D17: 99 | E17: 146 | F17: 204 | G17: 89 | H17: 115 | I17: 41 | J17: 10 | K17: 31
B18: Técnico en Mantenimiento de Inmuebles en Zonas Turísticas | C18: 23 | D18: 6 | E18: 17 | F18: 23 | G18: 6 | H18: 17
B19: Técnico en Mecanización Agropecuaria | C19: 76 | D19: 26 | E19: 50 | F19: 76 | G19: 26 | H19: 50
B20: Técnico en Óptica Oftálmica e Instrumental | C20: 11 | D20: 7 | E20: 4 | F20: 11 | G20: 7 | H20: 4
B21: Técnico en Producción Agropecuaria | C21: 1149 | D21: 571 | E21: 578 | F21: 886 | G21: 462 | H21: 424 | I21: 263 | J21: 109 | K21: 154
B22: Técnico en Programación | C22: 124 | D22: 50 | E22: 74 | F22: 78 | G22: 38 | H22: 40 | I22: 46 | J22: 12 | K22: 34
B23: Técnico Mecánico | C23: 295 | D23: 45 | E23: 250 | F23: 196 | G23: 30 | H23: 166 | I23: 99 | J23: 15 | K23: 84
B24: Técnico Minero | C24: 54 | D24: 25 | E24: 29 | F24: 54 | G24: 25 | H24: 29
B25: Técnico Químico | C25: 231 | D25: 171 | E25: 60 | F25: 143 | G25: 106 | H25: 37 | I25: 88 | J25: 65 | K25: 23
B27: (*) Dentro de esta categoría se han incluido egresados de planes de estudio anteriores a los vigentes que corresponden, por un lado, a los títulos de “Bachiller y técnico de nivel medio” que brindaban las escuelas con orientación en Bienes y Servicios. Por el otro, también están contabilizados los egresados de las instituciones educativas que a partir de la Ley de Educación Técnica y Formación Profesional optaron por convertirse en escuelas técnicas y comenzaron a otorgar el título de “Técnico de nivel medio” en la especialización correspondiente (en lo que fue un plan de estudios de transición a la escuela técnica de siete años).

Sheet CSC 4.15 (hidden)
B2: CUADRO 4.15 Alumnos en el Programa de Inclusión y Terminalidad Educativa (PIT) por sector y sexo, según ámbito
B3: Ámbito | C3: Total General | D3: Estatal | G3: Privado
D4: Total | E4: Mujeres | F4: Varones | G4: Total | H4: Mujeres | I4: Varones
B5: Total Córdoba | C5: 4259 | D5: 4069 | E5: 1793 | F5: 2276 | G5: 190 | H5: 96 | I5: 94
B6: Urbano | C6: 4134 | D6: 3944 | E6: 1733 | F6: 2211 | G6: 190 | H6: 96 | I6: 94
B7: Rural | C7: 125 | D7: 125 | E7: 60 | F7: 65

Sheet CSC 4.16 (hidden)
B2: CUADRO 4. 16 Alumnos en el Programa de Inclusión y Terminalidad Educativa (PIT) por sexo, según ciclo lectivo
B3: Ciclo lectivo | C3: Total | D3: Mujeres | E3: Varones
B4: =añoAnuario-4 -> 2017 | C4: 4826 | D4: 2095 | E4: 2731
B5: =B4+1 -> 2018 | C5: 4866 | D5: 2133 | E5: 2733
B6: =B5+1 -> 2019 | C6: 4793 | D6: 2056 | E6: 2737
B7: =B6+1 -> 2020 | C7: 4459 | D7: 1949 | E7: 2510
B8: =B7+1 -> 2021 | C8: 4259 | D8: 1889 | E8: 2370

Sheet CSC 4.17 (hidden)
B2: ="CUADRO 4. 17 Alumnos egresados del ciclo lectivo "&añoAnuario-1&" del Programa de Inclusión y Terminalidad Educativa (PIT) por sector y sexo, según departamento" -> CUADRO 4. 17 Alumnos egresados del ciclo lectivo 2020 del Programa de Inclusión y Terminalidad Educativa (PIT) por sector y sexo, según departamento
B4: Departamento | C4: Total general | F4: Estatal | I4: Privado
C5: Total | D5: Mujeres | E5: Varones | F5: Total | G5: Mujeres | H5: Varones | I5: Total | J5: Mujeres | K5: Varones
B6: Todos | C6: 1269 | D6: 743 | E6: 526 | F6: 781 | G6: 453 | H6: 328 | I6: 488 | J6: 290 | K6: 198
B7: CALAMUCHITA | C7: 8 | D7: 6 | E7: 2 | F7: 6 | G7: 4 | H7: 2 | I7: 2 | J7: 2
B8: CAPITAL | C8: 669 | D8: 396 | E8: 273 | F8: 381 | G8: 229 | H8: 152 | I8: 288 | J8: 167 | K8: 121
B9: COLON | C9: 90 | D9: 67 | E9: 23 | F9: 55 | G9: 44 | H9: 11 | I9: 35 | J9: 23 | K9: 12
B10: CRUZ DEL EJE | C10: 11 | D10: 7 | E10: 4 | F10: 9 | G10: 7 | H10: 2 | I10: 2 | K10: 2
B11: GENERAL ROCA | C11: 9 | D11: 5 | E11: 4 | F11: 9 | G11: 5 | H11: 4
B12: GENERAL SAN MARTIN | C12: 55 | D12: 31 | E12: 24 | F12: 22 | G12: 11 | H12: 11 | I12: 33 | J12: 20 | K12: 13
B13: ISCHILIN | C13: 2 | E13: 2 | F13: 2 | H13: 2
B14: JUAREZ CELMAN | C14: 17 | D14: 9 | E14: 8 | F14: 6 | G14: 2 | H14: 4 | I14: 11 | J14: 7 | K14: 4
B15: MARCOS JUAREZ | C15: 4 | D15: 3 | E15: 1 | F15: 4 | G15: 3 | H15: 1
B16: POCHO | C16: 3 | D16: 3 | F16: 3 | G16: 3
B17: PRESIDENTE ROQUE SAENZ PEÑA | C17: 8 | D17: 3 | E17: 5 | F17: 8 | G17: 3 | H17: 5
B18: PUNILLA | C18: 46 | D18: 23 | E18: 23 | F18: 4 | G18: 2 | H18: 2 | I18: 42 | J18: 21 | K18: 21
B19: RIO CUARTO | C19: 71 | D19: 40 | E19: 31 | F19: 65 | G19: 36 | H19: 29 | I19: 6 | J19: 4 | K19: 2
B20: RIO PRIMERO | C20: 17 | D20: 10 | E20: 7 | F20: 14 | G20: 7 | H20: 7 | I20: 3 | J20: 3
B21: RIO SEGUNDO | C21: 25 | D21: 13 | E21: 12 | F21: 21 | G21: 9 | H21: 12 | I21: 4 | J21: 4
B22: SAN ALBERTO | C22: 5 | D22: 1 | E22: 4 | F22: 2 | G22: 0 | H22: 2 | I22: 3 | J22: 1 | K22: 2
B23: SAN JAVIER | C23: 12 | D23: 8 | E23: 4 | F23: 7 | G23: 5 | H23: 2 | I23: 5 | J23: 3 | K23: 2
B24: SAN JUSTO | C24: 77 | D24: 36 | E24: 41 | F24: 53 | G24: 21 | H24: 32 | I24: 24 | J24: 15 | K24: 9
B25: SANTA MARIA | C25: 53 | D25: 37 | E25: 16 | F25: 38 | G25: 27 | H25: 11 | I25: 15 | J25: 10 | K25: 5
B26: TERCERO ARRIBA | C26: 48 | D26: 28 | E26: 20 | F26: 45 | G26: 25 | H26: 20 | I26: 3 | J26: 3
B27: TOTORAL | C27: 9 | D27: 5 | E27: 4 | F27: 7 | G27: 3 | H27: 4 | I27: 2 | J27: 2
B28: TULUMBA | C28: 3 | D28: 1 | E28: 2 | F28: 3 | G28: 1 | H28: 2
B29: UNION | C29: 27 | D29: 11 | E29: 16 | F29: 17 | G29: 6 | H29: 11 | I29: 10 | J29: 5 | K29: 5

Sheet CSC 4.18 (hidden)
B2: CUADRO 4.18 Secciones por sector, ámbito y tipo, según departamento
B3: Departamento | C3: Total general | D3: Estatal | I3: Privado
D4: Total | E4: Urbano | G4: Rural | I4: Total | J4: Urbano | L4: Rural
E5: Indep. | F5: Múltiple (*) | G5: Indep. | H5: Múltiple | J5: Indep. | K5: Múltiple | L5: Indep. | M5: Múltiple
B6: Total Córdoba | C6: 12809 | D6: 8208 | E6: 6920 | F6: 175 | G6: 992 | H6: 121 | I6: 4601 | J6: 4352 | K6: 13 | L6: 235 | M6: 1
B7: Calamuchita | C7: 268 | D7: 170 | E7: 136 | G7: 32 | H7: 2 | I7: 98 | J7: 84 | K7: 2 | L7: 12
B8: Capital | C8: 4602 | D8: 2788 | E8: 2686 | F8: 102 | I8: 1814 | J8: 1812 | K8: 2
B9: Colón | C9: 902 | D9: 619 | E9: 514 | F9: 13 | G9: 92 | I9: 283 | J9: 283
B10: Cruz del Eje | C10: 258 | D10: 201 | E10: 135 | F10: 4 | G10: 61 | H10: 1 | I10: 57 | J10: 47 | L10: 10
B11: General Roca | C11: 151 | D11: 117 | E11: 106 | F11: 0 | G11: 6 | H11: 5 | I11: 34 | J11: 16 | L11: 18
B12: General San Martín | C12: 496 | D12: 257 | E12: 219 | F12: 6 | G12: 29 | H12: 3 | I12: 239 | J12: 212 | L12: 27
B13: Ischilín | C13: 133 | D13: 106 | E13: 81 | F13: 4 | G13: 18 | H13: 3 | I13: 27 | J13: 27
B14: Juárez Celman | C14: 288 | D14: 149 | E14: 128 | G14: 21 | I14: 139 | J14: 109 | L14: 30
B15: Marcos Juárez | C15: 402 | D15: 221 | E15: 219 | F15: 1 | H15: 1 | I15: 181 | J15: 162 | K15: 2 | L15: 17
B16: Minas | C16: 40 | D16: 40 | G16: 34 | H16: 6
B17: Pocho | C17: 27 | D17: 27 | G17: 26 | H17: 1
B18: Pte. Roque Sáenz Peña | C18: 161 | D18: 131 | E18: 95 | F18: 2 | G18: 29 | H18: 5 | I18: 30 | J18: 30
B19: Punilla | C19: 651 | D19: 393 | E19: 341 | F19: 8 | G19: 43 | H19: 1 | I19: 258 | J19: 257 | M19: 1
B20: Río Cuarto | C20: 953 | D20: 573 | E20: 485 | F20: 10 | G20: 71 | H20: 7 | I20: 380 | J20: 365 | K20: 2 | L20: 13
B21: Río Primero | C21: 237 | D21: 172 | E21: 107 | G21: 47 | H21: 18 | I21: 65 | J21: 65
B22: Río Seco | C22: 70 | D22: 70 | E22: 42 | F22: 2 | G22: 24 | H22: 2
B23: Río Segundo | C23: 455 | D23: 293 | E23: 232 | F23: 3 | G23: 51 | H23: 7 | I23: 162 | J23: 150 | L23: 12
B24: San Alberto | C24: 166 | D24: 132 | E24: 70 | F24: 2 | G24: 55 | H24: 5 | I24: 34 | J24: 34
B25: San Javier | C25: 247 | D25: 187 | E25: 125 | F25: 5 | G25: 57 | I25: 60 | J25: 53 | K25: 1 | L25: 6
B26: San Justo | C26: 826 | D26: 561 | E26: 430 | F26: 4 | G26: 99 | H26: 28 | I26: 265 | J26: 215 | K26: 4 | L26: 46
B27: Santa María | C27: 429 | D27: 316 | E27: 239 | F27: 5 | G27: 66 | H27: 6 | I27: 113 | J27: 113
B28: Sobremonte | C28: 22 | D28: 22 | E28: 15 | G28: 3 | H28: 4
B29: Tercero Arriba | C29: 429 | D29: 251 | E29: 220 | F29: 4 | G29: 22 | H29: 5 | I29: 178 | J29: 165 | L29: 13
B30: Totoral | C30: 87 | D30: 81 | E30: 51 | G30: 26 | H30: 4 | I30: 6 | L30: 6
B31: Tulumba | C31: 60 | D31: 60 | E31: 23 | G31: 35 | H31: 2
B32: Unión | C32: 449 | D32: 271 | E32: 221 | G32: 45 | H32: 5 | I32: 178 | J32: 153 | L32: 25
B34: Indep.: independiente.
B35: En el departamento Capital están incluidas además de las provinciales, las unidades educativas nacionales, al igual que sus alumnos y personal docente.

Sheet CSC 4.19 (hidden)
B2: CUADRO 4.19 Personal docente en actividad, por lugar de origen y forma de designación, según sector
B3: Lugar de origen del personal | C3: Forma de designación | D3: Total (*) | E3: Estatal | F3: Privado
B4: Total Córdoba | D4: 59430 | E4: 39720 | F4: 19710
B5: Personal designado en la planta del establecimiento | C5: En actividad, designados sólo por cargo | D5: 8386 | E5: 5664 | F5: 2722
C6: En actividad, designados sólo por horas cátedra | D6: 46897 | E6: 31328 | F6: 15569
C7: En actividad, designados por cargo y horas cátedra | D7: 3672 | E7: 2266 | F7: 1406
B8: Personal que proviene de otra planta | C8: Docentes frente a alumnos afectados a este establecimiento que no pertenecen a esta planta funcional | D8: 155 | E8: 150 | F8: 5
C9: Docentes en otras funciones afectados a este establecimiento que no pertenecen a esta planta funcional | D9: 320 | E9: 312 | F9: 8
B11: (*) El personal docente en actividad hace referencia a todas las personas con designación docente que se desempeñan en las unidades educativas del nivel. Por esta razón, se cuentan tantas veces como ofertas en las que trabajan.

Sheet CSC 4.20 (hidden)
B2: CUADRO 4.20 Personal docente en actividad, por sexo, según departamento
B3: Departamento | C3: Total | D3: Mujeres | E3: Varones
B4: Total Córdoba | C4: 59430 | D4: 41933 | E4: 17497
B5: Calamuchita | C5: 1128 | D5: 777 | E5: 351
B6: Capital | C6: 21620 | D6: 14926 | E6: 6694
B7: Colón | C7: 4070 | D7: 2851 | E7: 1219
B8: Cruz del Eje | C8: 1274 | D8: 914 | E8: 360
B9: General Roca | C9: 684 | D9: 478 | E9: 206
B10: General San Martín | C10: 2207 | D10: 1628 | E10: 579
B11: Ischilín | C11: 577 | D11: 379 | E11: 198
B12: Juárez Celman | C12: 1123 | D12: 800 | E12: 323
B13: Marcos Juárez | C13: 1809 | D13: 1304 | E13: 505
B14: Minas | C14: 202 | D14: 123 | E14: 79
B15: Pocho | C15: 131 | D15: 81 | E15: 50
B16: Pte. Roque Sáenz Peña | C16: 710 | D16: 499 | E16: 211
B17: Punilla | C17: 3076 | D17: 2160 | E17: 916
B18: Río Cuarto | C18: 4248 | D18: 3000 | E18: 1248
B19: Río Primero | C19: 1076 | D19: 769 | E19: 307
B20: Río Seco | C20: 289 | D20: 200 | E20: 89
B21: Río Segundo | C21: 2212 | D21: 1627 | E21: 585
B22: San Alberto | C22: 862 | D22: 592 | E22: 270
B23: San Javier | C23: 1241 | D23: 904 | E23: 337
B24: San Justo | C24: 3841 | D24: 2900 | E24: 941
B25: Santa María | C25: 2112 | D25: 1436 | E25: 676
B26: Sobremonte | C26: 96 | D26: 47 | E26: 49
B27: Tercero Arriba | C27: 2005 | D27: 1505 | E27: 500
B28: Totoral | C28: 468 | D28: 306 | E28: 162
B29: Tulumba | C29: 279 | D29: 184 | E29: 95
B30: Unión | C30: 2090 | D30: 1543 | E30: 547
B32: (*) El personal docente en actividad hace referencia a todas las personas con designación docente que se desempeñan en las unidades educativas del nivel. Por esta razón, se cuentan tantas veces como ofertas en las que trabajan.
B33: En el departamento Capital están incluidas además de las provinciales, las unidades educativas nacionales, al igual que sus alumnos y personal docente.

Sheet CSC 4.21 (hidden)
B2: CUADRO 4.21 Personal docente en actividad, por lugar de origen de la designación, según departamento
B3: Departamento | C3: Personal designado en la planta del establecimiento | D3: Personal que proviene de otra planta
B4: Total Córdoba (*) | C4: 58955 | D4: 475
B5: Calamuchita | C5: 1121 | D5: 7
B6: Capital | C6: 21407 | D6: 213
B7: Colón | C7: 4038 | D7: 32
B8: Cruz del Eje | C8: 1260 | D8: 14
B9: General Roca | C9: 681 | D9: 3
B10: General San Martín | C10: 2196 | D10: 11
B11: Ischilín | C11: 572 | D11: 5
B12: Juárez Celman | C12: 1120 | D12: 3
B13: Marcos Juárez | C13: 1803 | D13: 6
B14: Minas | C14: 197 | D14: 5
B15: Pocho | C15: 131
B16: Pte. Roque Sáenz Peña | C16: 708 | D16: 2
B17: Punilla | C17: 3034 | D17: 42
B18: Río Cuarto | C18: 4227 | D18: 21
B19: Río Primero | C19: 1072 | D19: 4
B20: Río Seco | C20: 283 | D20: 6
B21: Río Segundo | C21: 2201 | D21: 11
B22: San Alberto | C22: 855 | D22: 7
B23: San Javier | C23: 1235 | D23: 6
B24: San Justo | C24: 3811 | D24: 30
B25: Santa María | C25: 2093 | D25: 19
B26: Sobremonte | C26: 95 | D26: 1
B27: Tercero Arriba | C27: 1996 | D27: 9
B28: Totoral | C28: 461 | D28: 7
B29: Tulumba | C29: 276 | D29: 3
B30: Unión | C30: 2082 | D30: 8
B31: =último -> Fuente: Subsecretaría de Planeamiento, Evaluación y Modernización, Área de Estadística e Información Educativa. Relevamiento Anual (RA) 2021.
B32: (*) El personal docente en actividad hace referencia a todas las personas con designación docente que se desempeñan en las unidades educativas del nivel. Por esta razón, se cuentan tantas veces como ofertas en las que trabajan.
B33: En el departamento Capital están incluidas además de las provinciales, las unidades educativas nacionales, al igual que sus alumnos y personal docente.

Sheet Cuadro 4.22 (hidden)
B2: CUADRO 4.22 Personal docente en actividad, por sector, ámbito y lugar de origen de la designación, según departamento
B3: Departamento | C3: Estatal | G3: Privado
C4: Urbano | E4: Rural | G4: Urbano | I4: Rural
C5: Personal designado en la planta del establecimiento | D5: Personal que proviene de otra planta | E5: Personal designado en la planta del establecimiento | F5: Personal que proviene de otra planta | G5: Personal designado en la planta del establecimiento | H5: Personal que proviene de otra planta | I5: Personal designado en la planta del establecimiento | J5: Personal que proviene de otra planta
B6: Total Córdoba (*) | C6: 33516 | D6: 413 | E6: 5742 | F6: 49 | G6: 18614 | H6: 12 | I6: 1083 | J6: 1
B7: Calamuchita | C7: 583 | D7: 5 | E7: 161 | F7: 2 | G7: 334 | I7: 43
B8: Capital | C8: 13517 | D8: 209 | G8: 7890 | H8: 4
B9: Colón | C9: 2423 | D9: 31 | E9: 383 | F9: 1 | G9: 1232
B10: Cruz del Eje | C10: 640 | D10: 11 | E10: 325 | F10: 3 | G10: 237 | I10: 58
B11: General Roca | C11: 472 | D11: 3 | E11: 54 | G11: 76 | I11: 79
B12: General San Martín | C12: 999 | D12: 10 | E12: 163 | G12: 924 | I12: 110 | J12: 1
B13: Ischilín | C13: 362 | D13: 3 | E13: 97 | F13: 2 | G13: 113
B14: Juárez Celman | C14: 557 | D14: 1 | E14: 93 | F14: 1 | G14: 368 | H14: 1 | I14: 102
B15: Marcos Juárez | C15: 1010 | D15: 6 | E15: 10 | G15: 662 | I15: 121
B16: Minas | E16: 197 | F16: 5
B17: Pocho | E17: 131
B18: Pte. Roque Sáenz Peña | C18: 414 | E18: 165 | F18: 1 | G18: 129 | H18: 1
B19: Punilla | C19: 1659 | D19: 36 | E19: 203 | F19: 1 | G19: 1159 | H19: 5 | I19: 13
B20: Río Cuarto | C20: 2286 | D20: 20 | E20: 372 | F20: 1 | G20: 1497 | I20: 72
B21: Río Primero | C21: 476 | D21: 2 | E21: 336 | F21: 2 | G21: 260
B22: Río Seco | C22: 155 | D22: 3 | E22: 128 | F22: 3
B23: Río Segundo | C23: 1163 | D23: 7 | E23: 375 | F23: 4 | G23: 616 | I23: 47
B24: San Alberto | C24: 335 | D24: 2 | E24: 351 | F24: 5 | G24: 169
B25: San Javier | C25: 663 | D25: 5 | E25: 295 | F25: 1 | G25: 245 | I25: 32
B26: San Justo | C26: 1992 | D26: 26 | E26: 705 | F26: 4 | G26: 900 | I26: 214
B27: Santa María | C27: 1202 | D27: 15 | E27: 382 | F27: 4 | G27: 509
B28: Sobremonte | C28: 58 | E28: 37 | F28: 1
B29: Tercero Arriba | C29: 1106 | D29: 4 | E29: 161 | F29: 4 | G29: 676 | H29: 1 | I29: 53
B30: Totoral | C30: 269 | D30: 5 | E30: 161 | F30: 2 | I30: 31
B31: Tulumba | C31: 86 | D31: 1 | E31: 190 | F31: 2
B32: Unión | C32: 1089 | D32: 8 | E32: 267 | G32: 618 | I32: 108
B34: (*) El personal docente en actividad hace referencia a todas las personas con designación docente que se desempeñan en las unidades educativas del nivel. Por esta razón, se cuentan tantas veces como ofertas en las que trabajan.
B35: En el departamento Capital están incluidas además de las provinciales, las unidades educativas nacionales, al igual que sus alumnos y personal docente.

Sheet S C5.1 (hidden)
B3: CUADRO 5.1 Unidades educativas, alumnos y personal docente en actividad, por sector y dependencia
C4: Total | D4: Estatal | F4: Privado
D5: Provincial | E5: Nacional (**) | F5: Provincial
B6: Unidades educativas | C6: 208 | D6: 80 | E6: 3 | F6: 125
B7: Alumnos | C7: 76907 | D7: 41676 | E7: 2383 | F7: 32848
B8: Personal docente (*) | C8: 11076 | D8: 6000 | E8: 207 | F8: 4869
B10: (*) El personal docente en actividad hace referencia a todas las personas con designación docente que se desempeñan en las unidades educativas del nivel. Por esta razón, se cuentan tantas veces como ofertas en las que trabajan.
B11: (**) Las unidades educativas de nivel superior nacionales son los dos colegios universitarios de la Universidad Nacional de Córdoba (UNC) y uno que depende del Ministerio de Defensa de la Nación.

Sheet S C5.2 (hidden)
B3: CUADRO 5.2 Bases, anexos, alumnos y personal docente en actividad, por sector, según departamento
B4: Departamento | C4: Total | G4: Estatal | K4: Privado
C5: Bases | D5: Anexos | E5: Alumnos | F5: Personal docente (*) | G5: Bases | H5: Anexos | I5: Alumnos | J5: Personal docente | K5: Bases | L5: Anexos | M5: Alumnos | N5: Personal docente
B6: Total Córdoba | C6: 208 | D6: 49 | E6: 76907 | F6: 11076 | G6: 83 | H6: 41 | I6: 44059 | J6: 6207 | K6: 125 | L6: 8 | M6: 32848 | N6: 4869
B7: Calamuchita | C7: 3 | E7: 429 | F7: 93 | G7: 2 | I7: 336 | J7: 64 | K7: 1 | M7: 93 | N7: 29
B8: Capital | C8: 82 | D8: 7 | E8: 46185 | F8: 5170 | G8: 25 | H8: 7 | I8: 26036 | J8: 2932 | K8: 57 | M8: 20149 | N8: 2238
B9: Colón | C9: 7 | D9: 5 | E9: 1674 | F9: 303 | G9: 1 | H9: 4 | I9: 926 | J9: 147 | K9: 6 | L9: 1 | M9: 748 | N9: 156
B10: Cruz del Eje | C10: 7 | D10: 2 | E10: 2066 | F10: 311 | G10: 4 | H10: 1 | I10: 1437 | J10: 191 | K10: 3 | L10: 1 | M10: 629 | N10: 120
B11: General Roca | C11: 2 | D11: 2 | E11: 396 | F11: 64 | G11: 1 | H11: 2 | I11: 164 | J11: 47 | K11: 1 | M11: 232 | N11: 17
B12: General San Martín | C12: 12 | D12: 3 | E12: 4346 | F12: 752 | G12: 3 | H12: 2 | I12: 1241 | J12: 219 | K12: 9 | L12: 1 | M12: 3105 | N12: 533
B13: Ischilín | C13: 2 | D13: 1 | E13: 893 | F13: 147 | G13: 2 | I13: 811 | J13: 137 | L13: 1 | M13: 82 | N13: 10
B14: Juárez Celman | C14: 5 | E14: 492 | F14: 141 | G14: 3 | I14: 271 | J14: 80 | K14: 2 | M14: 221 | N14: 61
B15: Marcos Juárez | C15: 9 | D15: 4 | E15: 1496 | F15: 433 | G15: 5 | H15: 3 | I15: 1010 | J15: 266 | K15: 4 | L15: 1 | M15: 486 | N15: 167
B16: Pte. Roque Sáenz Peña | C16: 4 | E16: 568 | F16: 147 | G16: 2 | I16: 371 | J16: 107 | K16: 2 | M16: 197 | N16: 40
B17: Punilla | C17: 9 | D17: 2 | E17: 2135 | F17: 430 | G17: 5 | H17: 1 | I17: 1357 | J17: 299 | K17: 4 | L17: 1 | M17: 778 | N17: 131
B18: Río Cuarto | C18: 12 | D18: 5 | E18: 3027 | F18: 560 | G18: 5 | H18: 4 | I18: 1682 | J18: 297 | K18: 7 | L18: 1 | M18: 1345 | N18: 263
B19: Río Primero | C19: 1 | D19: 3 | E19: 349 | F19: 76 | H19: 3 | I19: 167 | J19: 31 | K19: 1 | M19: 182 | N19: 45
B20: Río Seco | D20: 2 | E20: 28 | F20: 13 | H20: 2 | I20: 28 | J20: 13
B21: Río Segundo | C21: 4 | D21: 2 | E21: 922 | F21: 137 | G21: 1 | H21: 2 | I21: 557 | J21: 63 | K21: 3 | M21: 365 | N21: 74
B22: San Alberto | C22: 2 | D22: 0 | E22: 654 | F22: 119 | G22: 2 | I22: 654 | J22: 119
B23: San Javier | C23: 5 | D23: 3 | E23: 1783 | F23: 283 | G23: 3 | H23: 3 | I23: 1345 | J23: 186 | K23: 2 | M23: 438 | N23: 97
B24: San Justo | C24: 14 | D24: 3 | E24: 4076 | F24: 813 | G24: 6 | H24: 3 | I24: 2630 | J24: 462 | K24: 8 | M24: 1446 | N24: 351
B25: Santa María | C25: 3 | E25: 712 | F25: 97 | G25: 3 | I25: 712 | J25: 97
B26: Sobremonte | D26: 1 | E26: 22 | F26: 7 | H26: 1 | I26: 22 | J26: 7
B27: Tercero Arriba | C27: 8 | D27: 2 | E27: 1647 | F27: 298 | G27: 3 | H27: 1 | I27: 759 | J27: 102 | K27: 5 | L27: 1 | M27: 888 | N27: 196
B28: Totoral | C28: 1 | E28: 396 | F28: 53 | G28: 1 | I28: 396 | J28: 53
B29: Unión | C29: 16 | D29: 2 | E29: 2611 | F29: 629 | G29: 6 | H29: 2 | I29: 1147 | J29: 288 | K29: 10 | M29: 1464 | N29: 341
B31: (*) El personal docente en actividad hace referencia a todas las personas con designación docente que se desempeñan en las unidades educativas del nivel. Por esta razón, se cuentan tantas veces como ofertas en las que trabajan.
B32: Los departamentos Minas, Pocho y Tulumba no cuentan con oferta educativa de Nivel Superior.
B33: En el departamento Capital, además de los que corresponden a los institutos superiores provinciales (ya sea que dependan de la UPC o del Ministerio de Educación), se incluyen los docentes y los alumnos de los dos colegios universitarios dependientes de UNC , más una institución que depende del Ministerio de Defensa de la Nación.

Sheet S C5.3. (hidden)
B2: CUADRO 5.3 Alumnos por sector y sexo, según el tipo de formación
B3: Tipo de formación | C3: Total general | F3: Estatal | I3: Privado
C4: Total | D4: Mujeres | E4: Varones | F4: Total | G4: Mujeres | H4: Varones | I4: Total | J4: Mujeres | K4: Varones
B5: Total Córdoba (*) | C5: 76907 | D5: 51551 | E5: 25356 | F5: 44059 | G5: 29433 | H5: 14626 | I5: 32848 | J5: 22118 | K5: 10730
B6: Docente | C6: 32810 | D6: 26537 | E6: 6273 | F6: 20098 | G6: 16714 | H6: 3384 | I6: 12712 | J6: 9823 | K6: 2889
B7: Técnico-profesional | C7: 44097 | D7: 25014 | E7: 19083 | F7: 23961 | G7: 12719 | H7: 11242 | I7: 20136 | J7: 12295 | K7: 7841
B9: (*) Se encuentran incluidos los alumnos de los colegios universitarios de la UNC y los de las carreras superiores de la UPC.

Sheet S C5.4. (hidden)
B2: CUADRO 5.4 Alumnos por sector y sexo, según departamento
B3: Departamento | C3: Total general | F3: Estatal | I3: Privado
C4: Total | D4: Mujeres | E4: Varones | F4: Total | G4: Mujeres | H4: Varones | I4: Total | J4: Mujeres | K4: Varones
B5: Total Córdoba | C5: 76907 | D5: 51551 | E5: 25356 | F5: 44059 | G5: 29433 | H5: 14626 | I5: 32848 | J5: 22118 | K5: 10730
B6: Calamuchita | C6: 429 | D6: 339 | E6: 90 | F6: 336 | G6: 248 | H6: 88 | I6: 93 | J6: 91 | K6: 2
B7: Capital | C7: 46185 | D7: 27908 | E7: 18277 | F7: 26036 | G7: 15626 | H7: 10410 | I7: 20149 | J7: 12282 | K7: 7867
B8: Colón | C8: 1674 | D8: 1430 | E8: 244 | F8: 926 | G8: 794 | H8: 132 | I8: 748 | J8: 636 | K8: 112
B9: Cruz del Eje | C9: 2066 | D9: 1677 | E9: 389 | F9: 1437 | G9: 1146 | H9: 291 | I9: 629 | J9: 531 | K9: 98
B10: General Roca | C10: 396 | D10: 363 | E10: 33 | F10: 164 | G10: 141 | H10: 23 | I10: 232 | J10: 222 | K10: 10
B11: General San Martín | C11: 4346 | D11: 3125 | E11: 1221 | F11: 1241 | G11: 946 | H11: 295 | I11: 3105 | J11: 2179 | K11: 926
B12: Ischilín | C12: 893 | D12: 606 | E12: 287 | F12: 811 | G12: 533 | H12: 278 | I12: 82 | J12: 73 | K12: 9
B13: Juárez Celman | C13: 492 | D13: 366 | E13: 126 | F13: 271 | G13: 220 | H13: 51 | I13: 221 | J13: 146 | K13: 75
B14: Marcos Juárez | C14: 1496 | D14: 1208 | E14: 288 | F14: 1010 | G14: 848 | H14: 162 | I14: 486 | J14: 360 | K14: 126
B15: Minas
B16: Pocho
B17: Pte. Roque Sáenz Peña | C17: 568 | D17: 477 | E17: 91 | F17: 371 | G17: 283 | H17: 88 | I17: 197 | J17: 194 | K17: 3
B18: Punilla | C18: 2135 | D18: 1488 | E18: 647 | F18: 1357 | G18: 907 | H18: 450 | I18: 778 | J18: 581 | K18: 197
B19: Río Cuarto | C19: 3027 | D19: 2310 | E19: 717 | F19: 1682 | G19: 1296 | H19: 386 | I19: 1345 | J19: 1014 | K19: 331
B20: Río Primero | C20: 349 | D20: 329 | E20: 20 | F20: 167 | G20: 153 | H20: 14 | I20: 182 | J20: 176 | K20: 6
B21: Río Seco | C21: 28 | D21: 25 | E21: 3 | F21: 28 | G21: 25 | H21: 3
B22: Río Segundo | C22: 922 | D22: 699 | E22: 223 | F22: 557 | G22: 354 | H22: 203 | I22: 365 | J22: 345 | K22: 20
B23: San Alberto | C23: 654 | D23: 531 | E23: 123 | F23: 654 | G23: 531 | H23: 123
B24: San Javier | C24: 1783 | D24: 1365 | E24: 418 | F24: 1345 | G24: 1042 | H24: 303 | I24: 438 | J24: 323 | K24: 115
B25: San Justo | C25: 4076 | D25: 3069 | E25: 1007 | F25: 2630 | G25: 1894 | H25: 736 | I25: 1446 | J25: 1175 | K25: 271
B26: Santa María | C26: 712 | D26: 678 | E26: 34 | F26: 712 | G26: 678 | H26: 34
B27: Sobremonte | C27: 22 | D27: 22 | F27: 22 | G27: 22
B28: Tercero Arriba | C28: 1647 | D28: 1182 | E28: 465 | F28: 759 | G28: 503 | H28: 256 | I28: 888 | J28: 679 | K28: 209
B29: Totoral | C29: 396 | D29: 353 | E29: 43 | F29: 396 | G29: 353 | H29: 43
B30: Tulumba
B31: Unión | C31: 2611 | D31: 2001 | E31: 610 | F31: 1147 | G31: 890 | H31: 257 | I31: 1464 | J31: 1111 | K31: 353
B33: Los departamentos Minas, Pocho y Tulumba no cuentan con oferta educativa de Nivel Superior.
B34: En el departamento Capital, además de los que corresponden a los institutos superiores provinciales (ya sea que dependan de la UPC o del Ministerio de Educación), se incluyen los docentes y los alumnos de los dos colegios universitarios dependientes de UNC , más una institución que depende del Ministerio de Defensa de la Nación.

Sheet S C5.5. (hidden)
B2: CUADRO 5.5 Alumnos ingresantes a 1° año, por sector y sexo, según departamento
B3: Departamento | C3: Total general | F3: Estatal | I3: Privado
C4: Total | D4: Mujeres | E4: Varones | F4: Total | G4: Mujeres | H4: Varones | I4: Total | J4: Mujeres | K4: Varones
B5: Total Córdoba | C5: 28853 | D5: 19710 | E5: 9143 | F5: 16112 | G5: 11129 | H5: 4983 | I5: 12741 | J5: 8581 | K5: 4160
B6: Calamuchita | C6: 219 | D6: 170 | E6: 49 | F6: 183 | G6: 135 | H6: 48 | I6: 36 | J6: 35 | K6: 1
B7: Capital | C7: 16110 | D7: 10020 | E7: 6090 | F7: 8097 | G7: 5049 | H7: 3048 | I7: 8013 | J7: 4971 | K7: 3042
B8: Colón | C8: 669 | D8: 579 | E8: 90 | F8: 371 | G8: 325 | H8: 46 | I8: 298 | J8: 254 | K8: 44
B9: Cruz del Eje | C9: 832 | D9: 656 | E9: 176 | F9: 611 | G9: 472 | H9: 139 | I9: 221 | J9: 184 | K9: 37
B10: General Roca | C10: 140 | D10: 134 | E10: 6 | F10: 82 | G10: 81 | H10: 1 | I10: 58 | J10: 53 | K10: 5
B11: General San Martín | C11: 1781 | D11: 1301 | E11: 480 | F11: 529 | G11: 421 | H11: 108 | I11: 1252 | J11: 880 | K11: 372
B12: Ischilín | C12: 392 | D12: 269 | E12: 123 | F12: 351 | G12: 234 | H12: 117 | I12: 41 | J12: 35 | K12: 6
B13: Juárez Celman | C13: 250 | D13: 180 | E13: 70 | F13: 156 | G13: 123 | H13: 33 | I13: 94 | J13: 57 | K13: 37
B14: Marcos Juárez | C14: 753 | D14: 625 | E14: 128 | F14: 555 | G14: 476 | H14: 79 | I14: 198 | J14: 149 | K14: 49
B15: Pte. Roque Sáenz Peña | C15: 218 | D15: 175 | E15: 43 | F15: 159 | G15: 116 | H15: 43 | I15: 59 | J15: 59
B16: Punilla | C16: 939 | D16: 650 | E16: 289 | F16: 616 | G16: 409 | H16: 207 | I16: 323 | J16: 241 | K16: 82
B17: Río Cuarto | C17: 1143 | D17: 870 | E17: 273 | F17: 617 | G17: 506 | H17: 111 | I17: 526 | J17: 364 | K17: 162
B18: Río Primero | C18: 208 | D18: 196 | E18: 12 | F18: 125 | G18: 116 | H18: 9 | I18: 83 | J18: 80 | K18: 3
B19: Río Segundo | C19: 486 | D19: 359 | E19: 127 | F19: 343 | G19: 220 | H19: 123 | I19: 143 | J19: 139 | K19: 4
B20: San Alberto | C20: 353 | D20: 272 | E20: 81 | F20: 353 | G20: 272 | H20: 81
B21: San Javier | C21: 851 | D21: 631 | E21: 220 | F21: 734 | G21: 545 | H21: 189 | I21: 117 | J21: 86 | K21: 31
B22: San Justo | C22: 1498 | D22: 1110 | E22: 388 | F22: 1051 | G22: 741 | H22: 310 | I22: 447 | J22: 369 | K22: 78
B23: Santa María | C23: 187 | D23: 170 | E23: 17 | F23: 187 | G23: 170 | H23: 17
B24: Tercero Arriba | C24: 592 | D24: 413 | E24: 179 | F24: 325 | G24: 214 | H24: 111 | I24: 267 | J24: 199 | K24: 68
B25: Totoral | C25: 157 | D25: 134 | E25: 23 | F25: 157 | G25: 134 | H25: 23
B26: Unión | C26: 1075 | D26: 796 | E26: 279 | F26: 510 | G26: 370 | H26: 140 | I26: 565 | J26: 426 | K26: 139
B28: Los departamentos Minas, Pocho y Tulumba no cuentan con oferta educativa de Nivel Superior, en tanto que los departamentos Río Seco y Sobremonte no cuentan con ingresantes.
B29: En el departamento Capital, además de los que corresponden a los institutos superiores provinciales (ya sea que dependan de la UPC o del Ministerio de Educación), se incluyen los docentes y los alumnos de los dos colegios universitarios dependientes de UNC , más una institución que depende del Ministerio de Defensa de la Nación.

Sheet S C5.6 (hidden)
B2: CUADRO 5.6 Alumnos por sector, según tipo de carrera y rama
B3: Tipo de carrera (*) | C3: Rama | D3: Total | E3: Estatal | F3: Privado
B4: Total Córdoba | D4: 76907 | E4: 44059 | F4: 32848
B5: Grado | C5: Total grado | D5: 74107 | E5: 41699 | F5: 32408
C6: Ciencias de la Salud | D6: 7421 | E6: 2420 | F6: 5001
C7: Ciencias Básicas | D7: 3389 | E7: 2818 | F7: 571
C8: Ciencias Aplicadas y Tecnología | D8: 15515 | E8: 9581 | F8: 5934
C9: Ciencias Sociales | D9: 19751 | E9: 12009 | F9: 7742
C10: Ciencias Humanas | D10: 27804 | E10: 14871 | F10: 12933
C11: Servicios personales, del hogar y la comunidad | D11: 227 | F11: 227
B12: Postítulos (**) | C12: Total postítulos | D12: 2800 | E12: 2360 | F12: 440
C13: Ciencias Humanas | D13: 2800 | E13: 2360 | F13: 440
B15: (*) Incluye formación docente y tecnicaturas.
B16: (**) Se incluye la oferta educativa de diplomaturas, especializaciones y postítulos.

Sheet S C5.7 (hidden)
B2: ="CUADRO 5.7 Alumnos egresados del ciclo lectivo "&añoAnuario-1&", por sector y sexo, según departamento" -> CUADRO 5.7 Alumnos egresados del ciclo lectivo 2020, por sector y sexo, según departamento
B3: Departamento | C3: Total general | F3: Estatal | I3: Privado
C4: Total | D4: Mujeres | E4: Varones | F4: Total | G4: Mujeres | H4: Varones | I4: Total | J4: Mujeres | K4: Varones
B5: Total Córdoba | C5: 11831 | D5: 7920 | E5: 3911 | F5: 7454 | G5: 4885 | H5: 2569 | I5: 4377 | J5: 3035 | K5: 1342
B6: Calamuchita | C6: 41 | D6: 33 | E6: 8 | F6: 33 | G6: 25 | H6: 8 | I6: 8 | J6: 8
B7: Capital | C7: 7761 | D7: 4988 | E7: 2773 | F7: 5135 | G7: 3321 | H7: 1814 | I7: 2626 | J7: 1667 | K7: 959
B8: Colón | C8: 349 | D8: 218 | E8: 131 | F8: 232 | G8: 109 | H8: 123 | I8: 117 | J8: 109 | K8: 8
B9: Cruz del Eje | C9: 191 | D9: 148 | E9: 43 | F9: 107 | G9: 76 | H9: 31 | I9: 84 | J9: 72 | K9: 12
B10: General Roca | C10: 27 | D10: 25 | E10: 2 | F10: 2 | G10: 2 | I10: 25 | J10: 23 | K10: 2
B11: General San Martín | C11: 584 | D11: 426 | E11: 158 | F11: 129 | G11: 94 | H11: 35 | I11: 455 | J11: 332 | K11: 123
B12: Ischilín | C12: 106 | D12: 83 | E12: 23 | F12: 85 | G12: 68 | H12: 17 | I12: 21 | J12: 15 | K12: 6
B13: Juárez Celman | C13: 33 | D13: 23 | E13: 10 | F13: 23 | G13: 15 | H13: 8 | I13: 10 | J13: 8 | K13: 2
B14: Marcos Juárez | C14: 143 | D14: 123 | E14: 20 | F14: 88 | G14: 75 | H14: 13 | I14: 55 | J14: 48 | K14: 7
B15: Pte. Roque Sáenz Peña | C15: 42 | D15: 32 | E15: 10 | F15: 28 | G15: 19 | H15: 9 | I15: 14 | J15: 13 | K15: 1
B16: Punilla | C16: 232 | D16: 140 | E16: 92 | F16: 155 | G16: 81 | H16: 74 | I16: 77 | J16: 59 | K16: 18
B17: Río Cuarto | C17: 738 | D17: 482 | E17: 256 | F17: 606 | G17: 382 | H17: 224 | I17: 132 | J17: 100 | K17: 32
B18: Río Primero | C18: 93 | D18: 89 | E18: 4 | F18: 60 | G18: 58 | H18: 2 | I18: 33 | J18: 31 | K18: 2
B19: Río Seco | C19: 1 | D19: 1 | F19: 1 | G19: 1
B20: Río Segundo | C20: 76 | D20: 56 | E20: 20 | F20: 51 | G20: 31 | H20: 20 | I20: 25 | J20: 25
B21: San Alberto | C21: 33 | D21: 23 | E21: 10 | F21: 33 | G21: 23 | H21: 10
B22: San Javier | C22: 153 | D22: 122 | E22: 31 | F22: 98 | G22: 79 | H22: 19 | I22: 55 | J22: 43 | K22: 12
B23: San Justo | C23: 631 | D23: 459 | E23: 172 | F23: 292 | G23: 190 | H23: 102 | I23: 339 | J23: 269 | K23: 70
B24: Santa María | C24: 90 | D24: 81 | E24: 9 | F24: 90 | G24: 81 | H24: 9
B25: Tercero Arriba | C25: 211 | D25: 135 | E25: 76 | F25: 52 | G25: 31 | H25: 21 | I25: 159 | J25: 104 | K25: 55
B26: Totoral | C26: 26 | D26: 23 | E26: 3 | F26: 26 | G26: 23 | H26: 3
B27: Unión | C27: 270 | D27: 210 | E27: 60 | F27: 128 | G27: 101 | H27: 27 | I27: 142 | J27: 109 | K27: 33
B29: Los departamentos Minas, Pocho y Tulumba no cuentan con oferta educativa de Nivel Superior, en tanto que el Departamento Sobremonte no cuenta con egresados del Nivel Superior.
B30: En el departamento Capital, además de los que corresponden a los institutos superiores provinciales (ya sea que dependan de la UPC o del Ministerio de Educación), se incluyen los docentes y los alumnos de los dos colegios universitarios dependientes de UNC , más una institución que depende del Ministerio de Defensa de la Nación.

Sheet CSC5.8. (hidden)
B2: CUADRO 5.8 Personal docente en actividad, por lugar de origen y forma de designación, según sector
B3: Lugar de origen | C3: Forma de designación | D3: Total | E3: Estatal | F3: Privado
B4: Total Córdoba | D4: 11076 | E4: 6207 | F4: 4869
B5: Personal designado en la planta del establecimiento | C5: En actividad, designados sólo por cargo | D5: 983 | E5: 547 | F5: 436
C6: En actividad, designados sólo por horas cátedra | D6: 9542 | E6: 5384 | F6: 4158
C7: En actividad, designados por cargo y horas cátedra | D7: 503 | E7: 229 | F7: 274
B8: Personal que proviene de otra planta | C8: Docentes frente a alumnos, afectados a este establecimiento que no pertenecen a esta planta funcional | D8: 11 | E8: 11
C9: Docentes en otras funciones, afectados a este establecimiento que no pertenecen a esta planta funcional | D9: 37 | E9: 36 | F9: 1
B11: El personal docente en actividad hace referencia a todas las personas con designación docente que se desempeñan en las unidades educativas del nivel. Por esta razón, se cuentan tantas veces como ofertas en las que trabajan.

Sheet S.C5.9 (hidden)
B2: CUADRO 5.9 Personal docente en actividad, por sexo, según departamento
B3: Departamento | C3: Total | D3: Mujeres | E3: Varones
B4: Total Córdoba | C4: 11076 | D4: 7510 | E4: 3566
B5: Calamuchita | C5: 93 | D5: 61 | E5: 32
B6: Capital | C6: 5170 | D6: 3276 | E6: 1894
B7: Colón | C7: 303 | D7: 205 | E7: 98
B8: Cruz del Eje | C8: 311 | D8: 238 | E8: 73
B9: General Roca | C9: 64 | D9: 47 | E9: 17
B10: General San Martín | C10: 752 | D10: 519 | E10: 233
B11: Ischilín | C11: 147 | D11: 122 | E11: 25
B12: Juárez Celman | C12: 141 | D12: 103 | E12: 38
B13: Marcos Juárez | C13: 433 | D13: 332 | E13: 101
B14: Pte. Roque Sáenz Peña | C14: 147 | D14: 114 | E14: 33
B15: Punilla | C15: 430 | D15: 279 | E15: 151
B16: Río Cuarto | C16: 560 | D16: 364 | E16: 196
B17: Río Primero | C17: 76 | D17: 60 | E17: 16
B18: Río Seco | C18: 13 | D18: 9 | E18: 4
B19: Río Segundo | C19: 137 | D19: 97 | E19: 40
B20: San Alberto | C20: 119 | D20: 77 | E20: 42
B21: San Javier | C21: 283 | D21: 195 | E21: 88
B22: San Justo | C22: 813 | D22: 599 | E22: 214
B23: Santa María | C23: 97 | D23: 78 | E23: 19
B24: Sobremonte | C24: 7 | D24: 5 | E24: 2
B25: Tercero Arriba | C25: 298 | D25: 198 | E25: 100
B26: Totoral | C26: 53 | D26: 34 | E26: 19
B27: Unión | C27: 629 | D27: 498 | E27: 131
B29: El personal docente en actividad hace referencia a todas las personas con designación docente que se desempeñan en las unidades educativas del nivel. Por esta razón, se cuentan tantas veces como ofertas en las que trabajan.
B30: En el departamento Capital, además de los que corresponden a los institutos superiores provinciales (ya sea que dependan de la UPC o del Ministerio de Educación), se incluyen los docentes y los alumnos de los dos colegios universitarios dependientes de UNC , más una institución que depende del Ministerio de Defensa de la Nación.
B31: Los departamentos Minas, Pocho y Tulumba no cuentan con oferta educativa de Nivel Superior.

Sheet S C 5.10 (hidden)
B3: CUADRO 5.10 Personal docente en actividad, por sector, ámbito y origen de la designación, según departamento
B4: Departamento | C4: Total | E4: Estatal | G4: Privado
C5: Personal designado en la planta del establecimiento | D5: Personal que proviene de otra planta | E5: Personal designado en la planta del establecimiento | F5: Personal que proviene de otra planta | G5: Personal designado en la planta del establecimiento | H5: Personal que proviene de otra planta
B6: Total Córdoba | C6: 11028 | D6: 48 | E6: 6160 | F6: 47 | G6: 4868 | H6: 1
B7: Calamuchita | C7: 93 | E7: 64 | G7: 29
B8: Capital | C8: 5147 | D8: 23 | E8: 2910 | F8: 22 | G8: 2237 | H8: 1
B9: Colón | C9: 303 | E9: 147 | G9: 156
B10: Cruz del Eje | C10: 311 | E10: 191 | G10: 120
B11: General Roca | C11: 64 | E11: 47 | G11: 17
B12: General San Martín | C12: 750 | D12: 2 | E12: 217 | F12: 2 | G12: 533
B13: Ischilín | C13: 147 | E13: 137 | G13: 10
B14: Juárez Celman | C14: 141 | E14: 80 | G14: 61
B15: Marcos Juárez | C15: 433 | E15: 266 | G15: 167
B16: Pte. Roque Sáenz Peña | C16: 147 | E16: 107 | G16: 40
B17: Punilla | C17: 430 | E17: 299 | G17: 131
B18: Río Cuarto | C18: 560 | E18: 297 | G18: 263
B19: Río Primero | C19: 74 | D19: 2 | E19: 29 | F19: 2 | G19: 45
B20: Río Seco | C20: 13 | E20: 13
B21: Río Segundo | C21: 135 | D21: 2 | E21: 61 | F21: 2 | G21: 74
B22: San Alberto | C22: 117 | D22: 2 | E22: 117 | F22: 2
B23: San Javier | C23: 283 | E23: 186 | G23: 97
B24: San Justo | C24: 806 | D24: 7 | E24: 455 | F24: 7 | G24: 351
B25: Santa María | C25: 96 | D25: 1 | E25: 96 | F25: 1
B26: Sobremonte | C26: 7 | E26: 7
B27: Tercero Arriba | C27: 298 | E27: 102 | G27: 196
B28: Totoral | C28: 51 | D28: 2 | E28: 51 | F28: 2
B29: Unión | C29: 622 | D29: 7 | E29: 281 | F29: 7 | G29: 341
B31: El personal docente en actividad hace referencia a todas las personas con designación docente que se desempeñan en las unidades educativas del nivel. Por esta razón, se cuentan tantas veces como ofertas en las que trabajan.
B32: Los departamentos Minas, Pocho y Tulumba no cuentan con oferta educativa de Nivel Superior.
B33: En el departamento Capital, además de los que corresponden a los institutos superiores provinciales (ya sea que dependan de la UPC o del Ministerio de Educación), se incluyen los docentes y los alumnos de los dos colegios universitarios dependientes de UNC, más una institución que depende del Ministerio de Defensa de la Nación.

Sheet EC6.1 (hidden)
C2: CUADRO 6.1 Establecimientos, alumnos y personal docente en actividad, por sector
D3: Total | E3: Estatal | F3: Privado
C4: Establecimientos (*) | D4: 100 | E4: 58 | F4: 42
C5: Alumnos | D5: 5406 | E5: 3077 | F5: 2329
C6: Personal docente (**) | D6: 2633 | E6: 1706 | F6: 927
C8: (*) Aquí se consignan establecimientos y no unidades educativas (puesto que ellas se vinculan a las formas de implementación del nivel). Esto es así porque en la Provincia, la modalidad especial se organiza en establecimientos (ver glosario) con una máxima autoridad pedagógica y con una única partida presupuestaria, en los que se imparte distintos niveles de enseñanza. De allí que en un mismo establecimiento coexisten varias unidades educativas y en la medida que los docentes son parte de la misma planta funcional, no es posible discriminar quién trabaja para cada una de ellas (salvo raras excepciones).
C9: (**) El personal docente en actividad hace referencia a todas las personas con designación docente que se desempeñan en los establecimientos educativos de la modalidad. Por esta razón, se cuentan tantas veces como ofertas en las que trabajan.

Sheet EC6.2 (hidden)
B3: CUADRO 6.2 Bases, anexos, alumnos y personal docente en actividad, por sector, según departamento
B4: Departamento | C4: Total | G4: Estatal | K4: Privado
C5: Bases (*) | D5: Anexos (*) | E5: Alumnos | F5: Personal docente (**) | G5: Bases | H5: Anexos | I5: Alumnos | J5: Personal docente | K5: Bases | L5: Alumnos | M5: Personal docente
B6: Total Córdoba | C6: 100 | D6: 20 | E6: 5406 | F6: 2633 | G6: 58 | H6: 20 | I6: 3077 | J6: 1706 | K6: 42 | L6: 2329 | M6: 927
B7: Calamuchita | C7: 3 | E7: 87 | F7: 52 | G7: 3 | I7: 87 | J7: 52
B8: Capital | C8: 26 | D8: 1 | E8: 2340 | F8: 917 | G8: 13 | H8: 1 | I8: 1316 | J8: 572 | K8: 13 | L8: 1024 | M8: 345
B9: Colón | C9: 5 | D9: 3 | E9: 441 | F9: 167 | G9: 3 | H9: 3 | I9: 307 | J9: 110 | K9: 2 | L9: 134 | M9: 57
B10: Cruz del Eje | C10: 1 | D10: 1 | E10: 78 | F10: 32 | G10: 1 | H10: 1 | I10: 78 | J10: 32
B11: General Roca | C11: 2 | D11: 3 | E11: 57 | F11: 46 | G11: 2 | H11: 3 | I11: 57 | J11: 46
B12: General San Martín | C12: 3 | D12: 1 | E12: 175 | F12: 111 | G12: 2 | H12: 1 | I12: 113 | J12: 71 | K12: 1 | L12: 62 | M12: 40
B13: Ischilín | C13: 1 | E13: 30 | F13: 27 | G13: 1 | I13: 30 | J13: 27
B14: Juárez Celman | C14: 4 | D14: 1 | E14: 50 | F14: 74 | G14: 3 | H14: 1 | I14: 28 | J14: 55 | K14: 1 | L14: 22 | M14: 19
B15: Marcos Juárez | C15: 6 | D15: 2 | E15: 93 | F15: 102 | G15: 3 | H15: 2 | I15: 33 | J15: 60 | K15: 3 | L15: 60 | M15: 42
B16: Minas (***) | D16: 1 | E16: 2 | F16: 7 | H16: 1 | I16: 2 | J16: 7
B17: Pte. Roque Sáenz Peña | C17: 2 | D17: 1 | E17: 30 | F17: 51 | G17: 2 | H17: 1 | I17: 30 | J17: 51
B18: Punilla | C18: 5 | E18: 347 | F18: 136 | G18: 3 | I18: 156 | J18: 83 | K18: 2 | L18: 191 | M18: 53
B19: Río Cuarto | C19: 11 | E19: 278 | F19: 223 | G19: 8 | I19: 157 | J19: 167 | K19: 3 | L19: 121 | M19: 56
B20: Río Primero | C20: 1 | D20: 1 | E20: 79 | F20: 34 | G20: 1 | H20: 1 | I20: 79 | J20: 34
B21: Río Seco (***) | D21: 1 | E21: 28 | F21: 11 | H21: 1 | I21: 28 | J21: 11
B22: Río Segundo | C22: 5 | E22: 240 | F22: 93 | G22: 2 | I22: 112 | J22: 48 | K22: 3 | L22: 128 | M22: 45
B23: San Alberto | C23: 1 | E23: 32 | F23: 23 | G23: 1 | I23: 32 | J23: 23
B24: San Javier | C24: 1 | E24: 62 | F24: 33 | G24: 1 | I24: 62 | J24: 33
B25: San Justo | C25: 10 | D25: 1 | E25: 376 | F25: 206 | G25: 5 | H25: 1 | I25: 184 | J25: 112 | K25: 5 | L25: 192 | M25: 94
B26: Santa María | C26: 1 | D26: 2 | E26: 97 | F26: 51 | H26: 2 | I26: 41 | J26: 25 | K26: 1 | L26: 56 | M26: 26
B27: Tercero Arriba | C27: 4 | D27: 1 | E27: 258 | F27: 93 | G27: 1 | H27: 1 | I27: 62 | J27: 30 | K27: 3 | L27: 196 | M27: 63
B28: Totoral | C28: 1 | E28: 31 | F28: 18 | G28: 1 | I28: 31 | J28: 18
B29: Tulumba | C29: 1 | E29: 34 | F29: 17 | G29: 1 | I29: 34 | J29: 17
B30: Unión | C30: 6 | E30: 161 | F30: 109 | G30: 1 | I30: 18 | J30: 22 | K30: 5 | L30: 143 | M30: 87
B31: (*) Aquí se está contabilizado una escuela especial base de localidad de Córdoba (departamento Capital ) y dos anexos, uno de localidad de La Granja (departamento Colón) y otro de la localidad de Porteña (departamento San Justo) , cuyos docentes realizan diferentes actividades como la aplicación de nuevos recursos educativos (en el base) y apoyo a la integración en una escuela común (en los anexos). Por ello se cuenta el personal docente de estas escuelas especiales, no así su matrícula.
B32: (**) El personal docente en actividad hace referencia a todas las personas con designación docente que se desempeñan en los establecimientos educativos de la modalidad. Por esta razón, se cuentan tantas veces como ofertas en las que trabajan.
B33: (***) En estos departamentos la oferta de educación especial corresponde a un anexo.
B34: Los departamentos Pocho y Sobremonte no cuentan con educación especial. Esta oferta posee en el ámbito rural solo dos anexos, localizados en los departamentos Colón-localidad El Pueblito y Minas- localidad Piedras Anchas (con un total de 39 alumnos, de los cuales 30 son varones). El sector privado no posee oferta en el ámbito rural.
B35: Se incluye la oferta de educación formal y no formal.

Sheet EC6.3 (hidden)
B2: CUADRO 6.3 Alumnos por sector y sexo, según departamento
B3: Departamento | C3: Total general | F3: Estatal | I3: Privado
C4: Total | D4: Mujeres | E4: Varones | F4: Total | G4: Mujeres | H4: Varones | I4: Total | J4: Mujeres | K4: Varones
B5: Total Córdoba | C5: 5406 | D5: 2012 | E5: 3394 | F5: 3077 | G5: 1127 | H5: 1950 | I5: 2329 | J5: 885 | K5: 1444
B6: Calamuchita | C6: 87 | D6: 36 | E6: 51 | F6: 87 | G6: 36 | H6: 51
B7: Capital | C7: 2340 | D7: 859 | E7: 1481 | F7: 1316 | G7: 461 | H7: 855 | I7: 1024 | J7: 398 | K7: 626
B8: Colón | C8: 441 | D8: 158 | E8: 283 | F8: 307 | G8: 109 | H8: 198 | I8: 134 | J8: 49 | K8: 85
B9: Cruz del Eje | C9: 78 | D9: 32 | E9: 46 | F9: 78 | G9: 32 | H9: 46
B10: General Roca | C10: 57 | D10: 23 | E10: 34 | F10: 57 | G10: 23 | H10: 34
B11: General San Martín | C11: 175 | D11: 74 | E11: 101 | F11: 113 | G11: 50 | H11: 63 | I11: 62 | J11: 24 | K11: 38
B12: Ischilín | C12: 30 | D12: 11 | E12: 19 | F12: 30 | G12: 11 | H12: 19
B13: Juárez Celman | C13: 50 | D13: 14 | E13: 36 | F13: 28 | G13: 7 | H13: 21 | I13: 22 | J13: 7 | K13: 15
B14: Marcos Juárez | C14: 93 | D14: 31 | E14: 62 | F14: 33 | G14: 14 | H14: 19 | I14: 60 | J14: 17 | K14: 43
B15: Minas | C15: 2 | D15: 0 | E15: 2 | F15: 2 | G15: 0 | H15: 2
B16: Pte. Roque Sáenz Peña | C16: 30 | D16: 14 | E16: 16 | F16: 30 | G16: 14 | H16: 16
B17: Punilla | C17: 347 | D17: 134 | E17: 213 | F17: 156 | G17: 55 | H17: 101 | I17: 191 | J17: 79 | K17: 112
B18: Río Cuarto | C18: 278 | D18: 113 | E18: 165 | F18: 157 | G18: 59 | H18: 98 | I18: 121 | J18: 54 | K18: 67
B19: Río Primero | C19: 79 | D19: 27 | E19: 52 | F19: 79 | G19: 27 | H19: 52
B20: Río Seco | C20: 28 | D20: 9 | E20: 19 | F20: 28 | G20: 9 | H20: 19
B21: Río Segundo | C21: 240 | D21: 98 | E21: 142 | F21: 112 | G21: 47 | H21: 65 | I21: 128 | J21: 51 | K21: 77
B22: San Alberto | C22: 32 | D22: 12 | E22: 20 | F22: 32 | G22: 12 | H22: 20
B23: San Javier | C23: 62 | D23: 25 | E23: 37 | F23: 62 | G23: 25 | H23: 37
B24: San Justo | C24: 376 | D24: 134 | E24: 242 | F24: 184 | G24: 63 | H24: 121 | I24: 192 | J24: 71 | K24: 121
B25: Santa María | C25: 97 | D25: 33 | E25: 64 | F25: 41 | G25: 16 | H25: 25 | I25: 56 | J25: 17 | K25: 39
B26: Tercero Arriba | C26: 258 | D26: 96 | E26: 162 | F26: 62 | G26: 28 | H26: 34 | I26: 196 | J26: 68 | K26: 128
B27: Totoral | C27: 31 | D27: 15 | E27: 16 | F27: 31 | G27: 15 | H27: 16
B28: Tulumba | C28: 34 | D28: 8 | E28: 26 | F28: 34 | G28: 8 | H28: 26
B29: Unión | C29: 161 | D29: 56 | E29: 105 | F29: 18 | G29: 6 | H29: 12 | I29: 143 | J29: 50 | K29: 93
B31: Los departamentos Pocho y Sobremonte no cuentan con educación especial. Esta oferta posee en el ámbito rural solo dos anexos, localizados en los departamentos Colón-localidad El Pueblito y Minas- localidad Piedras Anchas (con un total de 39 alumnos, de los cuales 30 son varones). El sector privado no posee oferta en el ámbito rural.
B32: Se incluye la oferta de educación formal y no formal.

Sheet E6.4.1-6.4.2 (hidden)
B2: CUADRO 6.4.1 Alumnos por nivel de la educación formal, según departamento
B3: Departamento | C3: Total | D3: Educación Formal
D4: Inicial | F4: Primario | G4: Secundario
D5: Educación temprana | E5: Jardin de infantes
B6: Total Córdoba | C6: 5406 | D6: 127 | E6: 28 | F6: 1251 | G6: 4000
B7: Calamuchita | C7: 87 | D7: 10 | F7: 18 | G7: 59
B8: Capital | C8: 2340 | D8: 42 | E8: 23 | F8: 588 | G8: 1687
B9: Colón | C9: 441 | F9: 120 | G9: 321
B10: Cruz del Eje | C10: 78 | D10: 3 | E10: 3 | F10: 15 | G10: 57
B11: General Roca | C11: 57 | F11: 12 | G11: 45
B12: General San Martín | C12: 175 | D12: 10 | F12: 35 | G12: 130
B13: Ischilín | C13: 30 | F13: 7 | G13: 23
B14: Juárez Celman | C14: 50 | D14: 6 | F14: 4 | G14: 40
B15: Marcos Juárez | C15: 93 | D15: 6 | F15: 15 | G15: 72
B16: Minas | C16: 2 | F16: 1 | G16: 1
B17: Pte. Roque Sáenz Peña | C17: 30 | F17: 6 | G17: 24
B18: Punilla | C18: 347 | D18: 13 | F18: 73 | G18: 261
B19: Río Cuarto | C19: 278 | D19: 6 | F19: 36 | G19: 236
B20: Río Primero | C20: 79 | D20: 1 | F20: 12 | G20: 66
B21: Río Seco | C21: 28 | F21: 7 | G21: 21
B22: Río Segundo | C22: 240 | D22: 5 | E22: 1 | F22: 64 | G22: 170
B23: San Alberto | C23: 32 | F23: 5 | G23: 27
B24: San Javier | C24: 62 | F24: 8 | G24: 54
B25: San Justo | C25: 376 | D25: 3 | E25: 1 | F25: 86 | G25: 286
B26: Santa María | C26: 97 | F26: 19 | G26: 78
B27: Tercero Arriba | C27: 258 | D27: 16 | F27: 59 | G27: 183
B28: Totoral | C28: 31 | F28: 10 | G28: 21
B29: Tulumba | C29: 34 | F29: 7 | G29: 27
B30: Unión | C30: 161 | D30: 6 | F30: 44 | G30: 111
B32: Los departamentos Pocho y Sobremonte no cuentan con educación especial. Esta oferta posee en el ámbito rural solo dos anexos, localizados en los departamentos Colón-localidad El Pueblito y Minas- localidad Piedras Anchas (con un total de 39 alumnos, de los cuales 30 son varones). El sector privado no posee oferta en el ámbito rural.
B34: CUADRO 6.4.2 Alumnos egresados del nivel primario y secundario por sector, según departamento
B35: Departamento | C35: Total general | D35: Primario | G35: Secundario
D36: Total | E36: Estatal | F36: Privado | G36: Total | H36: Estatal | I36: Privado
B37: Total Córdoba | C37: 1008 | D37: 419 | E37: 243 | F37: 176 | G37: 589 | H37: 377 | I37: 212
B38: Calamuchita | C38: 11 | D38: 5 | E38: 5 | G38: 6 | H38: 6
B39: Capital | C39: 451 | D39: 176 | E39: 95 | F39: 81 | G39: 275 | H39: 164 | I39: 111
B40: Colón | C40: 79 | D40: 43 | E40: 37 | F40: 6 | G40: 36 | H40: 27 | I40: 9
B41: Cruz del Eje | C41: 18 | D41: 8 | E41: 8 | G41: 10 | H41: 10
B42: General Roca | C42: 20 | D42: 7 | E42: 7 | G42: 13 | H42: 13
B43: General San Martín | C43: 37 | D43: 14 | E43: 10 | F43: 4 | G43: 23 | H43: 14 | I43: 9
B44: Ischilín | C44: 6 | D44: 3 | E44: 3 | G44: 3 | H44: 3
B45: Juárez Celman | C45: 18 | D45: 1 | E45: 1 | G45: 17 | H45: 10 | I45: 7
B46: Marcos Juárez | C46: 19 | D46: 4 | E46: 1 | F46: 3 | G46: 15 | H46: 11 | I46: 4
B47: Minas | C47: 2 | G47: 2 | H47: 2
B48: Pte. Roque Sáenz Peña | C48: 10 | D48: 3 | E48: 3 | G48: 7 | H48: 7
B49: Punilla | C49: 58 | D49: 24 | E49: 9 | F49: 15 | G49: 34 | H49: 17 | I49: 17
B50: Río Cuarto | C50: 36 | D50: 8 | E50: 5 | F50: 3 | G50: 28 | H50: 22 | I50: 6
B51: Río Primero | C51: 18 | D51: 9 | E51: 9 | G51: 9 | H51: 9
B52: Río Seco | C52: 3 | D52: 3 | E52: 3
B53: Río Segundo | C53: 41 | D53: 24 | E53: 11 | F53: 13 | G53: 17 | H53: 8 | I53: 9
B54: San Alberto | C54: 7 | D54: 3 | E54: 3 | G54: 4 | H54: 4
B55: San Javier | C55: 6 | D55: 1 | E55: 1 | G55: 5 | H55: 5
B56: San Justo | C56: 82 | D56: 30 | E56: 15 | F56: 15 | G56: 52 | H56: 36 | I56: 16
B57: Santa María | C57: 22 | D57: 9 | E57: 4 | F57: 5 | G57: 13 | H57: 1 | I57: 12
B58: Tercero Arriba | C58: 33 | D58: 23 | E58: 6 | F58: 17 | G58: 10 | H58: 2 | I58: 8
B59: Totoral | C59: 4 | D59: 3 | E59: 3 | G59: 1 | H59: 1
B60: Tulumba | C60: 5 | D60: 4 | E60: 4 | G60: 1 | H60: 1
B61: Unión | C61: 22 | D61: 14 | F61: 14 | G61: 8 | H61: 4 | I61: 4

Sheet E6.4.3 (hidden)
B2: CUADRO 6.4.3 Alumnos de educación no formal por sector, según departamento
B3: Departamento | C3: Total | D3: Estatal | E3: Privado
B4: Total Córdoba | C4: 712 | D4: 681 | E4: 31
B5: Capital | C5: 395 | D5: 364 | E5: 31
B6: Colón | C6: 34 | D6: 34
B7: Cruz del Eje | C7: 69 | D7: 69
B8: Ischilín | C8: 5 | D8: 5
B9: Río Cuarto | C9: 53 | D9: 53
B10: San Javier | C10: 8 | D10: 8
B11: San Justo | C11: 69 | D11: 69
B12: Tulumba | C12: 61 | D12: 61
B13: Unión | C13: 18 | D13: 18
B15: ="Se incluyen solo los departamentos donde se dictaron talleres en el periodo lectivo "&añoAnuario&"." -> Se incluyen solo los departamentos donde se dictaron talleres en el periodo lectivo 2021.

Sheet E6.5,6.6,6.7 (hidden)
B2: ="CUADRO 6.5 Evolución del total de alumnos integrados, por sector de la escuela de origen. Años "&añoAnuario-4&" - "&añoAnuario -> CUADRO 6.5 Evolución del total de alumnos integrados, por sector de la escuela de origen. Años 2017 - 2021
B3: Sector | C3: =añoAnuario-4 -> 2017 | D3: =C3+1 -> 2018 | E3: =D3+1 -> 2019 | F3: 2020 | G3: 2021
B4: Total Córdoba | C4: 3097 | D4: 3753 | E4: 4294 | F4: 5164 | G4: 5714
B5: Estatal | C5: 2628 | D5: 3210 | E5: 3684 | F5: 4460 | G5: 4965
B6: Privado | C6: 469 | D6: 543 | E6: 610 | F6: 704 | G6: 749
B10: ="CUADRO 6.6 Evolución del total de cargos cubiertos de maestro integrador, por sector. Años "&añoAnuario-4&" - "&añoAnuario -> CUADRO 6.6 Evolución del total de cargos cubiertos de maestro integrador, por sector. Años 2017 - 2021
B11: Sector | C11: =añoAnuario-4 -> 2017 | D11: =C11+1 -> 2018 | E11: 2019 | F11: 2020 | G11: 2021
B12: Total Córdoba | C12: 217 | D12: 273 | E12: 281 | F12: 258 | G12: 294
B13: Estatal | C13: 184 | D13: 229 | E13: 235 | F13: 218 | G13: 258
B14: Privado | C14: 33 | D14: 44 | E14: 46 | F14: 40 | G14: 36
B18: ="CUADRO 6.7 Evolución del total de alumnos por tipo de integración. Años "&añoAnuario-4&" - "&añoAnuario -> CUADRO 6.7 Evolución del total de alumnos por tipo de integración. Años 2017 - 2021
B19: Tipo de Integración | C19: =añoAnuario-4 -> 2017 | D19: =C19+1 -> 2018 | E19: 2019 | F19: 2020 | G19: 2021
B20: Total | C20: 3097 | D20: 3753 | E20: 4294 | F20: 5164 | G20: 5714
B21: Apoyo | C21: 2544 | D21: 3315 | E21: 3671 | F21: 4478 | G21: 5008
B22: Simultánea | C22: 553 | D22: 438 | E22: 623 | F22: 686 | G22: 706

Sheet E6.8 (hidden)
B2: ="CUADRO 6.8 Evolución del total de alumnos integrados, por tipo de discapacidad. Años "&añoAnuario-4&" - "&añoAnuario -> CUADRO 6.8 Evolución del total de alumnos integrados, por tipo de discapacidad. Años 2017 - 2021
B3: Tipo de discapacidad | C3: =añoAnuario-4 -> 2017 | D3: =C3+1 -> 2018 | E3: =D3+1 -> 2019 | F3: =E3+1 -> 2020 | G3: =F3+1 -> 2021
B4: Total Córdoba | C4: 3097 | D4: 3753 | E4: 4294 | F4: 5164 | G4: 5714
B5: Intelectual | C5: 2248 | D5: 2785 | E5: 3396 | F5: 4194 | G5: 4528
B6: Sordera o hipoacusia | C6: 186 | D6: 198 | E6: 193 | F6: 175 | G6: 221
B7: Ceguera o disminución visual | C7: 193 | D7: 170 | E7: 189 | F7: 122 | G7: 158
B8: Motora pura o neuromotora | C8: 94 | D8: 28 | E8: 27 | F8: 56 | G8: 46
B9: Trastornos generalizados del desarrollo (TGD) o Trastornos del espectro autista | C9: 31 | D9: 37 | E9: 84 | F9: 130 | G9: 146
B10: Más de una discapacidad | C10: 61 | D10: 99 | E10: 97 | F10: 143 | G10: 147
B11: Sin discapacidad | C11: 269 | D11: 333 | E11: 259 | F11: 231 | G11: 196
B12: Otras discapacidades | C12: 15 | D12: 103 | E12: 49 | F12: 113 | G12: 272

Sheet E6.9 (hidden)
B2: CUADRO 6.9 Evolución del total de alumnos integrados por sector de la escuela de origen y tipo de discapacidad.
B3: Sector de escuela de origen | C3: Tipo de discapacidad | D3: =añoAnuario-4 -> 2017 | E3: =D3+1 -> 2018 | F3: =E3+1 -> 2019 | G3: 2020 | H3: 2021
B4: Total Córdoba | D4: 3097 | E4: 3753 | F4: 4294 | G4: 5164 | H4: 5714
B5: Estatal | C5: Intelectual | D5: 1950 | E5: 2446 | F5: 3015 | G5: 3778 | H5: 4054
C6: Sordera o hipoacusia | D6: 185 | E6: 194 | F6: 187 | G6: 165 | H6: 215
C7: Ceguera o disminución visual | D7: 185 | E7: 162 | F7: 180 | G7: 117 | H7: 155
C8: Motora pura o neuromotora | D8: 88 | E8: 24 | F8: 24 | G8: 50 | H8: 39
C9: Trastornos generalizados del desarrollo (TGD) o Trastornos del espectro autista (TEA) | D9: 28 | E9: 29 | F9: 73 | G9: 103 | H9: 118
C10: Más de una discapacidad | D10: 45 | E10: 76 | F10: 68 | G10: 119 | H10: 120
C11: Sin discapacidad | D11: 139 | E11: 191 | F11: 106 | G11: 41 | H11: 33
C12: Otras discapacidades | D12: 8 | E12: 88 | F12: 31 | G12: 87 | H12: 231
B13: Privado | C13: Intelectual | D13: 298 | E13: 339 | F13: 381 | G13: 416 | H13: 474
C14: Sordera o hipoacusia | D14: 1 | E14: 4 | F14: 6 | G14: 10 | H14: 6
C15: Ceguera o disminución visual | D15: 8 | E15: 8 | F15: 9 | G15: 5 | H15: 3
C16: Motora pura o neuromotora | D16: 6 | E16: 4 | F16: 3 | G16: 6 | H16: 7
C17: Trastornos generalizados del desarrollo (TGD) o Trastornos del Espectro autista | D17: 3 | E17: 8 | F17: 11 | G17: 27 | H17: 28
C18: Más de una discapacidad | D18: 16 | E18: 23 | F18: 29 | G18: 24 | H18: 27
C19: Sin discapacidad | D19: 130 | E19: 142 | F19: 153 | G19: 190 | H19: 163
C20: Otras discapacidades | D20: 7 | E20: 15 | F20: 18 | G20: 26 | H20: 41

Sheet E6.10 (hidden)
B2: CUADRO 6.10 Alumnos con discapacidad, por tipo de seguimiento que reciben, según modalidad y nivel en el que cursan
B3: Modalidad | C3: Nivel | D3: Total | E3: Con apoyo a la inclusión del Sector Estatal | F3: Con apoyo a la inclusión del Sector Privado | G3: Sin apoyo a la inclusión | H3: Con CUD (*) | I3: Sin CUD
B4: Total Córdoba | D4: 21202 | E4: 5636 | F4: 11872 | G4: 3694 | H4: 16051 | I4: 5151
B5: Común | C5: Total Común | D5: 20690 | E5: 5512 | F5: 11792 | G5: 3386 | H5: 15751 | I5: 4939
C6: Inicial | D6: 2057 | E6: 396 | F6: 1223 | G6: 438 | H6: 1644 | I6: 413
C7: Primario | D7: 10070 | E7: 2660 | F7: 5906 | G7: 1504 | H7: 7865 | I7: 2205
C8: Secundario | D8: 8522 | E8: 2446 | F8: 4652 | G8: 1424 | H8: 6224 | I8: 2298
C9: Superior | D9: 41 | E9: 10 | F9: 11 | G9: 20 | H9: 18 | I9: 23
B10: Jóvenes y Adultos | C10: Total Jóvenes y Adultos | D10: 445 | E10: 90 | F10: 78 | G10: 277 | H10: 246 | I10: 199
C11: Primario | D11: 279 | E11: 44 | F11: 15 | G11: 220 | H11: 141 | I11: 138
C12: Secundario | D12: 166 | E12: 46 | F12: 63 | G12: 57 | H12: 105 | I12: 61
B13: Formación Profesional | D13: 67 | E13: 34 | F13: 2 | G13: 31 | H13: 54 | I13: 13
B15: (*) CUD: certificado único de discapacidad.
B16: Otra forma de analizar como el sistema educativo incorpora a los alumnos con necesidades educativas derivadas de la discapacidad consiste en analizar la información que brindan las escuelas de otras modalidades (común, de jóvenes y adultos, artística, entre otras).
B17: Este universo de alumnos no coincide necesariamente con aquellos atendidos por los establecimientos de la modalidad especial analizados en cuadros anteriores, dado que parte de ellos son asistidos por profesionales de mutuales, obras sociales, entidades de bien público y ONG, o particulares o bien no reciben asistencia alguna.

Sheet E 6.11 (hidden)
B2: CUADRO 6.11 Personal docente en actividad, por sector, según departamento
B3: Departamento | C3: Total | D3: Estatal | E3: Privado
B4: Total Córdoba (*) | C4: 2633 | D4: 1706 | E4: 927
B5: Calamuchita | C5: 52 | D5: 52
B6: Capital | C6: 917 | D6: 572 | E6: 345
B7: Colón | C7: 167 | D7: 110 | E7: 57
B8: Cruz del Eje | C8: 32 | D8: 32
B9: General Roca | C9: 46 | D9: 46
B10: General San Martín | C10: 111 | D10: 71 | E10: 40
B11: Ischilín | C11: 27 | D11: 27
B12: Juárez Celman | C12: 74 | D12: 55 | E12: 19
B13: Marcos Juárez | C13: 102 | D13: 60 | E13: 42
B14: Minas | C14: 7 | D14: 7
B15: Pte. Roque Sáenz Peña | C15: 51 | D15: 51
B16: Punilla | C16: 136 | D16: 83 | E16: 53
B17: Río Cuarto | C17: 223 | D17: 167 | E17: 56
B18: Río Primero | C18: 34 | D18: 34
B19: Río Seco | C19: 11 | D19: 11
B20: Río Segundo | C20: 93 | D20: 48 | E20: 45
B21: San Alberto | C21: 23 | D21: 23
B22: San Javier | C22: 33 | D22: 33
B23: San Justo | C23: 206 | D23: 112 | E23: 94
B24: Santa María | C24: 51 | D24: 25 | E24: 26
B25: Tercero Arriba | C25: 93 | D25: 30 | E25: 63
B26: Totoral | C26: 18 | D26: 18
B27: Tulumba | C27: 17 | D27: 17
B28: Unión | C28: 109 | D28: 22 | E28: 87
B30: (*) El personal docente en actividad hace referencia a todas las personas con designación docente que se desempeñan en los establecimientos educativos de la modalidad. Por esta razón, se cuentan tantas veces como ofertas en las que trabajan.

Sheet EC6.12 (hidden)
B2: CUADRO 6.12 Cargos docentes cubiertos frente a alumnos, por sector, según departamento
B3: Departamento | C3: Total | D3: Estatal | E3: Privado
B4: Total Córdoba | C4: 1087 | D4: 720 | E4: 367
B5: Calamuchita | C5: 14 | D5: 14
B6: Capital | C6: 397 | D6: 260 | E6: 137
B7: Colón | C7: 75 | D7: 47 | E7: 28
B8: Cruz del Eje | C8: 16 | D8: 16
B9: General Roca | C9: 20 | D9: 20
B10: General San Martín | C10: 48 | D10: 37 | E10: 11
B11: Ischilín | C11: 5 | D11: 5
B12: Juárez Celman | C12: 34 | D12: 25 | E12: 9
B13: Marcos Juárez | C13: 40 | D13: 22 | E13: 18
B14: Minas | C14: 2 | D14: 2
B15: Pte. Roque Sáenz Peña | C15: 17 | D15: 17
B16: Punilla | C16: 56 | D16: 31 | E16: 25
B17: Río Cuarto | C17: 86 | D17: 72 | E17: 14
B18: Río Primero | C18: 15 | D18: 15
B19: Río Seco | C19: 4 | D19: 4
B20: Río Segundo | C20: 38 | D20: 22 | E20: 16
B21: San Alberto | C21: 4 | D21: 4
B22: San Javier | C22: 20 | D22: 20
B23: San Justo | C23: 74 | D23: 42 | E23: 32
B24: Santa María | C24: 25 | D24: 12 | E24: 13
B25: Tercero Arriba | C25: 41 | D25: 12 | E25: 29
B26: Totoral | C26: 8 | D26: 8
B27: Tulumba | C27: 4 | D27: 4
B28: Unión | C28: 44 | D28: 9 | E28: 35
B30: Se incluyen, no sólo a los maestros de educación especial de los distintos niveles, sino también a los cargos de director con clase anexa, profesor o maestro de estimulación temprana y maestro de taller (de todas las ofertas).No se encuentran incluidos los cargos de maestro integrador, puesto que no atienden de manera exclusiva a la matrícula de las escuelas especiales como sí lo hacen los otros.

Sheet Cuadro 7.1. (hidden)
B2: CUADRO 7.1 Establecimientos, alumnos y personal docente en actividad, por sector y dependencia
C3: Total | D3: Estatal | F3: Privado
D4: Provincial | E4: Municipal | F4: Provincial
B5: Establecimientos (*) | C5: 3 | D5: 1 | E5: 1 | F5: 1
B6: Alumnos | C6: 165 | D6: 89 | E6: 62 | F6: 14
B7: Personal docente (**) | C7: 57 | D7: 38 | E7: 6 | F7: 13
B9: (*) Aquí se consignan establecimientos y no unidades educativas (puesto que ellas se vinculan a las formas de implementación del nivel). Esto es así porque en la Provincia, la modalidad de educación hospitalaria y domiciliaria se organiza en establecimientos (ver glosario) con una máxima autoridad pedagógica y con una única partida presupuestaria, en los que se imparte distintos niveles de enseñanza. De allí que en un mismo establecimiento coexisten varias unidades educativas y en la medida que los docentes son parte de la misma planta funcional, no es posible discriminar quién trabaja para cada una de ellas (salvo raras excepciones).
B10: (**) El personal docente en actividad hace referencia a todas las personas con designación docente que se desempeñan en los establecimientos de la modalidad; por esta razón se cuentan tantas veces como ofertas en las que trabajan.

Sheet Cuadro 7.2 (hidden)
B2: CUADRO 7.2 Alumnos por sexo, según modalidad y nivel
B3: Modalidad | C3: Nivel | D3: Total | E3: Mujeres | F3: Varones
B4: Total Córdoba | D4: 165 | E4: 94 | F4: 71
B5: Común | C5: Inicial | D5: 30 | E5: 15 | F5: 15
C6: Primario | D6: 70 | E6: 34 | F6: 36
C7: Secundario | D7: 57 | E7: 41 | F7: 16
B8: Especial | C8: Primario | D8: 4 | E8: 2 | F8: 2
C9: Secundario | D9: 4 | E9: 2 | F9: 2
B11: A la fecha de realización del Relevamiento Anual las escuelas hospitalarias contaban con alumnos matriculados en la modalidad común y adultos.

Sheet Cuadro7.3 (hidden)
B2: CUADRO 7.3 Alumnos por tipo de atención, según modalidad y nivel
B3: Modalidad | C3: Nivel | D3: Total | E3: Hospitalaria | F3: Domiciliaria
B4: Total Córdoba | D4: 165 | E4: 70 | F4: 95
B5: Común | C5: Inicial | D5: 30 | E5: 18 | F5: 12
C6: Primario | D6: 70 | E6: 33 | F6: 37
C7: Secundario | D7: 57 | E7: 19 | F7: 38
B8: Especial | C8: Primario | D8: 4 | F8: 4
C9: Secundario | D9: 4 | F9: 4
B11: A la fecha de realización del Relevamiento Anual las escuelas hospitalarias contaban con alumnos matriculados en la modalidad común y adultos.

Sheet C.8.1 Datos grales (hidden)
B2: CUADRO 8.1 Unidades educativas, alumnos y personal docente en actividad, por sector, según ámbito
C3: Ámbito | D3: Total | E3: Estatal | F3: Privado
B4: Unidades educativas | C4: Total | D4: 324 | E4: 296 | F4: 28
C5: Urbano | D5: 301 | E5: 273 | F5: 28
C6: Rural | D6: 23 | E6: 23
B7: Alumnos | C7: Total | D7: 48954 | E7: 43661 | F7: 5293
C8: Urbano | D8: 44198 | E8: 38905 | F8: 5293
C9: Rural | D9: 4756 | E9: 4756
B10: Personal docente (*) | C10: Total | D10: 7769 | E10: 7269 | F10: 500
C11: Urbano | D11: 6723 | E11: 6223
C12: Rural | D12: 1046 | E12: 1046
B14: (*) El personal docente en actividad hace referencia a todas las personas con designación docente que se desempeñan en las unidades educativas de la modalidad. Por esta razón, se cuentan tantas veces como ofertas en las que trabajan.

Sheet C.8.2 contexto de priv lib (hidden)
B2: CUADRO 8.2 Alumnos matriculados en contexto de privación de la libertad, por sexo, según nivel al que asisten
B3: Nivel | C3: Total | D3: Mujeres | E3: Varones
B4: Total Córdoba | C4: 2251 | D4: 136 | E4: 2115
B5: Primario | C5: 742 | D5: 44 | E5: 698
B6: Secundario | C6: 1509 | D6: 92 | E6: 1417

Sheet C.8.3. (hidden)
B2: CUADRO 8.3 Unidades educativas, alumnos y personal docente en actividad, por sector y dependencia, según ámbito
C3: Ámbito | D3: Total | E3: Estatal | G3: Privado
E4: Provincial | F4: Municipal | G4: Provincial
B5: Unidades educativas | C5: Total | D5: 188 | E5: 167 | F5: 20 | G5: 1
C6: Urbano | D6: 165 | E6: 144 | F6: 20 | G6: 1
C7: Rural | D7: 23 | E7: 23
B8: Alumnos | C8: Total | D8: 5155 | E8: 4528 | F8: 603 | G8: 24
C9: Urbano | D9: 4539 | E9: 3912 | F9: 603 | G9: 24
C10: Rural | D10: 616 | E10: 616
B11: Personal docente (*) | C11: Total | D11: 478 | E11: 427 | F11: 49 | G11: 2
C12: Urbano | D12: 420 | E12: 369 | F12: 49 | G12: 2
C13: Rural | D13: 58 | E13: 58
B15: (*) El personal docente en actividad hace referencia a todas las personas con designación docente que se desempeñan en las unidades educativas de la modalidad. Por esta razón, se cuentan tantas veces como ofertas en las que trabajan.
B16: Las unidades educativas de dependencia municipal pertenecen a la Municipalidad de Córdoba.
B17: El sector estatal brinda la oferta de educación secundaria de la modalidad de Jóvenes y Adultos a través de anexos en el ámbito rural en tanto que el sector privado no tiene ni anexos ni oferta.

Sheet C. 8.4 (hidden)
B2: CUADRO 8.4 Bases, anexos, alumnos y personal docente en actividad, por ámbito, según departamento
B3: Departamento | C3: Total | G3: Urbano (**) | K3: Rural
C4: Bases | D4: Anexos | E4: Alumnos | F4: Personal docente (*) | G4: Bases | H4: Anexos | I4: Alumnos | J4: Personal docente | K4: Bases | L4: Anexos | M4: Alumnos | N4: Personal docente
B5: Total Córdoba | C5: 188 | D5: 80 | E5: 5155 | F5: 478 | G5: 165 | H5: 69 | I5: 4539 | J5: 420 | K5: 23 | L5: 11 | M5: 616 | N5: 58
B6: Calamuchita | C6: 7 | D6: 1 | E6: 58 | F6: 8 | G6: 5 | I6: 42 | J6: 5 | K6: 2 | L6: 1 | M6: 16 | N6: 3
B7: Capital | C7: 60 | D7: 36 | E7: 2132 | F7: 212 | G7: 60 | H7: 36 | I7: 2132 | J7: 212
B8: Colón | C8: 3 | D8: 10 | E8: 195 | F8: 19 | G8: 3 | H8: 9 | I8: 186 | J8: 18 | L8: 1 | M8: 9 | N8: 1
B9: Cruz del Eje | C9: 3 | E9: 177 | F9: 7 | G9: 3 | I9: 177 | J9: 7
B10: General Roca | C10: 6 | E10: 68 | F10: 7 | G10: 4 | I10: 53 | J10: 5 | K10: 2 | M10: 15 | N10: 2
B11: General San Martín | C11: 5 | E11: 139 | F11: 9 | G11: 5 | I11: 139 | J11: 9
B12: Ischilín | C12: 2 | E12: 43 | F12: 3 | G12: 2 | I12: 43 | J12: 3
B13: Juárez Celman | C13: 6 | D13: 1 | E13: 81 | F13: 7 | G13: 5 | I13: 62 | J13: 5 | K13: 1 | L13: 1 | M13: 19 | N13: 2
B14: Marcos Juárez | C14: 9 | E14: 121 | F14: 11 | G14: 8 | I14: 114 | J14: 10 | K14: 1 | M14: 7 | N14: 1
B15: Minas | C15: 1 | E15: 4 | F15: 1 | K15: 1 | M15: 4 | N15: 1
B16: Pocho | C16: 1 | E16: 4 | F16: 1 | K16: 1 | M16: 4 | N16: 1
B17: Pte. Roque Sáenz Peña | C17: 4 | E17: 63 | F17: 5 | G17: 3 | I17: 53 | J17: 4 | K17: 1 | M17: 10 | N17: 1
B18: Punilla | C18: 5 | D18: 7 | E18: 128 | F18: 21 | G18: 4 | H18: 6 | I18: 110 | J18: 18 | K18: 1 | L18: 1 | M18: 18 | N18: 3
B19: Río Cuarto | C19: 13 | D19: 5 | E19: 331 | F19: 22 | G19: 13 | H19: 5 | I19: 331 | J19: 22 | M19: 0
B20: Río Primero | C20: 6 | D20: 7 | E20: 145 | F20: 15 | G20: 5 | H20: 3 | I20: 106 | J20: 10 | K20: 1 | L20: 4 | M20: 39 | N20: 5
B21: Río Seco | C21: 1 | E21: 7 | F21: 1 | G21: 1 | I21: 7 | J21: 1
B22: Río Segundo | C22: 5 | E22: 63 | F22: 6 | G22: 5 | I22: 63 | J22: 6
B23: San Alberto | C23: 4 | E23: 36 | F23: 4 | G23: 2 | I23: 21 | J23: 2 | K23: 2 | M23: 15 | N23: 2
B24: San Javier | C24: 3 | E24: 70 | F24: 6 | G24: 3 | I24: 70 | J24: 6
B25: San Justo | C25: 18 | D25: 5 | E25: 331 | F25: 29 | G25: 14 | H25: 5 | I25: 289 | J25: 24 | K25: 4 | M25: 42 | N25: 5
B26: Santa María | C26: 4 | D26: 5 | E26: 597 | F26: 47 | G26: 4 | H26: 2 | I26: 247 | J26: 22 | K26: 0 | L26: 3 | M26: 350 | N26: 25
B27: Sobremonte | C27: 1 | E27: 8 | F27: 1 | K27: 1 | M27: 8 | N27: 1
B28: Tercero Arriba | C28: 5 | D28: 3 | E28: 106 | F28: 11 | G28: 5 | H28: 3 | I28: 106 | J28: 11
B29: Totoral
B30: Tulumba | C30: 3 | E30: 45 | F30: 3 | G30: 1 | I30: 11 | J30: 1 | K30: 2 | M30: 34 | N30: 2
B31: Unión | C31: 13 | E31: 203 | F31: 22 | G31: 10 | I31: 177 | J31: 19 | K31: 3 | M31: 26 | N31: 3
B33: (*) El personal docente en actividad hace referencia a todas las personas con designación docente que se desempeñan en las unidades educativas de la modalidad. Por esta razón, se cuentan tantas veces como ofertas en las que trabajan.
B34: (**) En el ámbito urbano están incluidas las dos únicas bases de la modalidad (primaria de adultos) con las que cuenta el sector privado, que están localizadas en el departamento Capital, así como sus alumnos y docentes.
B35: En el departamento Capital están incluidas además de las provinciales, las unidades educativas (bases con sus anexos) municipales, al igual que sus alumnos y personal docente.

Sheet C. 8.5 (hidden)
B2: CUADRO 8.5 Alumnos por ámbito y sexo, según departamento
B3: Departamento | C3: Total general | F3: Urbano (*) | I3: Rural
C4: Total | D4: Mujeres | E4: Varones | F4: Total | G4: Mujeres | H4: Varones | I4: Total | J4: Mujeres | K4: Varones
B5: Total Córdoba | C5: 5155 | D5: 2988 | E5: 2167 | F5: 4539 | G5: 2761 | H5: 1778 | I5: 616 | J5: 227 | K5: 389
B6: Calamuchita | C6: 58 | D6: 41 | E6: 17 | F6: 42 | G6: 32 | H6: 10 | I6: 16 | J6: 9 | K6: 7
B7: Capital | C7: 2132 | D7: 1527 | E7: 605 | F7: 2132 | G7: 1527 | H7: 605
B8: Colón | C8: 195 | D8: 126 | E8: 69 | F8: 186 | G8: 118 | H8: 68 | I8: 9 | J8: 8 | K8: 1
B9: Cruz del Eje | C9: 177 | D9: 24 | E9: 153 | F9: 177 | G9: 24 | H9: 153
B10: General Roca | C10: 68 | D10: 42 | E10: 26 | F10: 53 | G10: 34 | H10: 19 | I10: 15 | J10: 8 | K10: 7
B11: General San Martín | C11: 139 | D11: 56 | E11: 83 | F11: 139 | G11: 56 | H11: 83
B12: Ischilín | C12: 43 | D12: 26 | E12: 17 | F12: 43 | G12: 26 | H12: 17
B13: Juárez Celman | C13: 81 | D13: 54 | E13: 27 | F13: 62 | G13: 43 | H13: 19 | I13: 19 | J13: 11 | K13: 8
B14: Marcos Juárez | C14: 121 | D14: 65 | E14: 56 | F14: 114 | G14: 60 | H14: 54 | I14: 7 | J14: 5 | K14: 2
B15: Minas | C15: 4 | D15: 4 | I15: 4 | J15: 4
B16: Pocho | C16: 4 | D16: 3 | E16: 1 | I16: 4 | J16: 3 | K16: 1
B17: Pte. Roque Sáenz Peña | C17: 63 | D17: 49 | E17: 14 | F17: 53 | G17: 40 | H17: 13 | I17: 10 | J17: 9 | K17: 1
B18: Punilla | C18: 128 | D18: 91 | E18: 37 | F18: 110 | G18: 75 | H18: 35 | I18: 18 | J18: 16 | K18: 2
B19: Río Cuarto | C19: 331 | D19: 160 | E19: 171 | F19: 331 | G19: 160 | H19: 171
B20: Río Primero | C20: 145 | D20: 101 | E20: 44 | F20: 106 | G20: 74 | H20: 32 | I20: 39 | J20: 27 | K20: 12
B21: Río Seco | C21: 7 | D21: 7 | F21: 7 | G21: 7
B22: Río Segundo | C22: 63 | D22: 37 | E22: 26 | F22: 63 | G22: 37 | H22: 26
B23: San Alberto | C23: 36 | D23: 22 | E23: 14 | F23: 21 | G23: 12 | H23: 9 | I23: 15 | J23: 10 | K23: 5
B24: San Javier | C24: 70 | D24: 18 | E24: 52 | F24: 70 | G24: 18 | H24: 52
B25: San Justo | C25: 331 | D25: 191 | E25: 140 | F25: 289 | G25: 157 | H25: 132 | I25: 42 | J25: 34 | K25: 8
B26: Santa María | C26: 597 | D26: 127 | E26: 470 | F26: 247 | G26: 80 | H26: 167 | I26: 350 | J26: 47 | K26: 303
B27: Sobremonte | C27: 8 | D27: 4 | E27: 4 | I27: 8 | J27: 4 | K27: 4
B28: Tercero Arriba | C28: 106 | D28: 76 | E28: 30 | F28: 106 | G28: 76 | H28: 30
B29: Totoral
B30: Tulumba | C30: 45 | D30: 20 | E30: 25 | F30: 11 | G30: 1 | H30: 10 | I30: 34 | J30: 19 | K30: 15
B31: Unión | C31: 203 | D31: 117 | E31: 86 | F31: 177 | G31: 104 | H31: 73 | I31: 26 | J31: 13 | K31: 13
B33: (*) En el ámbito urbano está incluida una base de la modalidad (primaria de adultos) con las que cuenta el sector privado, que está localizada en el departamento Capital, así como sus alumnos y docentes.
B34: En el departamento Capital están incluidas, además de las provinciales, las unidades educativas (bases con sus anexos) municipales, al igual que sus alumnos y personal docente.

Sheet C.8.6 (hidden)
B2: CUADRO 8.6 Secciones por ámbito y tipo, según departamento
B3: Departamento | C3: Total | D3: Urbano (*) | F3: Rural
D4: Independiente | E4: Múltiple | F4: Independiente | G4: Múltiple
B5: Total Córdoba | C5: 409 | D5: 208 | E5: 146 | F5: 29 | G5: 26
B6: Calamuchita | C6: 8 | D6: 1 | E6: 4 | F6: 1 | G6: 2
B7: Capital | C7: 166 | D7: 112 | E7: 54
B8: Colón | C8: 20 | D8: 14 | E8: 5 | G8: 1
B9: Cruz del Eje | C9: 6 | D9: 4 | E9: 2
B10: General Roca | C10: 7 | D10: 2 | E10: 3 | G10: 2
B11: General San Martín | C11: 8 | D11: 6 | E11: 2
B12: Ischilín | C12: 3 | D12: 2 | E12: 1
B13: Juárez Celman | C13: 7 | E13: 5 | G13: 2
B14: Marcos Juárez | C14: 14 | D14: 7 | E14: 5 | F14: 2
B15: Minas | C15: 1 | G15: 1
B16: Pocho | C16: 2 | F16: 2
B17: Pte. Roque Sáenz Peña | C17: 6 | D17: 4 | E17: 1 | G17: 1
B18: Punilla | C18: 14 | D18: 4 | E18: 8 | F18: 1 | G18: 1
B19: Río Cuarto | C19: 23 | D19: 9 | E19: 14
B20: Río Primero | C20: 14 | D20: 1 | E20: 7 | F20: 2 | G20: 4
B21: Río Seco | C21: 2 | D21: 2
B22: Río Segundo | C22: 7 | D22: 3 | E22: 4
B23: San Alberto | C23: 4 | D23: 1 | E23: 1 | G23: 2
B24: San Javier | C24: 5 | D24: 4 | E24: 1
B25: San Justo | C25: 28 | D25: 11 | E25: 13 | F25: 1 | G25: 3
B26: Santa María | C26: 34 | D26: 10 | E26: 3 | F26: 20 | G26: 1
B27: Sobremonte | C27: 1 | G27: 1
B28: Tercero Arriba | C28: 8 | D28: 2 | E28: 6
B29: Totoral
B30: Tulumba | C30: 3 | D30: 1 | G30: 2
B31: Unión | C31: 18 | D31: 8 | E31: 7 | G31: 3
B33: (*) En el ámbito urbano están incluidas las dos únicas bases de la modalidad (primaria de adultos) con las que cuenta el sector privado, que están localizadas en el departamento Capital, así como sus alumnos y docentes.
B34: En el departamento Capital están incluidas, además de las provinciales, las unidades educativas (bases con sus anexos) municipales, al igual que sus alumnos, secciones y personal docente.

Sheet C.8.7 (hidden)
B2: CUADRO 8.7 Personal docente en actividad, por ámbito, según departamento
B3: Departamento | C3: Total (*) | D3: Urbano (**) | E3: Rural
B4: Total Córdoba | C4: 478 | D4: 420 | E4: 58
B5: Calamuchita | C5: 8 | D5: 5 | E5: 3
B6: Capital | C6: 212 | D6: 212
B7: Colón | C7: 19 | D7: 18 | E7: 1
B8: Cruz del Eje | C8: 7 | D8: 7
B9: General Roca | C9: 7 | D9: 5 | E9: 2
B10: General San Martín | C10: 9 | D10: 9
B11: Ischilín | C11: 3 | D11: 3
B12: Juárez Celman | C12: 7 | D12: 5 | E12: 2
B13: Marcos Juárez | C13: 11 | D13: 10 | E13: 1
B14: Minas | C14: 1 | E14: 1
B15: Pocho | C15: 1 | E15: 1
B16: Pte. Roque Sáenz Peña | C16: 5 | D16: 4 | E16: 1
B17: Punilla | C17: 21 | D17: 18 | E17: 3
B18: Río Cuarto | C18: 22 | D18: 22
B19: Río Primero | C19: 15 | D19: 10 | E19: 5
B20: Río Seco | C20: 1 | D20: 1
B21: Río Segundo | C21: 6 | D21: 6
B22: San Alberto | C22: 4 | D22: 2 | E22: 2
B23: San Javier | C23: 6 | D23: 6
B24: San Justo | C24: 29 | D24: 24 | E24: 5
B25: Santa María | C25: 47 | D25: 22 | E25: 25
B26: Sobremonte | C26: 1 | E26: 1
B27: Tercero Arriba | C27: 11 | D27: 11
B28: Totoral | C28: 0
B29: Tulumba | C29: 3 | D29: 1 | E29: 2
B30: Unión | C30: 22 | D30: 19 | E30: 3
B32: (*) El personal docente en actividad hace referencia a todas las personas con designación docente que se desempeñan en las unidades educativas de la modalidad. Por esta razón, se cuentan tantas veces como ofertas en las que trabajan.
B33: (**) En el ámbito urbano están incluidas las dos únicas bases de la modalidad (primaria de adultos) con las que cuenta el sector privado, que están localizadas en los departamentos Capital y Río Cuarto, así como sus alumnos y docentes.
B34: En el departamento Capital están incluidas, además de las provinciales, las unidades educativas (bases con sus anexos) municipales, al igual que sus alumnos y personal docente.

Sheet C. 8.8 (hidden)
B2: CUADRO 8.8 Unidades educativas, alumnos y personal docente en actividad, por sector, según ámbito
C3: Ámbito | D3: Total | E3: Estatal | F3: Privado
B4: Unidades educativas | C4: Total | D4: 136 | E4: 109 | F4: 27
C5: Urbano (*) | D5: 136 | E5: 109 | F5: 27
B6: Alumnos | C6: Total | D6: 43799 | E6: 38530 | F6: 5269
C7: Urbano | D7: 39659 | E7: 34390 | F7: 5269
C8: Rural | D8: 4140 | E8: 4140
B9: Personal docente (*) | C9: Total | D9: 7291 | E9: 6793 | F9: 498
C10: Urbano | D10: 6303 | E10: 5805 | F10: 498
C11: Rural | D11: 988 | E11: 988
B13: (*) El concepto de unidad educativa hace referencia a la implementación de un nivel educativo, por lo que una unidad educativa puede constar de una base y anexos. Su registro es en el ámbito donde se localiza la base (donde se encuentra la máxima autoridad pedagógica de esa unidad). Por esta razón es posible encontrar unidades en el ámbito urbano exclusivamente en tanto lo que los alumnos son registrados en el ámbito en el que cursan (en un anexo).
B14: (**) El personal docente en actividad hace referencia a todas las personas con designación docente que se desempeñan en las unidades educativas de la modalidad. Por esta razón, se cuentan tantas veces como ofertas en las que trabajan.

Sheet C.8.9 (hidden)
B2: CUADRO 8.9 Unidades educativas, alumnos y personal docente en actividad, por sector, según departamento
B3: Departamento | C3: Total | F3: Estatal | I3: Privado
C4: Unidades educativas(*) | D4: Alumnos | E4: Personal docente (**) | F4: Unidades educativas | G4: Alumnos | H4: Personal docente | I4: Unidades educativas | J4: Alumnos | K4: Personal docente
B5: Total Córdoba | C5: 136 | D5: 43799 | E5: 7291 | F5: 109 | G5: 38530 | H5: 6793 | I5: 27 | J5: 5269 | K5: 498
B6: Calamuchita | C6: 2 | D6: 688 | E6: 168 | F6: 2 | G6: 688 | H6: 168
B7: Capital | C7: 51 | D7: 17389 | E7: 2666 | F7: 34 | G7: 12830 | H7: 2332 | I7: 17 | J7: 4559 | K7: 334
B8: Colón | C8: 7 | D8: 2857 | E8: 356 | F8: 7 | G8: 2857 | H8: 356
B9: Cruz del Eje | C9: 3 | D9: 1248 | E9: 178 | F9: 3 | G9: 1248 | H9: 178
B10: General Roca | C10: 3 | D10: 483 | E10: 87 | F10: 3 | G10: 483 | H10: 87
B11: General San Martín | C11: 3 | D11: 1506 | E11: 260 | F11: 3 | G11: 1506 | H11: 260
B12: Ischilín | C12: 1 | D12: 469 | E12: 88 | F12: 1 | G12: 469 | H12: 88
B13: Juárez Celman | C13: 6 | D13: 874 | E13: 160 | F13: 4 | G13: 748 | H13: 128 | I13: 2 | J13: 126 | K13: 32
B14: Marcos Juárez | C14: 8 | D14: 1222 | E14: 246 | F14: 6 | G14: 1046 | H14: 210 | I14: 2 | J14: 176 | K14: 36
B15: Minas | D15: 134 | E15: 39 | G15: 134 | H15: 39
B16: Pocho | D16: 75 | E16: 24 | G16: 75 | H16: 24
B17: Pte. Roque Sáenz Peña | C17: 1 | D17: 533 | E17: 105 | F17: 1 | G17: 533 | H17: 105
B18: Punilla | C18: 5 | D18: 1778 | E18: 341 | F18: 4 | G18: 1701 | H18: 330 | I18: 1 | J18: 77 | K18: 11
B19: Río Cuarto | C19: 12 | D19: 2419 | E19: 558 | F19: 9 | G19: 2211 | H19: 504 | I19: 3 | J19: 208 | K19: 54
B20: Río Primero | C20: 2 | D20: 861 | E20: 127 | F20: 2 | G20: 861 | H20: 127
B21: Río Seco | C21: 1 | D21: 276 | E21: 63 | F21: 1 | G21: 276 | H21: 63
B22: Río Segundo | C22: 4 | D22: 1610 | E22: 206 | F22: 4 | G22: 1610 | H22: 206
B23: San Alberto | C23: 1 | D23: 543 | E23: 97 | F23: 1 | G23: 543 | H23: 97
B24: San Javier | C24: 1 | D24: 828 | E24: 130 | F24: 1 | G24: 828 | H24: 130
B25: San Justo | C25: 10 | D25: 2705 | E25: 453 | F25: 9 | G25: 2682 | H25: 434 | I25: 1 | J25: 23 | K25: 19
B26: Santa María | C26: 4 | D26: 2117 | E26: 351 | F26: 4 | G26: 2117 | H26: 351
B27: Sobremonte | D27: 83 | E27: 14 | G27: 83 | H27: 14
B28: Tercero Arriba | C28: 4 | D28: 1135 | E28: 186 | F28: 4 | G28: 1135 | H28: 186
B29: Totoral | C29: 1 | D29: 398 | E29: 83 | F29: 1 | G29: 398 | H29: 83
B30: Tulumba | C30: 1 | D30: 223 | E30: 55 | F30: 1 | G30: 223 | H30: 55
B31: Unión | C31: 5 | D31: 1345 | E31: 250 | F31: 4 | G31: 1245 | H31: 238 | I31: 1 | J31: 100 | K31: 12
B33: (*) El concepto de unidad educativa hace referencia a la implementación de un nivel educativo, por lo que una unidad educativa puede constar de una base y anexos. Su registro es en el ámbito donde se localiza la base (donde se encuentra la máxima autoridad pedagógica de esa unidad). Por esta razón es posible encontrar unidades en el ámbito urbano exclusivamente en tanto lo que los alumnos son registrados en el ámbito en el que cursan (en un anexo).
B34: (**) El personal docente en actividad hace referencia a todas las personas con designación docente que se desempeñan en las unidades educativas de la modalidad. Por esta razón, se cuentan tantas veces como ofertas en las que trabajan.

Sheet C. 8.10 (hidden)
B2: CUADRO 8.10 Bases y anexos, por sector y ámbito, según departamento
B3: Departamento | C3: Total | E3: Estatal | H3: Privado
E4: Urbano | G4: Rural | H4: Urbano
C5: Bases | D5: Anexos | E5: Bases | F5: Anexos | G5: Anexos | H5: Bases
B6: Total Córdoba | C6: 136 | D6: 316 | E6: 109 | F6: 211 | G6: 105 | H6: 27
B7: Calamuchita | C7: 2 | D7: 13 | E7: 2 | F7: 5 | G7: 8
B8: Capital | C8: 51 | D8: 81 | E8: 34 | F8: 81 | H8: 17
B9: Colón | C9: 7 | D9: 12 | E9: 7 | F9: 9 | G9: 3
B10: Cruz del Eje | C10: 3 | D10: 8 | E10: 3 | F10: 4 | G10: 4
B11: General Roca | C11: 3 | D11: 5 | E11: 3 | F11: 3 | G11: 2
B12: General San Martín | C12: 3 | D12: 14 | E12: 3 | F12: 11 | G12: 3
B13: Ischilín | C13: 1 | D13: 4 | E13: 1 | F13: 3 | G13: 1
B14: Juárez Celman | C14: 6 | D14: 7 | E14: 4 | F14: 1 | G14: 6 | H14: 2
B15: Marcos Juárez | C15: 8 | D15: 10 | E15: 6 | F15: 9 | G15: 1 | H15: 2
B16: Minas | D16: 3 | G16: 3
B17: Pocho | D17: 3 | G17: 3
B18: Pte. Roque Sáenz Peña | C18: 1 | D18: 6 | E18: 1 | F18: 4 | G18: 2
B19: Punilla | C19: 5 | D19: 16 | E19: 4 | F19: 11 | G19: 5 | H19: 1
B20: Río Cuarto | C20: 12 | D20: 21 | E20: 9 | F20: 19 | G20: 2 | H20: 3
B21: Río Primero | C21: 2 | D21: 8 | E21: 2 | F21: 6 | G21: 2
B22: Río Seco | C22: 1 | D22: 5 | E22: 1 | F22: 1 | G22: 4
B23: Río Segundo | C23: 4 | D23: 11 | E23: 4 | F23: 6 | G23: 5
B24: San Alberto | C24: 1 | D24: 6 | E24: 1 | F24: 3 | G24: 3
B25: San Javier | C25: 1 | D25: 8 | E25: 1 | F25: 5 | G25: 3
B26: San Justo | C26: 10 | D26: 26 | E26: 9 | F26: 9 | G26: 17 | H26: 1
B27: Santa María | C27: 4 | D27: 14 | E27: 4 | F27: 5 | G27: 9
B28: Sobremonte | D28: 1 | F28: 1
B29: Tercero Arriba | C29: 4 | D29: 8 | E29: 4 | F29: 6 | G29: 2
B30: Totoral | C30: 1 | D30: 5 | E30: 1 | F30: 1 | G30: 4
B31: Tulumba | C31: 1 | D31: 5 | E31: 1 | G31: 5
B32: Unión | C32: 5 | D32: 16 | E32: 4 | F32: 8 | G32: 8 | H32: 1
B35: El sector estatal brinda la oferta de educación secundaria de la modalidad de Jóvenes y Adultos a través de anexos en el ámbito rural en tanto que el sector privado no tiene ni anexos ni oferta.

Sheet C. 8.11 (hidden)
B2: CUADRO 8.11 Alumnos por sector, ámbito y sexo, según departamento
B3: Departamento | C3: Total general | F3: Estatal | L3: Privado
F4: Urbano | I4: Rural | L4: Urbano
C5: Total | D5: Mujeres | E5: Varones | F5: Total | G5: Mujeres | H5: Varones | I5: Total | J5: Mujeres | K5: Varones | L5: Total | M5: Mujeres | N5: Varones
B6: Total Córdoba | C6: 43799 | D6: 25224 | E6: 18575 | F6: 34390 | G6: 20360 | H6: 14030 | I6: 4140 | J6: 2324 | K6: 1816 | L6: 5269 | M6: 2540 | N6: 2729
B7: Calamuchita | C7: 688 | D7: 431 | E7: 257 | F7: 476 | G7: 302 | H7: 174 | I7: 212 | J7: 129 | K7: 83
B8: Capital | C8: 17389 | D8: 9911 | E8: 7478 | F8: 12830 | G8: 7753 | H8: 5077 | L8: 4559 | M8: 2158 | N8: 2401
B9: Colón | C9: 2857 | D9: 1750 | E9: 1107 | F9: 2675 | G9: 1624 | H9: 1051 | I9: 182 | J9: 126 | K9: 56
B10: Cruz del Eje | C10: 1248 | D10: 600 | E10: 648 | F10: 1121 | G10: 524 | H10: 597 | I10: 127 | J10: 76 | K10: 51
B11: General Roca | C11: 483 | D11: 353 | E11: 130 | F11: 426 | G11: 312 | H11: 114 | I11: 57 | J11: 41 | K11: 16
B12: General San Martín | C12: 1506 | D12: 816 | E12: 690 | F12: 1438 | G12: 773 | H12: 665 | I12: 68 | J12: 43 | K12: 25
B13: Ischilín | C13: 469 | D13: 265 | E13: 204 | F13: 434 | G13: 235 | H13: 199 | I13: 35 | J13: 30 | K13: 5
B14: Juárez Celman | C14: 874 | D14: 587 | E14: 287 | F14: 523 | G14: 362 | H14: 161 | I14: 225 | J14: 154 | K14: 71 | L14: 126 | M14: 71 | N14: 55
B15: Marcos Juárez | C15: 1222 | D15: 735 | E15: 487 | F15: 977 | G15: 576 | H15: 401 | I15: 69 | J15: 54 | K15: 15 | L15: 176 | M15: 105 | N15: 71
B16: Minas | C16: 134 | D16: 72 | E16: 62 | I16: 134 | J16: 72 | K16: 62
B17: Pocho | C17: 75 | D17: 43 | E17: 32 | I17: 75 | J17: 43 | K17: 32
B18: Pte. Roque Sáenz Peña | C18: 533 | D18: 345 | E18: 188 | F18: 458 | G18: 298 | H18: 160 | I18: 75 | J18: 47 | K18: 28
B19: Punilla | C19: 1778 | D19: 1103 | E19: 675 | F19: 1471 | G19: 925 | H19: 546 | I19: 230 | J19: 141 | K19: 89 | L19: 77 | M19: 37 | N19: 40
B20: Río Cuarto | C20: 2419 | D20: 1517 | E20: 902 | F20: 2143 | G20: 1363 | H20: 780 | I20: 68 | J20: 56 | K20: 12 | L20: 208 | M20: 98 | N20: 110
B21: Río Primero | C21: 861 | D21: 530 | E21: 331 | F21: 756 | G21: 464 | H21: 292 | I21: 105 | J21: 66 | K21: 39
B22: Río Seco | C22: 276 | D22: 165 | E22: 111 | F22: 147 | G22: 84 | H22: 63 | I22: 129 | J22: 81 | K22: 48
B23: Río Segundo | C23: 1610 | D23: 832 | E23: 778 | F23: 1390 | G23: 700 | H23: 690 | I23: 220 | J23: 132 | K23: 88
B24: San Alberto | C24: 543 | D24: 298 | E24: 245 | F24: 435 | G24: 232 | H24: 203 | I24: 108 | J24: 66 | K24: 42
B25: San Javier | C25: 828 | D25: 403 | E25: 425 | F25: 692 | G25: 327 | H25: 365 | I25: 136 | J25: 76 | K25: 60
B26: San Justo | C26: 2705 | D26: 1592 | E26: 1113 | F26: 1997 | G26: 1256 | H26: 741 | I26: 685 | J26: 324 | K26: 361 | L26: 23 | M26: 12 | N26: 11
B27: Santa María | C27: 2117 | D27: 983 | E27: 1134 | F27: 1571 | G27: 817 | H27: 754 | I27: 546 | J27: 166 | K27: 380
B28: Sobremonte | C28: 83 | D28: 44 | E28: 39 | F28: 83 | G28: 44 | H28: 39
B29: Tercero Arriba | C29: 1135 | D29: 685 | E29: 450 | F29: 1087 | G29: 653 | H29: 434 | I29: 48 | J29: 32 | K29: 16
B30: Totoral | C30: 398 | D30: 224 | E30: 174 | F30: 202 | G30: 113 | H30: 89 | I30: 196 | J30: 111 | K30: 85
B31: Tulumba | C31: 223 | D31: 116 | E31: 107 | F31: 100 | G31: 47 | H31: 53 | I31: 123 | J31: 69 | K31: 54
B32: Unión | C32: 1345 | D32: 824 | E32: 521 | F32: 958 | G32: 576 | H32: 382 | I32: 287 | J32: 189 | K32: 98 | L32: 100 | M32: 59 | N32: 41
B34: El sector estatal brinda la oferta de educación secundaria de la modalidad de Jóvenes y Adultos a través de anexos en el ámbito rural en tanto que el sector privado no tiene ni anexos ni oferta.

Sheet C 8.12 (hidden)
B2: Cuadro 8.12 Alumnos por ciclo y sector, según ámbito
C3: Ciclo básico | E3: Ciclo orientado
C4: Estatal | D4: Privado | E4: Estatal | F4: Privado
B5: Total Córdoba | C5: 15861 | D5: 1545 | E5: 22669 | F5: 3724
B6: Urbano | C6: 13995 | D6: 1545 | E6: 20395 | F6: 3724
B7: Rural | C7: 1866 | E7: 2274
B9: El sector estatal brinda la oferta de educación secundaria de la modalidad de Jóvenes y Adultos a través de anexos en el ámbito rural en tanto que el sector privado no tiene ni anexos ni oferta.
B10: Se han contado los alumnos a traves del año de estudio no por ciclo.

Sheet C. 8.13 y 8.14 (hidden)
B2: Cuadro 8.13 Alumnos por sector, según modalidad de dictado y ámbito
B3: Modalidad de dictado | C3: Ámbito | D3: Total | E3: Estatal | F3: Privado
B4: Presencial | C4: Total | D4: 29158 | E4: 27413 | F4: 1745
C5: Urbano | D5: 26894 | E5: 25149 | F5: 1745
C6: Rural | D6: 2264 | E6: 2264
B7: Semipresencial (*) | C7: Total | D7: 14641 | E7: 11117 | F7: 3524
C8: Urbano | D8: 12765 | E8: 9241 | F8: 3524
C9: Rural | D9: 1876 | E9: 1876
B11: (*) Se han incluido en esta categoría a los alumnos que han sido declarados en las secciones con “turno” a distancia, en vez de la variable “modalidad de dictado”.
B12: El sector estatal brinda la oferta de educación secundaria de la modalidad de Jóvenes y Adultos a través de anexos en el ámbito rural en tanto que el sector privado no tiene ni anexos ni oferta.
B14: Cuadro 8.14 Alumnos por sexo, según modalidad de dictado y ámbito
B15: Modalidad de dictado | C15: Ámbito | D15: Total | E15: Mujeres | F15: Varones
B16: Presencial | C16: Total | D16: 29158 | E16: 16483 | F16: 12675
C17: Urbano | D17: 26894 | E17: 15365 | F17: 11529
C18: Rural | D18: 2264 | E18: 1118 | F18: 1146
B19: Semipresencial (*) | C19: Total | D19: 14641 | E19: 8741 | F19: 5900
C20: Urbano | D20: 12765 | E20: 7535 | F20: 5230
C21: Rural | D21: 1876 | E21: 1206 | F21: 670
B23: (*) Se han incluido en esta categoría a los alumnos que han sido declarados en las secciones con “turno” a distancia, en vez de la variable “modalidad de dictado”.

Sheet C. 8.15 (hidden)
B2: ="CUADRO 8.15 Alumnos egresados del ciclo lectivo "&añoAnuario-1&", por sexo, según modalidad de dictado" -> CUADRO 8.15 Alumnos egresados del ciclo lectivo 2020, por sexo, según modalidad de dictado
B3: Modalidad de dictado | C3: Total | D3: Mujeres | E3: Varones
B4: Total Córdoba | C4: 6584 | D4: 3901 | E4: 2683
B5: Presencial | C5: 4570 | D5: 2798 | E5: 1772
B6: A distancia | C6: 2014 | D6: 1103 | E6: 911

Sheet c. 8,15 A y B. (hidden)
B2: ="CUADRO 8.15.A Modalidad de dictado presencial. Alumnos egresados del ciclo lectivo "&añoAnuario-1&", por sexo, según plan y orientación" -> CUADRO 8.15.A Modalidad de dictado presencial. Alumnos egresados del ciclo lectivo 2020, por sexo, según plan y orientación
B3: Tipo de plan | C3: Orientación | D3: Total | E3: Mujeres | F3: Varones
B4: Total Córdoba | D4: 4570 | E4: 2798 | F4: 1772
B5: Planes anteriores | C5: Bachiller | D5: 1 | E5: 1
C6: Comercial | D6: 6 | E6: 3 | F6: 3
C7: Economía y Gestión de las Organizaciones | D7: 1 | E7: 1
C8: Producción de Bienes y Servicios | D8: 125 | E8: 81 | F8: 44
B9: Planes actuales | C9: Agro y Ambiente | D9: 200 | E9: 148 | F9: 52
C10: Ciencias Naturales | D10: 195 | E10: 84 | F10: 111
C11: Economía y Administración | D11: 2873 | E11: 1748 | F11: 1125
C12: Humanidades y Ciencias Sociales | D12: 367 | E12: 222 | F12: 145
C13: Informática | D13: 452 | E13: 301 | F13: 151
C14: Turismo | D14: 350 | E14: 209 | F14: 141
B17: ="CUADRO 8.15.B Modalidad de dictado semipresencial. Alumnos egresados del ciclo lectivo "&añoAnuario-1&", por sexo, según orientación" -> CUADRO 8.15.B Modalidad de dictado semipresencial. Alumnos egresados del ciclo lectivo 2020, por sexo, según orientación
B18: Modalidad de dictado | C18: Orientación | D18: Total | E18: Mujeres | F18: Varones
B19: Total Córdoba | D19: 2014 | E19: 1103 | F19: 911
B20: Semipresencial | C20: Agro y Ambiente | D20: 54 | E20: 32 | F20: 22
C21: Economía y Gestión de las Organizaciones | D21: 7 | E21: 6 | F21: 1
C22: Economía y Administración | D22: 1294 | E22: 655 | F22: 639
C23: Humanidades y Ciencias Sociales | D23: 96 | E23: 44 | F23: 52
C24: Informática | D24: 517 | E24: 339 | F24: 178
C25: Producción de Bienes y Servicios | D25: 10 | E25: 9 | F25: 1
C26: Técnica | D26: 30 | E26: 16 | F26: 14
C27: Turismo | D27: 6 | E27: 2 | F27: 4

Sheet C 8.16 (hidden)
B2: CUADRO 8.16 Personal docente en actividad, por sector, según lugar de origen y forma de designación
B3: Lugar de origen | C3: Forma de designación | D3: Total (*) | E3: Estatal | F3: Privado
B4: Total Córdoba | D4: 7291 | E4: 6793 | F4: 498
B5: Personal designado en la planta del establecimiento | C5: En actividad, designados sólo por cargo | D5: 321 | E5: 256 | F5: 65
C6: En actividad, designados sólo por horas cátedra | D6: 6732 | E6: 6315 | F6: 417
C7: En actividad, designados por cargo y horas cátedra | D7: 127 | E7: 111 | F7: 16
B8: Personal que proviene de otra planta | C8: Docentes frente a alumnos afectados a este establecimiento que no pertenecen a esta planta funcional | D8: 14 | E8: 14
C9: Docentes en otras funciones afectados a este establecimiento que no pertenecen a esta planta funcional | D9: 97 | E9: 97
B11: (*)El personal docente en actividad hace referencia a todas las personas con designación docente que se desempeñan en las unidades educativas de la modalidad. Por esta razón, se cuentan tantas veces como ofertas en las que trabajan.

Sheet C 8.17 (hidden)
B2: CUADRO 8.17 Personal docente en actividad, por sexo, según departamento
B3: Departamento | C3: Total | D3: Mujeres | E3: Varones
B4: Total Córdoba | C4: 7291 | D4: 5124 | E4: 2167
B5: Calamuchita | C5: 168 | D5: 122 | E5: 46
B6: Capital | C6: 2666 | D6: 1684 | E6: 982
B7: Colón | C7: 356 | D7: 269 | E7: 87
B8: Cruz del Eje | C8: 178 | D8: 140 | E8: 38
B9: General Roca | C9: 87 | D9: 66 | E9: 21
B10: General San Martín | C10: 260 | D10: 214 | E10: 46
B11: Ischilín | C11: 88 | D11: 61 | E11: 27
B12: Juárez Celman | C12: 160 | D12: 123 | E12: 37
B13: Marcos Juárez | C13: 246 | D13: 207 | E13: 39
B14: Minas | C14: 39 | D14: 33 | E14: 6
B15: Pocho | C15: 24 | D15: 13 | E15: 11
B16: Pte. Roque Sáenz Peña | C16: 105 | D16: 76 | E16: 29
B17: Punilla | C17: 341 | D17: 229 | E17: 112
B18: Río Cuarto | C18: 558 | D18: 396 | E18: 162
B19: Río Primero | C19: 127 | D19: 85 | E19: 42
B20: Río Seco | C20: 63 | D20: 43 | E20: 20
B21: Río Segundo | C21: 206 | D21: 163 | E21: 43
B22: San Alberto | C22: 97 | D22: 63 | E22: 34
B23: San Javier | C23: 130 | D23: 99 | E23: 31
B24: San Justo | C24: 453 | D24: 369 | E24: 84
B25: Santa María | C25: 351 | D25: 203 | E25: 148
B26: Sobremonte | C26: 14 | D26: 10 | E26: 4
B27: Tercero Arriba | C27: 186 | D27: 157 | E27: 29
B28: Totoral | C28: 83 | D28: 56 | E28: 27
B29: Tulumba | C29: 55 | D29: 43 | E29: 12
B30: Unión | C30: 250 | D30: 200 | E30: 50
B32: (*) El personal docente en actividad hace referencia a todas las personas con designación docente que se desempeñan en las unidades educativas de la modalidad. Por esta razón, se cuentan tantas veces como ofertas en las que trabajan.

Sheet C. 8.18 (hidden)
B2: CUADRO 8.18 Personal docente en actividad, por sector y ámbito, según departamento
B3: Departamento | C3: Total | D3: Estatal | F3: Privado
D4: Urbano | E4: Rural | F4: Urbano
B5: Total Córdoba | C5: 7291 | D5: 5805 | E5: 988 | F5: 498
B6: Calamuchita | C6: 168 | D6: 88 | E6: 80
B7: Capital | C7: 2666 | D7: 2332 | F7: 334
B8: Colón | C8: 356 | D8: 326 | E8: 30
B9: Cruz del Eje | C9: 178 | D9: 149 | E9: 29
B10: General Roca | C10: 87 | D10: 72 | E10: 15
B11: General San Martín | C11: 260 | D11: 238 | E11: 22
B12: Ischilín | C12: 88 | D12: 81 | E12: 7
B13: Juárez Celman | C13: 160 | D13: 77 | E13: 51 | F13: 32
B14: Marcos Juárez | C14: 246 | D14: 202 | E14: 8 | F14: 36
B15: Minas | C15: 39 | E15: 39
B16: Pocho | C16: 24 | E16: 24
B17: Pte. Roque Sáenz Peña | C17: 105 | D17: 87 | E17: 18
B18: Punilla | C18: 341 | D18: 271 | E18: 59 | F18: 11
B19: Río Cuarto | C19: 558 | D19: 489 | E19: 15 | F19: 54
B20: Río Primero | C20: 127 | D20: 107 | E20: 20
B21: Río Seco | C21: 63 | D21: 29 | E21: 34
B22: Río Segundo | C22: 206 | D22: 168 | E22: 38
B23: San Alberto | C23: 97 | D23: 75 | E23: 22
B24: San Javier | C24: 130 | D24: 94 | E24: 36
B25: San Justo | C25: 453 | D25: 293 | E25: 141 | F25: 19
B26: Santa María | C26: 351 | D26: 206 | E26: 145
B27: Sobremonte | C27: 14 | D27: 14
B28: Tercero Arriba | C28: 186 | D28: 169 | E28: 17
B29: Totoral | C29: 83 | D29: 41 | E29: 42
B30: Tulumba | C30: 55 | D30: 16 | E30: 39
B31: Unión | C31: 250 | D31: 181 | E31: 57 | F31: 12
B33: (*) El personal docente en actividad hace referencia a todas las personas con designación docente que se desempeñan en las unidades educativas de la modalidad. Por esta razón, se cuentan tantas veces como ofertas en las que trabajan.
B34: El sector estatal brinda la oferta de educación secundaria de la modalidad de Jóvenes y Adultos a través de anexos en el ámbito rural en tanto que el sector privado no tiene ni anexos ni oferta.

Sheet C.9.1 (hidden)
B2: CUADRO 9.1 Unidades educativas, alumnos y personal docente en actividad, por sector
C3: Total | D3: Estatal | E3: Privado
B4: Unidades educativas | C4: 34 | D4: 29 | E4: 5
B5: Alumnos | C5: 6548 | D5: 5903 | E5: 645
B6: Personal docente (*) | C6: 655 | D6: 577 | E6: 78
B8: (*) El personal docente en actividad hace referencia a todas las personas con designación docente que se desempeñan en las unidades educativas de la modalidad, por esta razón se cuentan tantas veces como ofertas en las que trabajan.

Sheet C. 9.2 (hidden)
B2: CUADRO 9.2 Unidades educativas, alumnos y personal docente en actividad, por sector, según departamento
B3: Departamento | C3: Total | F3: Estatal | I3: Privado
C4: Unidades educativas | D4: Alumnos | E4: Personal docente (*) | F4: Unidades educativas | G4: Alumnos | H4: Personal docente | I4: Unidades educativas | J4: Alumnos | K4: Personal docente
B5: Total Córdoba | C5: 34 | D5: 6548 | E5: 655 | F5: 29 | G5: 5903 | H5: 577 | I5: 5 | J5: 645 | K5: 78
B6: Capital | C6: 4 | D6: 1100 | E6: 116 | F6: 3 | G6: 1067 | H6: 98 | I6: 1 | J6: 33 | K6: 18
B7: Cruz del Eje | C7: 2 | D7: 534 | E7: 77 | F7: 2 | G7: 534 | H7: 77
B8: General San Martín | C8: 2 | D8: 607 | E8: 54 | F8: 2 | G8: 607 | H8: 54
B9: Ischilín | C9: 1 | D9: 55 | E9: 8 | F9: 1 | G9: 55 | H9: 8
B10: Juárez Celman | C10: 2 | D10: 207 | E10: 15 | F10: 2 | G10: 207 | H10: 15
B11: Marcos Juárez | C11: 2 | D11: 716 | E11: 43 | F11: 2 | G11: 716 | H11: 43
B12: Pte. Roque Sáenz Peña | C12: 1 | D12: 190 | E12: 12 | F12: 1 | G12: 190 | H12: 12
B13: Punilla | C13: 2 | D13: 190 | E13: 22 | F13: 2 | G13: 190 | H13: 22
B14: Río Cuarto | C14: 4 | D14: 562 | E14: 79 | F14: 3 | G14: 468 | H14: 64 | I14: 1 | J14: 94 | K14: 15
B15: Río Segundo | C15: 2 | D15: 231 | E15: 36 | F15: 1 | G15: 181 | H15: 23 | I15: 1 | J15: 50 | K15: 13
B16: San Javier | C16: 1 | D16: 6 | E16: 4 | F16: 1 | G16: 6 | H16: 4
B17: San Justo | C17: 4 | D17: 618 | E17: 46 | F17: 4 | G17: 618 | H17: 46
B18: Sobremonte | C18: 1 | D18: 26 | E18: 1 | F18: 1 | G18: 26 | H18: 1
B19: Tercero Arriba | C19: 2 | D19: 525 | E19: 36 | F19: 1 | G19: 379 | H19: 30 | I19: 1 | J19: 146 | K19: 6
B20: Unión | C20: 4 | D20: 981 | E20: 106 | F20: 3 | G20: 659 | H20: 80 | I20: 1 | J20: 322 | K20: 26
B22: (*) El personal docente en actividad hace referencia a todas las personas con designación docente que se desempeñan en las unidades educativas de la modalidad, por esta razón se cuentan tantas veces como ofertas en las que trabajan.

Sheet C.9.3 (hidden)
B2: CUADRO 9.3 Alumnos por oferta a la que asisten
B3: Total | C3: FAP (*) | D3: FV (**) | E3: TA (***)
B4: 6548 | C4: 949 | D4: 5599 | E4: 109
B6: (*) FAP: Formación Artística con finalidad Propéudica
B7: (**) FV : Formación Vocacional
B8: (***) TA :Trayecto Artístico

Sheet C.9.4 (hidden)
B2: CUADRO 9.4 Alumnos por sector y sexo, según especialidad
B3: Especialidad | C3: Total general | F3: Estatal | I3: Privado
C4: Total | D4: Mujeres | E4: Varones | F4: Total | G4: Mujeres | H4: Varones | I4: Total | J4: Mujeres | K4: Varones
B5: Total Córdoba | C5: 6548 | D5: 4505 | E5: 2043 | F5: 5903 | G5: 4033 | H5: 1870 | I5: 645 | J5: 472 | K5: 173
B6: Arte | C6: 954 | D6: 805 | E6: 149 | F6: 954 | G6: 805 | H6: 149
B7: Artes audiovisuales | C7: 20 | D7: 16 | E7: 4 | F7: 20 | G7: 16 | H7: 4
B8: Artes gráficas | C8: 83 | D8: 52 | E8: 31 | F8: 83 | G8: 52 | H8: 31
B9: Artes Plasticas/Visuales | C9: 1084 | D9: 774 | E9: 310 | F9: 733 | G9: 520 | H9: 213 | I9: 351 | J9: 254 | K9: 97
B10: Batería | C10: 22 | D10: 8 | E10: 14 | F10: 22 | G10: 8 | H10: 14
B11: Canto | C11: 160 | D11: 113 | E11: 47 | F11: 160 | G11: 113 | H11: 47
B12: Cerámica | C12: 333 | D12: 307 | E12: 26 | F12: 305 | G12: 283 | H12: 22 | I12: 28 | J12: 24 | K12: 4
B13: Ciclos de Enseñanza Artística (Inicial) | C13: 10 | D13: 3 | E13: 7 | F13: 10 | G13: 3 | H13: 7
B14: Clarinete | C14: 8 | D14: 6 | E14: 2 | F14: 8 | G14: 6 | H14: 2
B15: Danza | C15: 123 | D15: 121 | E15: 2 | F15: 29 | G15: 29 | I15: 94 | J15: 92 | K15: 2
B16: Dibujo | C16: 6 | D16: 5 | E16: 1 | F16: 6 | G16: 5 | H16: 1
B17: Diseño de objetos (Artesanías) | C17: 12 | D17: 12 | F17: 12 | G17: 12
B18: Expresión Corporal | C18: 100 | D18: 78 | E18: 22 | F18: 100 | G18: 78 | H18: 22
B19: Fagot | C19: 1 | D19: 1 | F19: 1 | G19: 1
B20: Flauta Traversa | C20: 8 | D20: 6 | E20: 2 | F20: 8 | G20: 6 | H20: 2
B21: Guitarra | C21: 81 | D21: 35 | E21: 46 | F21: 55 | G21: 23 | H21: 32 | I21: 26 | J21: 12 | K21: 14
B22: Humanidades | C22: 39 | D22: 25 | E22: 14 | F22: 39 | G22: 25 | H22: 14
B23: Instrumento | C23: 1050 | D23: 641 | E23: 409 | F23: 1050 | G23: 641 | H23: 409
B24: Música | C24: 2174 | D24: 1309 | E24: 865 | F24: 2047 | G24: 1230 | H24: 817 | I24: 127 | J24: 79 | K24: 48
B25: Oboe | C25: 3 | D25: 1 | E25: 2 | F25: 3 | G25: 1 | H25: 2
B26: Piano | C26: 80 | D26: 50 | E26: 30 | F26: 61 | G26: 39 | H26: 22 | I26: 19 | J26: 11 | K26: 8
B27: Pintura | C27: 23 | D27: 18 | E27: 5 | F27: 23 | G27: 18 | H27: 5
B28: Saxofón | C28: 6 | D28: 3 | E28: 3 | F28: 6 | G28: 3 | H28: 3
B29: Teatro | C29: 143 | D29: 104 | E29: 39 | F29: 143 | G29: 104 | H29: 39
B30: Trombón a Vara | C30: 3 | E30: 3 | F30: 3 | H30: 3
B31: Trompeta | C31: 6 | E31: 6 | F31: 6 | H31: 6
B32: Viola | C32: 2 | D32: 2 | F32: 2 | G32: 2
B33: Violín | C33: 11 | D33: 8 | E33: 3 | F33: 11 | G33: 8 | H33: 3
B34: Violoncello | C34: 3 | D34: 2 | E34: 1 | F34: 3 | G34: 2 | H34: 1

Sheet FP C10.1 (hidden)
B2: CUADRO 10.1 Unidades de servicio, alumnos y personal docente en actividad, según organismo de dependencia
B3: Organismo | C3: Unidades (*) | D3: Alumnos | E3: Personal docente (**)
B4: Total Córdoba | C4: 49 | D4: 15373 | E4: 426
B5: Ministerio de Educación - Dirección General de Educación Técnica y Formación Profesional (DGETyFP) | C5: 11 | D5: 3403 | E5: 124
B6: Ministerio de Promoción del Empleo y de la Economía Familiar/Secretaría de Promoción del Empleo/Dirección General de Capacitación Laboral y Formación Profesional (DGCLyFP) | C6: 38 | D6: 11970 | E6: 302
B8: (*) Se incluyen solamente las unidades de servicio activas que estaban dictando cursos al momento del Relevamiento Anual 2021.
B9: (**) El personal docente en actividad hace referencia a todas las personas con designación docente que se desempeñan en las unidades educativas de formación profesional; por esta razón, se cuentan tantas veces como ofertas en las que trabajan.
B10: Se incluye únicamente la oferta dependiente del Ministerio de Educación y del Ministerio de Promoción del Empleo y la Economía Familiar, por lo que no figuran los cursos dictados por otros ministerios (provinciales o nacionales), por la municipalidad de Córdoba u otros municipios ni por las universidades.

Sheet FP C10.2 (hidden)
B2: CUADRO 10.2 Bases, anexos, alumnos y personal docente en actividad, según departamento
B3: Departamento | C3: Bases | D3: Anexos | E3: Alumnos | F3: Personal docente (*)
B4: Total Córdoba | C4: 48 | D4: 35 | E4: 15373 | F4: 426
B5: Capital | C5: 8 | D5: 20 | E5: 8874 | F5: 153
B6: Colón | C6: 4 | D6: 1 | E6: 920 | F6: 37
B7: Cruz del Eje | C7: 2 | E7: 127 | F7: 15
B8: General Roca | C8: 2 | E8: 44 | F8: 6
B9: General San Martín | C9: 2 | D9: 2 | E9: 541 | F9: 28
B10: Ischilín | C10: 1 | E10: 14 | F10: 3
B11: Juárez Celman | C11: 2 | E11: 122 | F11: 2
B12: Marcos Juárez | C12: 5 | D12: 2 | E12: 767 | F12: 14
B13: Pocho | C13: 1 | E13: 78 | F13: 6
B14: Pte. Roque Sáenz Peña | C14: 1 | E14: 83 | F14: 5
B15: Punilla | C15: 3 | E15: 547 | F15: 12
B16: Río Cuarto | C16: 1 | E16: 161 | F16: 17
B17: Río Primero | C17: 1 | E17: 30 | F17: 3
B18: Río Segundo | C18: 1 | D18: 3 | E18: 457 | F18: 9
B19: San Alberto | C19: 1 | E19: 90 | F19: 5
B20: San Javier | C20: 1 | D20: 1 | E20: 424 | F20: 18
B21: San Justo | C21: 3 | D21: 3 | E21: 768 | F21: 34
B22: Santa María | C22: 1 | D22: 1 | E22: 279 | F22: 4
B23: Sobremonte | C23: 1 | E23: 18 | F23: 1
B24: Tercero Arriba | C24: 4 | E24: 415 | F24: 29
B25: Tulumba | D25: 1 | E25: 22 | F25: 1
B26: Unión | C26: 3 | D26: 1 | E26: 592 | F26: 24
B28: (*) El personal docente en actividad hace referencia a todas las personas con designación docente que se desempeñan en las unidades educativas de formación profesional; por esta razón, se cuentan tantas veces como ofertas en las que trabajan.
B29: Se incluye únicamente la oferta dependiente de los Ministerios de Educación y de Promoción del Empleo y de la Economía Familiar, por lo que no figuran los cursos dictados por otros ministerios (provinciales o nacionales), por la municipalidad de Córdoba u otros municipios ni por las universidades. De igual manera, sólo están contabilizadas las unidades educativas que estaban dictando cursos al momento del Relevamiento Anual 2021.
B30: En 2021 los departamentos Calamuchita, Minas, Río Seco y Totoral no contaron con oferta de formación profesional.

Sheet C10.3 (hidden)
B2: CUADRO 10.3 Alumnos por sexo, según niveles de estudio obligatorios
B3: Niveles obligatorios | C3: Total | D3: Mujeres | E3: Varones
B4: Total Córdoba | C4: 15373 | D4: 9115 | E4: 6258
B5: Con primaria completa o incompleta | C5: 6990 | D5: 3834 | E5: 3156
B6: No asisten y tienen secundaria incompleta | C6: 1979 | D6: 1178 | E6: 801
B7: Asisten a la educación secundaria | C7: 1992 | D7: 1286 | E7: 706
B8: Con secundaria completa | C8: 4412 | D8: 2817 | E8: 1595
B10: Se incluye únicamente la oferta dependiente de los Ministerios de Educación y de Promoción del Empleo y de la Economía Familiar, por lo que no figuran los cursos dictados por otros ministerios (provinciales o nacionales), por la municipalidad de Córdoba u otros municipios ni por las universidades. De igual manera, sólo están contabilizadas las unidades educativas que estaban dictando cursos al momento del relevamiento 2021.

Sheet CSC10.4 (hidden)
B2: CUADRO 10.4 Personal docente en actividad, por origen y forma de designación
B3: Origen del personal | C3: Forma de designación | D3: Total (*)
B4: Total Córdoba | D4: 426
B5: Personal perteneciente a la planta del establecimiento | C5: En actividad, designados solo por cargo | D5: 240
C6: En actividad, designados solo por horas cátedra | D6: 69
C7: En actividad, designados por cargo y horas cátedra | D7: 5
B8: Personal no perteneciente a la planta del establecimiento | C8: Docentes frente a alumnos, afectados a este establecimiento que no pertenecen a esta planta funcional | D8: 109
C9: Docentes en otras funciones, afectados a este establecimiento que no pertenecen a esta planta funcional | D9: 3
B11: (*) El personal docente en actividad hace referencia a todas las personas con designación docente que se desempeñan en las unidades educativas de formación profesional; por esta razón, se cuentan tantas veces como ofertas en las que trabajan.
B12: Se incluye únicamente la oferta dependiente de los Ministerios de Educación y de Promoción del Empleo y de la Economía Familiar, por lo que no figuran los cursos dictados por otros ministerios (provinciales o nacionales), por la municipalidad de Córdoba u otros municipios ni por las universidades. De igual manera, sólo están contabilizadas las unidades educativas que estaban dictando cursos al momento del relevamiento 2021.

Sheet C10.5 (hidden)
B2: CUADRO 10.5 Personal docente en actividad, por sexo, según departamento
B3: Departamento | C3: Total (*) | D3: Mujeres | E3: Varones
B4: Total Córdoba | C4: 426 | D4: 234 | E4: 192
B5: Capital | C5: 153 | D5: 98 | E5: 55
B6: Colón | C6: 37 | D6: 19 | E6: 18
B7: Cruz del Eje | C7: 15 | D7: 8 | E7: 7
B8: General Roca | C8: 6 | D8: 4 | E8: 2
B9: General San Martín | C9: 28 | D9: 17 | E9: 11
B10: Ischilín | C10: 3 | D10: 2 | E10: 1
B11: Juárez Celman | C11: 2 | D11: 2
B12: Marcos Juárez | C12: 14 | D12: 8 | E12: 6
B13: Pocho | C13: 6 | D13: 2 | E13: 4
B14: Pte. Roque Sáenz Peña | C14: 5 | D14: 3 | E14: 2
B15: Punilla | C15: 12 | D15: 4 | E15: 8
B16: Río Cuarto | C16: 17 | D16: 2 | E16: 15
B17: Río Primero | C17: 3 | D17: 2 | E17: 1
B18: Río Segundo | C18: 9 | D18: 3 | E18: 6
B19: San Alberto | C19: 5 | D19: 3 | E19: 2
B20: San Javier | C20: 18 | D20: 10 | E20: 8
B21: San Justo | C21: 34 | D21: 15 | E21: 19
B22: Santa María | C22: 4 | E22: 4
B23: Sobremonte | C23: 1 | E23: 1
B24: Tercero Arriba | C24: 29 | D24: 16 | E24: 13
B25: Tulumba | C25: 1 | D25: 1
B26: Unión | C26: 24 | D26: 15 | E26: 9
B28: (*) El personal docente en actividad hace referencia a todas las personas con designación docente que se desempeñan en las unidades educativas de formación profesional; por esta razón, se cuentan tantas veces como ofertas en las que trabajan.
B29: Se incluye únicamente la oferta dependiente del Ministerio de Educación, por lo que no figuran los cursos dictados por otros ministerios (provinciales o nacionales), por la municipalidad de Córdoba u otros municipios ni por las universidades. De igual manera, sólo están contabilizadas las unidades educativas que estaban dictando cursos al momento del Relevamiento Anual 2021.

Sheet Carátula (hidden)
B8: Estadísticas Educativas
B10: ="Anuario "&añoAnuario -> Anuario 2021

Sheet CI Carátula (hidden)
A1: Estadísticas Educativas
A3: ="Anuario "&añoAnuario -> Anuario 2021
A12: =PROPER("MODALIDAD COMÚN") -> Modalidad Común
A13: Educación Inicial

Sheet CP Carátula (hidden)
A1: Estadísticas Educativas
A3: ="Anuario "&añoAnuario -> Anuario 2021
A12: Modalidad Común
A13: Educación Primaria

Sheet CS Carátula (hidden)
A1: Estadísticas Educativas
A3: ="Anuario "&añoAnuario -> Anuario 2021
A12: Modalidad Común
A13: Educación Secundaria

Sheet S Carátula (hidden)
A1: Estadísticas Educativas
A3: ="Anuario "&añoAnuario -> Anuario 2021
A12: Modalidad Común
A13: Educación Superior

Sheet E Carátula (hidden)
A1: Estadísticas Educativas
A3: ="Anuario "&añoAnuario -> Anuario 2021
A12: Modalidad Especial
A13: Todas Las Ofertas Y Niveles

Sheet DH Carátula (hidden)
A1: Estadísticas Educativas
A3: ="Anuario "&añoAnuario -> Anuario 2021
A12: Modalidad Domiciliaria Y Hospitalaria
A13: Los Niveles De La Enseñanza Obligatorios

Sheet A Carátula (hidden)
A1: Estadísticas Educativas
A3: ="Anuario "&añoAnuario -> Anuario 2021
A12: Modalidad Educación Permanente De Jóvenes Y Adultos
A13: Educación primaria y secundaria

Sheet AP Carátula (hidden)
A1: Estadísticas Educativas
A3: ="Anuario "&añoAnuario -> Anuario 2021
A12: Modalidad Educación Permanente De Jóvenes Y Adultos
A13: Educación Primaria

Sheet AS Carátula (hidden)
A1: Estadísticas Educativas
A3: ="Anuario "&añoAnuario -> Anuario 2021
A12: Modalidad Educación Permanente De Jóvenes Y Adultos
A13: Educación Secundaria

Sheet Ar Carátula (hidden)
A1: Estadísticas Educativas
A3: ="Anuario "&añoAnuario -> Anuario 2021
A12: Modalidad Educación Artística

Sheet FP Carátula (hidden)
A1: Estadísticas Educativas
A3: ="Anuario "&añoAnuario -> Anuario 2021
A12: Formación Profesional
